Workbook

Sheet Sheet1
D1: الصف الخامس الابتدائي | N1: اكتب فى الخلايا ذات اللون الابيض فقط
J2: العدد | K2: =SUM(G5:G44) -> 212
D3: م | E3: اكتب اول رقم جلوس | G3: =SUM(G5:G44) -> 212 | H3: =COUNT(H5:H44) -> 11 | J3: أعلى رقم | K3: =MAX(E5:F44) -> 712 | X3: =COUNT(K5:K297) -> 212 | Y3: =COUNTA(N5:N297) -> 212
E4: من | F4: إلى | G4: عدد اللجنة | H4: اللجنة | J4: م | K4: رقم الجلوس | L4: م | M4: الكود | N4: الاسم | O4: النوع | P4: الديانة | Q4: حالة القيد | R4: الفصل | S4: الدمج | T4: الصف | U4: الترم الأول | V4: الترم الثاني | X4: اللجنة | Y4: نهاية اللجنة
B5: مقيد | C5: =COUNTA(N5:N297) -> 212 | D5: =IF(E5="","",COUNT($E$5:E5)) -> 1 | E5: 501 | F5: =IF(G5="","",E5+G5-1) -> 520 | G5: 20 | H5: =IF(E5="","",COUNT($E$5:E5)) -> 1 | J5: 1 | K5: =$E$5 -> 501 | L5: 1 | M5: 481881908 | N5: س1 | O5: ذكر | P5: مسلم | Q5: ناجح ومنقول | R5: (4 / 5) | S5: لا يوجد | T5: الخامس | U5: نصف العام | V5: آخر العام | W5: ص | X5: =IF(K5="","",VLOOKUP(K5,جلوس,4)) -> 1 | Y5: =IF(X5=X6,"","نهاية اللجنة") -> 
B6: موزع | C6: =SUM(G5:G44) -> 212 | D6: =IF(E6="","",COUNT($E$5:E6)) -> 2 | E6: =IF(G6="","",F5+1) -> 521 | F6: =IF(G6="","",E6+G6-1) -> 540 | G6: 20 | H6: =IF(E6="","",COUNT($E$5:E6)) -> 2 | J6: =IF(J5="","",IF(J5+1>$K$2,"",J5+1)) -> 2 | K6: =IF(K5="","",IF(K5+1>$K$3,"",K5+1)) -> 502 | L6: 2 | M6: 480318593 | N6: س2 | O6: ذكر | P6: مسلم | Q6: ناجح ومنقول | R6: (3 / 5) | S6: لا يوجد | T6: الخامس | U6: نصف العام | V6: آخر العام | W6: ص | X6: 1 | Y6: =IF(X6=X7,"","نهاية اللجنة") -> 
B7: متبقى | C7: =C5-C6 -> 0 | D7: =IF(E7="","",COUNT($E$5:E7)) -> 3 | E7: =IF(G7="","",F6+1) -> 541 | F7: 560 | G7: 20 | H7: =IF(E7="","",COUNT($E$5:E7)) -> 3 | J7: 3 | K7: =IF(K6="","",IF(K6+1>$K$3,"",K6+1)) -> 503 | L7: 3 | M7: 480264281 | N7: س3 | O7: ذكر | P7: مسلم | Q7: ناجح ومنقول | R7: (1 / 5) | S7: لا يوجد | T7: الخامس | U7: نصف العام | V7: آخر العام | W7: ص | X7: 1
D8: =IF(E8="","",COUNT($E$5:E8)) -> 4 | E8: 561 | F8: 580 | G8: 20 | H8: =IF(E8="","",COUNT($E$5:E8)) -> 4 | J8: 4 | K8: 504 | L8: 4 | M8: 480262429 | N8: س4 | O8: ذكر | P8: مسلم | Q8: ناجح ومنقول | R8: (1 / 5) | S8: لا يوجد | T8: الخامس | U8: نصف العام | V8: آخر العام | W8: ص | X8: 1
C9: ذكر | D9: =IF(E9="","",COUNT($E$5:E9)) -> 5 | E9: 581 | F9: 600 | G9: 20 | H9: =IF(E9="","",COUNT($E$5:E9)) -> 5 | J9: 5 | K9: 505 | L9: 5 | M9: 480284782 | N9: س5 | O9: ذكر | P9: مسلم | Q9: ناجح ومنقول | R9: (3 / 5) | S9: لا يوجد | T9: الخامس | U9: نصف العام | V9: آخر العام | W9: ص | X9: 1
C10: انثى | D10: =IF(E10="","",COUNT($E$5:E10)) -> 6 | E10: 601 | F10: 620 | G10: 20 | H10: =IF(E10="","",COUNT($E$5:E10)) -> 6 | J10: 6 | K10: 506 | L10: 6 | M10: 480287033 | N10: س6 | O10: ذكر | P10: مسلم | Q10: ناجح ومنقول | R10: (4 / 5) | S10: لا يوجد | T10: الخامس | U10: نصف العام | V10: آخر العام | W10: ص | X10: 1
D11: =IF(E11="","",COUNT($E$5:E11)) -> 7 | E11: 621 | F11: 640 | G11: 20 | H11: =IF(E11="","",COUNT($E$5:E11)) -> 7 | J11: 7 | K11: 507 | L11: 7 | M11: 480325012 | N11: س7 | O11: ذكر | P11: مسلم | Q11: ناجح ومنقول | R11: (1 / 5) | S11: لا يوجد | T11: الخامس | U11: نصف العام | V11: آخر العام | W11: ص | X11: 1
D12: =IF(E12="","",COUNT($E$5:E12)) -> 8 | E12: 641 | F12: 660 | G12: 20 | H12: =IF(E12="","",COUNT($E$5:E12)) -> 8 | J12: 8 | K12: 508 | L12: 8 | M12: 480300046 | N12: س8 | O12: ذكر | P12: مسلم | Q12: ناجح ومنقول | R12: (1 / 5) | S12: لا يوجد | T12: الخامس | U12: نصف العام | V12: آخر العام | W12: ص | X12: 1
D13: =IF(E13="","",COUNT($E$5:E13)) -> 9 | E13: 661 | F13: 680 | G13: 20 | H13: =IF(E13="","",COUNT($E$5:E13)) -> 9 | J13: 9 | K13: 509 | L13: 9 | M13: 480286161 | N13: س9 | O13: ذكر | P13: مسلم | Q13: ناجح ومنقول | R13: (4 / 5) | S13: لا يوجد | T13: الخامس | U13: نصف العام | V13: آخر العام | W13: ص | X13: 1
D14: =IF(E14="","",COUNT($E$5:E14)) -> 10 | E14: 681 | F14: 700 | G14: 20 | H14: =IF(E14="","",COUNT($E$5:E14)) -> 10 | J14: 10 | K14: 510 | L14: 10 | M14: 480286889 | N14: س10 | O14: ذكر | P14: مسلم | Q14: ناجح ومنقول | R14: (2 / 5) | S14: لا يوجد | T14: الخامس | U14: نصف العام | V14: آخر العام | W14: ص | X14: 1
D15: =IF(E15="","",COUNT($E$5:E15)) -> 11 | E15: 701 | F15: 712 | G15: 12 | H15: =IF(E15="","",COUNT($E$5:E15)) -> 11 | J15: 11 | K15: 511 | L15: 11 | M15: 480299837 | N15: س11 | O15: ذكر | P15: مسلم | Q15: ناجح ومنقول | R15: (4 / 5) | S15: لا يوجد | T15: الخامس | U15: نصف العام | V15: آخر العام | W15: ص | X15: 1
D16: =IF(E16="","",COUNT($E$5:E16)) ->  | H16: =IF(E16="","",COUNT($E$5:E16)) ->  | J16: 12 | K16: 512 | L16: 12 | M16: 479159444 | N16: س12 | O16: ذكر | P16: مسلم | Q16: ناجح ومنقول | R16: (3 / 5) | S16: لا يوجد | T16: الخامس | U16: نصف العام | V16: آخر العام | W16: ص | X16: 1
D17: =IF(E17="","",COUNT($E$5:E17)) ->  | H17: =IF(E17="","",COUNT($E$5:E17)) ->  | J17: 13 | K17: 513 | L17: 13 | M17: 475934067 | N17: س13 | O17: ذكر | P17: مسلم | Q17: ناجح ومنقول | R17: (1 / 5) | S17: لا يوجد | T17: الخامس | U17: نصف العام | V17: آخر العام | W17: ص | X17: 1
D18: =IF(E18="","",COUNT($E$5:E18)) ->  | H18: =IF(E18="","",COUNT($E$5:E18)) ->  | J18: 14 | K18: 514 | L18: 14 | M18: 476158697 | N18: س14 | O18: ذكر | P18: مسلم | Q18: ناجح ومنقول | R18: (1 / 5) | S18: لا يوجد | T18: الخامس | U18: نصف العام | V18: آخر العام | W18: ص | X18: 1
D19: =IF(E19="","",COUNT($E$5:E19)) ->  | H19: =IF(E19="","",COUNT($E$5:E19)) ->  | J19: 15 | K19: 515 | L19: 15 | M19: 480298459 | N19: س15 | O19: ذكر | P19: مسلم | Q19: ناجح ومنقول | R19: (1 / 5) | S19: لا يوجد | T19: الخامس | U19: نصف العام | V19: آخر العام | W19: ص | X19: 1
D20: =IF(E20="","",COUNT($E$5:E20)) ->  | H20: =IF(E20="","",COUNT($E$5:E20)) ->  | J20: 16 | K20: 516 | L20: 16 | M20: 480264878 | N20: س16 | O20: ذكر | P20: مسلم | Q20: ناجح ومنقول | R20: (3 / 5) | S20: لا يوجد | T20: الخامس | U20: نصف العام | V20: آخر العام | W20: ص | X20: 1
D21: =IF(E21="","",COUNT($E$5:E21)) ->  | H21: =IF(E21="","",COUNT($E$5:E21)) ->  | J21: 17 | K21: 517 | L21: 17 | M21: 480288615 | N21: س17 | O21: ذكر | P21: مسلم | Q21: ناجح ومنقول | R21: (4 / 5) | S21: لا يوجد | T21: الخامس | U21: نصف العام | V21: آخر العام | W21: ص | X21: 1
D22: =IF(E22="","",COUNT($E$5:E22)) ->  | H22: =IF(E22="","",COUNT($E$5:E22)) ->  | J22: 18 | K22: 518 | L22: 18 | M22: 473849178 | N22: س18 | O22: ذكر | P22: مسلم | Q22: ناجح ومنقول | R22: (1 / 5) | S22: لا يوجد | T22: الخامس | U22: نصف العام | V22: آخر العام | W22: ص | X22: 1
D23: =IF(E23="","",COUNT($E$5:E23)) ->  | H23: =IF(E23="","",COUNT($E$5:E23)) ->  | J23: 19 | K23: 519 | L23: 19 | M23: 480286579 | N23: س19 | O23: ذكر | P23: مسلم | Q23: ناجح ومنقول | R23: (2 / 5) | S23: لا يوجد | T23: الخامس | U23: نصف العام | V23: آخر العام | W23: ص | X23: 1
D24: =IF(E24="","",COUNT($E$5:E24)) ->  | H24: =IF(E24="","",COUNT($E$5:E24)) ->  | J24: 20 | K24: 520 | L24: 20 | M24: 480265975 | N24: س20 | O24: ذكر | P24: مسلم | Q24: ناجح ومنقول | R24: (4 / 5) | S24: لا يوجد | T24: الخامس | U24: نصف العام | V24: آخر العام | W24: ص | X24: 1 | Y24: نهاية اللجنة
D25: =IF(E25="","",COUNT($E$5:E25)) ->  | H25: =IF(E25="","",COUNT($E$5:E25)) ->  | J25: 21 | K25: 521 | L25: 21 | M25: 478880792 | N25: س21 | O25: ذكر | P25: مسلم | Q25: ناجح ومنقول | R25: (3 / 5) | S25: لا يوجد | T25: الخامس | U25: نصف العام | V25: آخر العام | W25: ص | X25: 2
D26: =IF(E26="","",COUNT($E$5:E26)) ->  | H26: =IF(E26="","",COUNT($E$5:E26)) ->  | J26: 22 | K26: 522 | L26: 22 | M26: 480297759 | N26: س22 | O26: ذكر | P26: مسلم | Q26: ناجح ومنقول | R26: (2 / 5) | S26: لا يوجد | T26: الخامس | U26: نصف العام | V26: آخر العام | W26: ص | X26: 2
D27: =IF(E27="","",COUNT($E$5:E27)) ->  | H27: =IF(E27="","",COUNT($E$5:E27)) ->  | J27: 23 | K27: 523 | L27: 23 | M27: 480323452 | N27: س23 | O27: ذكر | P27: مسلم | Q27: ناجح ومنقول | R27: (3 / 5) | S27: لا يوجد | T27: الخامس | U27: نصف العام | V27: آخر العام | W27: ص | X27: 2
D28: =IF(E28="","",COUNT($E$5:E28)) ->  | H28: =IF(E28="","",COUNT($E$5:E28)) ->  | J28: 24 | K28: 524 | L28: 24 | M28: 480265010 | N28: س24 | O28: ذكر | P28: مسلم | Q28: ناجح ومنقول | R28: (2 / 5) | S28: لا يوجد | T28: الخامس | U28: نصف العام | V28: آخر العام | W28: ص | X28: 2
D29: =IF(E29="","",COUNT($E$5:E29)) ->  | H29: =IF(E29="","",COUNT($E$5:E29)) ->  | J29: 25 | K29: 525 | L29: 25 | M29: 481718793 | N29: س25 | O29: ذكر | P29: مسلم | Q29: ناجح ومنقول | R29: (3 / 5) | S29: لا يوجد | T29: الخامس | U29: نصف العام | V29: آخر العام | W29: ص | X29: 2
D30: =IF(E30="","",COUNT($E$5:E30)) ->  | H30: =IF(E30="","",COUNT($E$5:E30)) ->  | J30: 26 | K30: 526 | L30: 26 | M30: 480321015 | N30: س26 | O30: ذكر | P30: مسلم | Q30: ناجح ومنقول | R30: (1 / 2) | S30: لا يوجد | T30: الخامس | U30: نصف العام | V30: آخر العام | W30: ص | X30: 2
D31: =IF(E31="","",COUNT($E$5:E31)) ->  | H31: =IF(E31="","",COUNT($E$5:E31)) ->  | J31: 27 | K31: 527 | L31: 27 | M31: 480286739 | N31: س27 | O31: ذكر | P31: مسلم | Q31: ناجح ومنقول | R31: (1 / 5) | S31: لا يوجد | T31: الخامس | U31: نصف العام | V31: آخر العام | W31: ص | X31: 2
D32: =IF(E32="","",COUNT($E$5:E32)) ->  | H32: =IF(E32="","",COUNT($E$5:E32)) ->  | J32: 28 | K32: 528 | L32: 28 | M32: 481756834 | N32: س28 | O32: ذكر | P32: مسلم | Q32: ناجح ومنقول | R32: (3 / 5) | S32: لا يوجد | T32: الخامس | U32: نصف العام | V32: آخر العام | W32: ص | X32: 2
D33: =IF(E33="","",COUNT($E$5:E33)) ->  | H33: =IF(E33="","",COUNT($E$5:E33)) ->  | J33: 29 | K33: 529 | L33: 29 | M33: 480321302 | N33: س29 | O33: ذكر | P33: مسلم | Q33: ناجح ومنقول | R33: (4 / 5) | S33: لا يوجد | T33: الخامس | U33: نصف العام | V33: آخر العام | W33: ص | X33: 2
D34: =IF(E34="","",COUNT($E$5:E34)) ->  | H34: =IF(E34="","",COUNT($E$5:E34)) ->  | J34: 30 | K34: 530 | L34: 30 | M34: 478642564 | N34: س30 | O34: ذكر | P34: مسلم | Q34: ناجح ومنقول | R34: (2 / 5) | S34: لا يوجد | T34: الخامس | U34: نصف العام | V34: آخر العام | W34: ص | X34: 2
D35: =IF(E35="","",COUNT($E$5:E35)) ->  | H35: =IF(E35="","",COUNT($E$5:E35)) ->  | J35: 31 | K35: 531 | L35: 31 | M35: 479537204 | N35: س31 | O35: ذكر | P35: مسلم | Q35: ناجح ومنقول | R35: (4 / 5) | S35: لا يوجد | T35: الخامس | U35: نصف العام | V35: آخر العام | W35: ص | X35: 2
D36: =IF(E36="","",COUNT($E$5:E36)) ->  | H36: =IF(E36="","",COUNT($E$5:E36)) ->  | J36: 32 | K36: 532 | L36: 32 | M36: 473278535 | N36: س32 | O36: ذكر | P36: مسلم | Q36: ناجح ومنقول | R36: (2 / 5) | S36: لا يوجد | T36: الخامس | U36: نصف العام | V36: آخر العام | W36: ص | X36: 2
D37: =IF(E37="","",COUNT($E$5:E37)) ->  | H37: =IF(E37="","",COUNT($E$5:E37)) ->  | J37: 33 | K37: 533 | L37: 33 | M37: 478978663 | N37: س33 | O37: ذكر | P37: مسلم | Q37: ناجح ومنقول | R37: (3 / 5) | S37: لا يوجد | T37: الخامس | U37: نصف العام | V37: آخر العام | W37: ص | X37: 2
D38: =IF(E38="","",COUNT($E$5:E38)) ->  | H38: =IF(E38="","",COUNT($E$5:E38)) ->  | J38: 34 | K38: 534 | L38: 34 | M38: 494343331 | N38: س34 | O38: ذكر | P38: مسلم | Q38: ناجح ومنقول | R38: (3 / 5) | S38: لا يوجد | T38: الخامس | U38: نصف العام | V38: آخر العام | W38: ص | X38: 2
D39: =IF(E39="","",COUNT($E$5:E39)) ->  | H39: =IF(E39="","",COUNT($E$5:E39)) ->  | J39: 35 | K39: 535 | L39: 35 | M39: 476107399 | N39: س35 | O39: ذكر | P39: مسلم | Q39: ناجح ومنقول | R39: (3 / 5) | S39: لا يوجد | T39: الخامس | U39: نصف العام | V39: آخر العام | W39: ص | X39: 2
D40: =IF(E40="","",COUNT($E$5:E40)) ->  | H40: =IF(E40="","",COUNT($E$5:E40)) ->  | J40: 36 | K40: 536 | L40: 36 | M40: 480288661 | N40: س36 | O40: ذكر | P40: مسلم | Q40: ناجح ومنقول | R40: (3 / 5) | S40: لا يوجد | T40: الخامس | U40: نصف العام | V40: آخر العام | W40: ص | X40: 2
D41: =IF(E41="","",COUNT($E$5:E41)) ->  | H41: =IF(E41="","",COUNT($E$5:E41)) ->  | J41: 37 | K41: 537 | L41: 37 | M41: 480287265 | N41: س37 | O41: ذكر | P41: مسلم | Q41: ناجح ومنقول | R41: (1 / 5) | S41: لا يوجد | T41: الخامس | U41: نصف العام | V41: آخر العام | W41: ص | X41: 2
D42: =IF(E42="","",COUNT($E$5:E42)) ->  | H42: =IF(E42="","",COUNT($E$5:E42)) ->  | J42: 38 | K42: 538 | L42: 38 | M42: 482037750 | N42: س38 | O42: ذكر | P42: مسلم | Q42: ناجح ومنقول | R42: (4 / 5) | S42: لا يوجد | T42: الخامس | U42: نصف العام | V42: آخر العام | W42: ص | X42: 2
D43: =IF(E43="","",COUNT($E$5:E43)) ->  | H43: =IF(E43="","",COUNT($E$5:E43)) ->  | J43: 39 | K43: 539 | L43: 39 | M43: 476139535 | N43: س39 | O43: ذكر | P43: مسلم | Q43: ناجح ومنقول | R43: (3 / 5) | S43: لا يوجد | T43: الخامس | U43: نصف العام | V43: آخر العام | W43: ص | X43: 2
D44: =IF(E44="","",COUNT($E$5:E44)) ->  | H44: =IF(E44="","",COUNT($E$5:E44)) ->  | J44: 40 | K44: 540 | L44: 40 | M44: 480265225 | N44: س40 | O44: ذكر | P44: مسلم | Q44: ناجح ومنقول | R44: (3 / 5) | S44: لا يوجد | T44: الخامس | U44: نصف العام | V44: آخر العام | W44: ص | X44: 2 | Y44: نهاية اللجنة
J45: 41 | K45: 541 | L45: 41 | M45: 479559964 | N45: س41 | O45: ذكر | P45: مسلم | Q45: ناجح ومنقول | R45: (3 / 5) | S45: لا يوجد | T45: الخامس | U45: نصف العام | V45: آخر العام | W45: ص | X45: 3
J46: 42 | K46: 542 | L46: 42 | M46: 479440895 | N46: س42 | O46: ذكر | P46: مسلم | Q46: ناجح ومنقول | R46: (3 / 5) | S46: لا يوجد | T46: الخامس | U46: نصف العام | V46: آخر العام | W46: ص | X46: 3
J47: 43 | K47: 543 | L47: 43 | M47: 480451971 | N47: س43 | O47: ذكر | P47: مسلم | Q47: ناجح ومنقول | R47: (1 / 5) | S47: لا يوجد | T47: الخامس | U47: نصف العام | V47: آخر العام | W47: ص | X47: 3
J48: 44 | K48: 544 | L48: 44 | M48: 480263711 | N48: س44 | O48: ذكر | P48: مسلم | Q48: ناجح ومنقول | R48: (1 / 5) | S48: لا يوجد | T48: الخامس | U48: نصف العام | V48: آخر العام | W48: ص | X48: 3
J49: 45 | K49: 545 | L49: 45 | M49: 480324564 | N49: س45 | O49: ذكر | P49: مسلم | Q49: ناجح ومنقول | R49: (2 / 5) | S49: لا يوجد | T49: الخامس | U49: نصف العام | V49: آخر العام | W49: ص | X49: 3
J50: 46 | K50: 546 | L50: 46 | M50: 480264451 | N50: س46 | O50: ذكر | P50: مسلم | Q50: ناجح ومنقول | R50: (4 / 5) | S50: لا يوجد | T50: الخامس | U50: نصف العام | V50: آخر العام | W50: ص | X50: 3
J51: 47 | K51: 547 | L51: 47 | M51: 480911367 | N51: س47 | O51: ذكر | P51: مسلم | Q51: ناجح ومنقول | R51: (4 / 5) | S51: لا يوجد | T51: الخامس | U51: نصف العام | V51: آخر العام | W51: ص | X51: 3
J52: 48 | K52: 548 | L52: 48 | M52: 479693040 | N52: س48 | O52: ذكر | P52: مسلم | Q52: ناجح ومنقول | R52: (1 / 5) | S52: لا يوجد | T52: الخامس | U52: نصف العام | V52: آخر العام | W52: ص | X52: 3
J53: 49 | K53: 549 | L53: 49 | M53: 480300810 | N53: س49 | O53: ذكر | P53: مسلم | Q53: ناجح ومنقول | R53: (1 / 5) | S53: لا يوجد | T53: الخامس | U53: نصف العام | V53: آخر العام | W53: ص | X53: 3
J54: 50 | K54: 550 | L54: 50 | M54: 480299651 | N54: س50 | O54: ذكر | P54: مسلم | Q54: ناجح ومنقول | R54: (1 / 5) | S54: لا يوجد | T54: الخامس | U54: نصف العام | V54: آخر العام | W54: ص | X54: 3
J55: 51 | K55: 551 | L55: 51 | M55: 480298854 | N55: س51 | O55: ذكر | P55: مسلم | Q55: ناجح ومنقول | R55: (4 / 5) | S55: لا يوجد | T55: الخامس | U55: نصف العام | V55: آخر العام | W55: ص | X55: 3
J56: 52 | K56: 552 | L56: 52 | M56: 480326098 | N56: س52 | O56: ذكر | P56: مسلم | Q56: ناجح ومنقول | R56: (1 / 5) | S56: لا يوجد | T56: الخامس | U56: نصف العام | V56: آخر العام | W56: ص | X56: 3
J57: 53 | K57: 553 | L57: 53 | M57: 480265459 | N57: س53 | O57: ذكر | P57: مسلم | Q57: ناجح ومنقول | R57: (3 / 5) | S57: لا يوجد | T57: الخامس | U57: نصف العام | V57: آخر العام | W57: ص | X57: 3
J58: 54 | K58: 554 | L58: 54 | M58: 480463448 | N58: س54 | O58: ذكر | P58: مسلم | Q58: ناجح ومنقول | R58: (4 / 5) | S58: لا يوجد | T58: الخامس | U58: نصف العام | V58: آخر العام | W58: ص | X58: 3
J59: 55 | K59: 555 | L59: 55 | M59: 479654851 | N59: س55 | O59: ذكر | P59: مسلم | Q59: ناجح ومنقول | R59: (4 / 5) | S59: لا يوجد | T59: الخامس | U59: نصف العام | V59: آخر العام | W59: ص | X59: 3
J60: 56 | K60: 556 | L60: 56 | M60: 480297065 | N60: س56 | O60: ذكر | P60: مسلم | Q60: ناجح ومنقول | R60: (1 / 5) | S60: لا يوجد | T60: الخامس | U60: نصف العام | V60: آخر العام | W60: ص | X60: 3
J61: 57 | K61: 557 | L61: 57 | M61: 472632016 | N61: س57 | O61: ذكر | P61: مسلم | Q61: ناجح ومنقول | R61: (1 / 5) | S61: لا يوجد | T61: الخامس | U61: نصف العام | V61: آخر العام | W61: ص | X61: 3
J62: 58 | K62: 558 | L62: 58 | M62: 480326473 | N62: س58 | O62: ذكر | P62: مسلم | Q62: ناجح ومنقول | R62: (4 / 5) | S62: لا يوجد | T62: الخامس | U62: نصف العام | V62: آخر العام | W62: ص | X62: 3
J63: 59 | K63: 559 | L63: 59 | M63: 480285979 | N63: س59 | O63: ذكر | P63: مسلم | Q63: ناجح ومنقول | R63: (3 / 5) | S63: لا يوجد | T63: الخامس | U63: نصف العام | V63: آخر العام | W63: ص | X63: 3
J64: 60 | K64: 560 | L64: 60 | M64: 480296406 | N64: س60 | O64: ذكر | P64: مسلم | Q64: ناجح ومنقول | R64: (4 / 5) | S64: لا يوجد | T64: الخامس | U64: نصف العام | V64: آخر العام | W64: ص | X64: 3 | Y64: نهاية اللجنة
J65: 61 | K65: 561 | L65: 61 | M65: 480295795 | N65: س61 | O65: ذكر | P65: مسلم | Q65: ناجح ومنقول | R65: (1 / 5) | S65: لا يوجد | T65: الخامس | U65: نصف العام | V65: آخر العام | W65: ص | X65: 4
J66: 62 | K66: 562 | L66: 62 | M66: 480265352 | N66: س62 | O66: ذكر | P66: مسلم | Q66: ناجح ومنقول | R66: (4 / 5) | S66: لا يوجد | T66: الخامس | U66: نصف العام | V66: آخر العام | W66: ص | X66: 4
J67: 63 | K67: 563 | L67: 63 | M67: 479640048 | N67: س63 | O67: ذكر | P67: مسلم | Q67: ناجح ومنقول | R67: (3 / 5) | S67: لا يوجد | T67: الخامس | U67: نصف العام | V67: آخر العام | W67: ص | X67: 4
J68: 64 | K68: 564 | L68: 64 | M68: 480285276 | N68: س64 | O68: ذكر | P68: مسلم | Q68: ناجح ومنقول | R68: (3 / 5) | S68: لا يوجد | T68: الخامس | U68: نصف العام | V68: آخر العام | W68: ص | X68: 4
J69: 65 | K69: 565 | L69: 65 | M69: 480262797 | N69: س65 | O69: ذكر | P69: مسلم | Q69: ناجح ومنقول | R69: (4 / 5) | S69: لا يوجد | T69: الخامس | U69: نصف العام | V69: آخر العام | W69: ص | X69: =IF(K69="","",VLOOKUP(K69,جلوس,4)) -> 4
J70: =IF(J69="","",IF(J69+1>$K$2,"",J69+1)) -> 66 | K70: 566 | L70: 66 | M70: 480286672 | N70: س66 | O70: ذكر | P70: مسلم | Q70: ناجح ومنقول | R70: (4 / 5) | S70: لا يوجد | T70: الخامس | U70: نصف العام | V70: آخر العام | W70: ص | X70: 4 | Y70: =IF(X70=X71,"","نهاية اللجنة") -> 
J71: 67 | K71: =IF(K70="","",IF(K70+1>$K$3,"",K70+1)) -> 567 | L71: 67 | M71: 476009366 | N71: س67 | O71: ذكر | P71: مسلم | Q71: ناجح ومنقول | R71: (1 / 5) | S71: لا يوجد | T71: الخامس | U71: نصف العام | V71: آخر العام | W71: ص | X71: 4
J72: 68 | K72: 568 | L72: 68 | M72: 480325952 | N72: س68 | O72: ذكر | P72: مسلم | Q72: ناجح ومنقول | R72: (4 / 5) | S72: لا يوجد | T72: الخامس | U72: نصف العام | V72: آخر العام | W72: ص | X72: 4
J73: 69 | K73: 569 | L73: 69 | M73: 480248496 | N73: س69 | O73: ذكر | P73: مسلم | Q73: ناجح ومنقول | R73: (1 / 5) | S73: لا يوجد | T73: الخامس | U73: نصف العام | V73: آخر العام | W73: ص | X73: 4
J74: 70 | K74: 570 | L74: 70 | M74: 478687603 | N74: س70 | O74: ذكر | P74: مسلم | Q74: ناجح ومنقول | R74: (4 / 5) | S74: لا يوجد | T74: الخامس | U74: نصف العام | V74: آخر العام | W74: ص | X74: 4
J75: 71 | K75: 571 | L75: 71 | M75: 480298285 | N75: س71 | O75: ذكر | P75: مسلم | Q75: ناجح ومنقول | R75: (4 / 5) | S75: لا يوجد | T75: الخامس | U75: نصف العام | V75: آخر العام | W75: ص | X75: 4
J76: 72 | K76: 572 | L76: 72 | M76: 480249118 | N76: س72 | O76: ذكر | P76: مسلم | Q76: ناجح ومنقول | R76: (3 / 5) | S76: لا يوجد | T76: الخامس | U76: نصف العام | V76: آخر العام | W76: ص | X76: 4
J77: 73 | K77: 573 | L77: 73 | M77: 480326690 | N77: س73 | O77: ذكر | P77: مسلم | Q77: ناجح ومنقول | R77: (2 / 5) | S77: لا يوجد | T77: الخامس | U77: نصف العام | V77: آخر العام | W77: ص | X77: 4
J78: 74 | K78: 574 | L78: 74 | M78: 480300558 | N78: س74 | O78: ذكر | P78: مسلم | Q78: ناجح ومنقول | R78: (2 / 5) | S78: لا يوجد | T78: الخامس | U78: نصف العام | V78: آخر العام | W78: ص | X78: 4
J79: 75 | K79: 575 | L79: 75 | M79: 480280659 | N79: س75 | O79: ذكر | P79: مسلم | Q79: ناجح ومنقول | R79: (3 / 5) | S79: لا يوجد | T79: الخامس | U79: نصف العام | V79: آخر العام | W79: ص | X79: 4
J80: 76 | K80: 576 | L80: 76 | M80: 480317885 | N80: س76 | O80: ذكر | P80: مسلم | Q80: ناجح ومنقول | R80: (1 / 5) | S80: لا يوجد | T80: الخامس | U80: نصف العام | V80: آخر العام | W80: ص | X80: 4
J81: 77 | K81: 577 | L81: 77 | M81: 480294916 | N81: س77 | O81: ذكر | P81: مسلم | Q81: ناجح ومنقول | R81: (2 / 5) | S81: لا يوجد | T81: الخامس | U81: نصف العام | V81: آخر العام | W81: ص | X81: 4
J82: 78 | K82: 578 | L82: 78 | M82: 480324155 | N82: س78 | O82: ذكر | P82: مسلم | Q82: ناجح ومنقول | R82: (2 / 5) | S82: لا يوجد | T82: الخامس | U82: نصف العام | V82: آخر العام | W82: ص | X82: 4
J83: 79 | K83: 579 | L83: 79 | M83: 479747749 | N83: س79 | O83: ذكر | P83: مسلم | Q83: ناجح ومنقول | R83: (4 / 5) | S83: لا يوجد | T83: الخامس | U83: نصف العام | V83: آخر العام | W83: ص | X83: 4
J84: 80 | K84: 580 | L84: 80 | M84: 480248779 | N84: س80 | O84: ذكر | P84: مسلم | Q84: ناجح ومنقول | R84: (3 / 5) | S84: لا يوجد | T84: الخامس | U84: نصف العام | V84: آخر العام | W84: ص | X84: 4 | Y84: نهاية اللجنة
J85: 81 | K85: 581 | L85: 81 | M85: 480301290 | N85: س81 | O85: ذكر | P85: مسلم | Q85: ناجح ومنقول | R85: (2 / 5) | S85: لا يوجد | T85: الخامس | U85: نصف العام | V85: آخر العام | W85: ص | X85: 5
J86: 82 | K86: 582 | L86: 82 | M86: 480875516 | N86: س82 | O86: ذكر | P86: مسلم | Q86: ناجح ومنقول | R86: (4 / 5) | S86: لا يوجد | T86: الخامس | U86: نصف العام | V86: آخر العام | W86: ص | X86: 5
J87: 83 | K87: 583 | L87: 83 | M87: 480301005 | N87: س83 | O87: ذكر | P87: مسلم | Q87: ناجح ومنقول | R87: (4 / 5) | S87: لا يوجد | T87: الخامس | U87: نصف العام | V87: آخر العام | W87: ص | X87: 5
J88: 84 | K88: 584 | L88: 84 | M88: 483003926 | N88: س84 | O88: ذكر | P88: مسلم | Q88: ناجح ومنقول | R88: (1 / 5) | S88: لا يوجد | T88: الخامس | U88: نصف العام | V88: آخر العام | W88: ص | X88: 5
J89: 85 | K89: 585 | L89: 85 | M89: 476141103 | N89: س85 | O89: ذكر | P89: مسلم | Q89: ناجح ومنقول | R89: (1 / 5) | S89: لا يوجد | T89: الخامس | U89: نصف العام | V89: آخر العام | W89: ص | X89: 5
J90: 86 | K90: 586 | L90: 86 | M90: 479627021 | N90: س86 | O90: ذكر | P90: مسلم | Q90: ناجح ومنقول | R90: (1 / 5) | S90: لا يوجد | T90: الخامس | U90: نصف العام | V90: آخر العام | W90: ص | X90: 5
J91: 87 | K91: 587 | L91: 87 | M91: 480285800 | N91: س87 | O91: ذكر | P91: مسلم | Q91: ناجح ومنقول | R91: (1 / 5) | S91: لا يوجد | T91: الخامس | U91: نصف العام | V91: آخر العام | W91: ص | X91: 5
J92: 88 | K92: 588 | L92: 88 | M92: 473281219 | N92: س88 | O92: ذكر | P92: مسلم | Q92: ناجح ومنقول | R92: (1 / 5) | S92: لا يوجد | T92: الخامس | U92: نصف العام | V92: آخر العام | W92: ص | X92: 5
J93: 89 | K93: 589 | L93: 89 | M93: 480293924 | N93: س89 | O93: ذكر | P93: مسلم | Q93: ناجح ومنقول | R93: (1 / 5) | S93: لا يوجد | T93: الخامس | U93: نصف العام | V93: آخر العام | W93: ص | X93: 5
J94: 90 | K94: 590 | L94: 90 | M94: 480285009 | N94: س90 | O94: ذكر | P94: مسلم | Q94: ناجح ومنقول | R94: (3 / 5) | S94: لا يوجد | T94: الخامس | U94: نصف العام | V94: آخر العام | W94: ص | X94: 5
J95: 91 | K95: 591 | L95: 91 | M95: 480284295 | N95: س91 | O95: ذكر | P95: مسلم | Q95: ناجح ومنقول | R95: (2 / 5) | S95: لا يوجد | T95: الخامس | U95: نصف العام | V95: آخر العام | W95: ص | X95: 5
J96: 92 | K96: 592 | L96: 92 | M96: 481691051 | N96: س92 | O96: ذكر | P96: مسلم | Q96: ناجح ومنقول | R96: (4 / 5) | S96: لا يوجد | T96: الخامس | U96: نصف العام | V96: آخر العام | W96: ص | X96: 5
J97: 93 | K97: 593 | L97: 93 | M97: 480294408 | N97: س93 | O97: ذكر | P97: مسلم | Q97: ناجح ومنقول | R97: (2 / 5) | S97: لا يوجد | T97: الخامس | U97: نصف العام | V97: آخر العام | W97: ص | X97: 5
J98: 94 | K98: 594 | L98: 94 | M98: 480326251 | N98: س94 | O98: ذكر | P98: مسلم | Q98: ناجح ومنقول | R98: (2 / 5) | S98: لا يوجد | T98: الخامس | U98: نصف العام | V98: آخر العام | W98: ص | X98: 5
J99: 95 | K99: 595 | L99: 95 | M99: 472928978 | N99: س95 | O99: ذكر | P99: مسلم | Q99: ناجح ومنقول | R99: (4 / 5) | S99: لا يوجد | T99: الخامس | U99: نصف العام | V99: آخر العام | W99: ص | X99: 5
J100: 96 | K100: 596 | L100: 96 | M100: 480263508 | N100: س96 | O100: ذكر | P100: مسلم | Q100: ناجح ومنقول | R100: (4 / 5) | S100: لا يوجد | T100: الخامس | U100: نصف العام | V100: آخر العام | W100: ص | X100: 5
J101: 97 | K101: 597 | L101: 97 | M101: 480298123 | N101: س97 | O101: ذكر | P101: مسلم | Q101: ناجح ومنقول | R101: (1 / 5) | S101: لا يوجد | T101: الخامس | U101: نصف العام | V101: آخر العام | W101: ص | X101: 5
J102: 98 | K102: 598 | L102: 98 | M102: 480294094 | N102: س98 | O102: ذكر | P102: مسلم | Q102: ناجح ومنقول | R102: (4 / 5) | S102: لا يوجد | T102: الخامس | U102: نصف العام | V102: آخر العام | W102: ص | X102: 5
J103: 99 | K103: 599 | L103: 99 | M103: 480264573 | N103: س99 | O103: ذكر | P103: مسلم | Q103: ناجح ومنقول | R103: (3 / 5) | S103: لا يوجد | T103: الخامس | U103: نصف العام | V103: آخر العام | W103: ص | X103: 5
J104: 100 | K104: 600 | L104: 100 | M104: 479129819 | N104: س100 | O104: ذكر | P104: مسلم | Q104: ناجح ومنقول | R104: (4 / 5) | S104: لا يوجد | T104: الخامس | U104: نصف العام | V104: آخر العام | W104: ص | X104: 5 | Y104: نهاية اللجنة
J105: 101 | K105: 601 | L105: 101 | M105: 480037544 | N105: س101 | O105: ذكر | P105: مسلم | Q105: ناجح ومنقول | R105: (2 / 5) | S105: لا يوجد | T105: الخامس | U105: نصف العام | V105: آخر العام | W105: ص | X105: 6
J106: 102 | K106: 602 | L106: 102 | M106: 482264834 | N106: س102 | O106: ذكر | P106: مسلم | Q106: ناجح ومنقول | R106: (1 / 5) | S106: لا يوجد | T106: الخامس | U106: نصف العام | V106: آخر العام | W106: ص | X106: 6
J107: 103 | K107: 603 | L107: 103 | M107: 480297349 | N107: س103 | O107: ذكر | P107: مسلم | Q107: ناجح ومنقول | R107: (1 / 5) | S107: لا يوجد | T107: الخامس | U107: نصف العام | V107: آخر العام | W107: ص | X107: 6
J108: 104 | K108: 604 | L108: 104 | M108: 491458568 | N108: س104 | O108: ذكر | P108: مسلم | Q108: ناجح ومنقول | R108: (4 / 5) | S108: لا يوجد | T108: الخامس | U108: نصف العام | V108: آخر العام | W108: ص | X108: 6
J109: 105 | K109: 605 | L109: 105 | M109: 480324398 | N109: س105 | O109: ذكر | P109: مسلم | Q109: ناجح ومنقول | R109: (1 / 5) | S109: لا يوجد | T109: الخامس | U109: نصف العام | V109: آخر العام | W109: ص | X109: 6
J110: 106 | K110: 606 | L110: 106 | M110: 480325200 | N110: س106 | O110: ذكر | P110: مسلم | Q110: ناجح ومنقول | R110: (2 / 5) | S110: لا يوجد | T110: الخامس | U110: نصف العام | V110: آخر العام | W110: ص | X110: 6
J111: 107 | K111: 607 | L111: 107 | M111: 478983217 | N111: س107 | O111: ذكر | P111: مسلم | Q111: ناجح ومنقول | R111: (4 / 5) | S111: لا يوجد | T111: الخامس | U111: نصف العام | V111: آخر العام | W111: ص | X111: 6
J112: 108 | K112: 608 | L112: 108 | M112: 480287629 | N112: س108 | O112: أنثى | P112: مسلمة | Q112: ناجح ومنقول | R112: (2 / 5) | S112: لا يوجد | T112: الخامس | U112: نصف العام | V112: آخر العام | W112: ص | X112: 6
J113: 109 | K113: 609 | L113: 109 | M113: 480268264 | N113: س109 | O113: أنثى | P113: مسلمة | Q113: ناجح ومنقول | R113: (4 / 5) | S113: لا يوجد | T113: الخامس | U113: نصف العام | V113: آخر العام | W113: ص | X113: 6
J114: 110 | K114: 610 | L114: 110 | M114: 480312241 | N114: س110 | O114: أنثى | P114: مسلمة | Q114: ناجح ومنقول | R114: (2 / 5) | S114: لا يوجد | T114: الخامس | U114: نصف العام | V114: آخر العام | W114: ص | X114: 6
J115: 111 | K115: 611 | L115: 111 | M115: 480285455 | N115: س111 | O115: أنثى | P115: مسيحية | Q115: ناجح ومنقول | R115: (2 / 5) | S115: لا يوجد | T115: الخامس | U115: نصف العام | V115: آخر العام | W115: ص | X115: 6
J116: 112 | K116: 612 | L116: 112 | M116: 477599609 | N116: س112 | O116: أنثى | P116: مسلمة | Q116: ناجح ومنقول | R116: (2 / 5) | S116: لا يوجد | T116: الخامس | U116: نصف العام | V116: آخر العام | W116: ص | X116: 6
J117: 113 | K117: 613 | L117: 113 | M117: 480311469 | N117: س113 | O117: أنثى | P117: مسلمة | Q117: ناجح ومنقول | R117: (2 / 5) | S117: لا يوجد | T117: الخامس | U117: نصف العام | V117: آخر العام | W117: ص | X117: 6
J118: 114 | K118: 614 | L118: 114 | M118: 480267586 | N118: س114 | O118: أنثى | P118: مسلمة | Q118: ناجح ومنقول | R118: (2 / 5) | S118: لا يوجد | T118: الخامس | U118: نصف العام | V118: آخر العام | W118: ص | X118: 6
J119: 115 | K119: 615 | L119: 115 | M119: 480268207 | N119: س115 | O119: أنثى | P119: مسلمة | Q119: ناجح ومنقول | R119: (2 / 5) | S119: لا يوجد | T119: الخامس | U119: نصف العام | V119: آخر العام | W119: ص | X119: 6
J120: 116 | K120: 616 | L120: 116 | M120: 480288104 | N120: س116 | O120: أنثى | P120: مسلمة | Q120: ناجح ومنقول | R120: (1 / 5) | S120: لا يوجد | T120: الخامس | U120: نصف العام | V120: آخر العام | W120: ص | X120: 6
J121: 117 | K121: 617 | L121: 117 | M121: 472281776 | N121: س117 | O121: أنثى | P121: مسلمة | Q121: ناجح ومنقول | R121: (2 / 5) | S121: لا يوجد | T121: الخامس | U121: نصف العام | V121: آخر العام | W121: ص | X121: 6
J122: 118 | K122: 618 | L122: 118 | M122: 483001776 | N122: س118 | O122: أنثى | P122: مسلمة | Q122: ناجح ومنقول | R122: (1 / 5) | S122: لا يوجد | T122: الخامس | U122: نصف العام | V122: آخر العام | W122: ص | X122: 6
J123: 119 | K123: 619 | L123: 119 | M123: 480328548 | N123: س119 | O123: أنثى | P123: مسلمة | Q123: ناجح ومنقول | R123: (1 / 5) | S123: لا يوجد | T123: الخامس | U123: نصف العام | V123: آخر العام | W123: ص | X123: 6
J124: 120 | K124: 620 | L124: 120 | M124: 480288057 | N124: س120 | O124: أنثى | P124: مسلمة | Q124: ناجح ومنقول | R124: (1 / 5) | S124: لا يوجد | T124: الخامس | U124: نصف العام | V124: آخر العام | W124: ص | X124: 6 | Y124: نهاية اللجنة
J125: 121 | K125: 621 | L125: 121 | M125: 480266434 | N125: س121 | O125: أنثى | P125: مسلمة | Q125: ناجح ومنقول | R125: (1 / 5) | S125: لا يوجد | T125: الخامس | U125: نصف العام | V125: آخر العام | W125: ص | X125: 7
J126: 122 | K126: 622 | L126: 122 | M126: 472770997 | N126: س122 | O126: أنثى | P126: مسلمة | Q126: ناجح ومنقول | R126: (2 / 5) | S126: لا يوجد | T126: الخامس | U126: نصف العام | V126: آخر العام | W126: ص | X126: 7
J127: 123 | K127: 623 | L127: 123 | M127: 480266261 | N127: س123 | O127: أنثى | P127: مسلمة | Q127: ناجح ومنقول | R127: (4 / 5) | S127: لا يوجد | T127: الخامس | U127: نصف العام | V127: آخر العام | W127: ص | X127: 7
J128: 124 | K128: 624 | L128: 124 | M128: 480267345 | N128: س124 | O128: أنثى | P128: مسلمة | Q128: ناجح ومنقول | R128: (2 / 5) | S128: لا يوجد | T128: الخامس | U128: نصف العام | V128: آخر العام | W128: ص | X128: 7
J129: 125 | K129: 625 | L129: 125 | M129: 480329318 | N129: س125 | O129: أنثى | P129: مسلمة | Q129: ناجح ومنقول | R129: (3 / 5) | S129: لا يوجد | T129: الخامس | U129: نصف العام | V129: آخر العام | W129: ص | X129: 7
J130: 126 | K130: 626 | L130: 126 | M130: 480304032 | N130: س126 | O130: أنثى | P130: مسلمة | Q130: ناجح ومنقول | R130: (2 / 5) | S130: لا يوجد | T130: الخامس | U130: نصف العام | V130: آخر العام | W130: ص | X130: 7
J131: 127 | K131: 627 | L131: 127 | M131: 480311742 | N131: س127 | O131: أنثى | P131: مسلمة | Q131: ناجح ومنقول | R131: (3 / 5) | S131: لا يوجد | T131: الخامس | U131: نصف العام | V131: آخر العام | W131: ص | X131: 7
J132: 128 | K132: 628 | L132: 128 | M132: 480330339 | N132: س128 | O132: أنثى | P132: مسلمة | Q132: ناجح ومنقول | R132: (4 / 5) | S132: لا يوجد | T132: الخامس | U132: نصف العام | V132: آخر العام | W132: ص | X132: 7
J133: 129 | K133: 629 | L133: 129 | M133: 480327977 | N133: س129 | O133: أنثى | P133: مسلمة | Q133: ناجح ومنقول | R133: (4 / 5) | S133: لا يوجد | T133: الخامس | U133: نصف العام | V133: آخر العام | W133: ص | X133: =IF(K133="","",VLOOKUP(K133,جلوس,4)) -> 7
J134: =IF(J133="","",IF(J133+1>$K$2,"",J133+1)) -> 130 | K134: 630 | L134: 130 | M134: 480309385 | N134: س130 | O134: أنثى | P134: مسلمة | Q134: ناجح ومنقول | R134: (4 / 5) | S134: لا يوجد | T134: الخامس | U134: نصف العام | V134: آخر العام | W134: ص | X134: 7 | Y134: =IF(X134=X135,"","نهاية اللجنة") -> 
J135: 131 | K135: =IF(K134="","",IF(K134+1>$K$3,"",K134+1)) -> 631 | L135: 131 | M135: 480287693 | N135: س131 | O135: أنثى | P135: مسلمة | Q135: ناجح ومنقول | R135: (1 / 5) | S135: لا يوجد | T135: الخامس | U135: نصف العام | V135: آخر العام | W135: ص | X135: 7
J136: 132 | K136: 632 | L136: 132 | M136: 472771329 | N136: س132 | O136: أنثى | P136: مسلمة | Q136: ناجح ومنقول | R136: (2 / 5) | S136: لا يوجد | T136: الخامس | U136: نصف العام | V136: آخر العام | W136: ص | X136: 7
J137: 133 | K137: 633 | L137: 133 | M137: 480307700 | N137: س133 | O137: أنثى | P137: مسلمة | Q137: ناجح ومنقول | R137: (4 / 5) | S137: لا يوجد | T137: الخامس | U137: نصف العام | V137: آخر العام | W137: ص | X137: 7
J138: 134 | K138: 634 | L138: 134 | M138: 480268578 | N138: س134 | O138: أنثى | P138: مسلمة | Q138: ناجح ومنقول | R138: (3 / 5) | S138: لا يوجد | T138: الخامس | U138: نصف العام | V138: آخر العام | W138: ص | X138: 7
J139: 135 | K139: 635 | L139: 135 | M139: 478665490 | N139: س135 | O139: أنثى | P139: مسلمة | Q139: ناجح ومنقول | R139: (1 / 5) | S139: لا يوجد | T139: الخامس | U139: نصف العام | V139: آخر العام | W139: ص | X139: 7
J140: 136 | K140: 636 | L140: 136 | M140: 480328858 | N140: س136 | O140: أنثى | P140: مسلمة | Q140: ناجح ومنقول | R140: (4 / 5) | S140: لا يوجد | T140: الخامس | U140: نصف العام | V140: آخر العام | W140: ص | X140: 7
J141: 137 | K141: 637 | L141: 137 | M141: 480287426 | N141: س137 | O141: أنثى | P141: مسلمة | Q141: ناجح ومنقول | R141: (2 / 5) | S141: لا يوجد | T141: الخامس | U141: نصف العام | V141: آخر العام | W141: ص | X141: 7
J142: 138 | K142: 638 | L142: 138 | M142: 480329953 | N142: س138 | O142: أنثى | P142: مسلمة | Q142: ناجح ومنقول | R142: (2 / 5) | S142: لا يوجد | T142: الخامس | U142: نصف العام | V142: آخر العام | W142: ص | X142: 7
J143: 139 | K143: 639 | L143: 139 | M143: 480278407 | N143: س139 | O143: أنثى | P143: مسلمة | Q143: ناجح ومنقول | R143: (2 / 5) | S143: لا يوجد | T143: الخامس | U143: نصف العام | V143: آخر العام | W143: ص | X143: 7
J144: 140 | K144: 640 | L144: 140 | M144: 480268791 | N144: س140 | O144: أنثى | P144: مسلمة | Q144: ناجح ومنقول | R144: (1 / 5) | S144: لا يوجد | T144: الخامس | U144: نصف العام | V144: آخر العام | W144: ص | X144: 7 | Y144: نهاية اللجنة
J145: 141 | K145: 641 | L145: 141 | M145: 480266590 | N145: س141 | O145: أنثى | P145: مسلمة | Q145: ناجح ومنقول | R145: (2 / 5) | S145: لا يوجد | T145: الخامس | U145: نصف العام | V145: آخر العام | W145: ص | X145: 8
J146: 142 | K146: 642 | L146: 142 | M146: 481250833 | N146: س142 | O146: أنثى | P146: مسلمة | Q146: ناجح ومنقول | R146: (2 / 5) | S146: لا يوجد | T146: الخامس | U146: نصف العام | V146: آخر العام | W146: ص | X146: 8
J147: 143 | K147: 643 | L147: 143 | M147: 480268141 | N147: س143 | O147: أنثى | P147: مسلمة | Q147: ناجح ومنقول | R147: (2 / 5) | S147: لا يوجد | T147: الخامس | U147: نصف العام | V147: آخر العام | W147: ص | X147: 8
J148: 144 | K148: 644 | L148: 144 | M148: 481190852 | N148: س144 | O148: أنثى | P148: مسلمة | Q148: ناجح ومنقول | R148: (1 / 5) | S148: لا يوجد | T148: الخامس | U148: نصف العام | V148: آخر العام | W148: ص | X148: 8
J149: 145 | K149: 645 | L149: 145 | M149: 479609162 | N149: س145 | O149: أنثى | P149: مسلمة | Q149: ناجح ومنقول | R149: (2 / 5) | S149: لا يوجد | T149: الخامس | U149: نصف العام | V149: آخر العام | W149: ص | X149: 8
J150: 146 | K150: 646 | L150: 146 | M150: 480287363 | N150: س146 | O150: أنثى | P150: مسلمة | Q150: ناجح ومنقول | R150: (4 / 5) | S150: لا يوجد | T150: الخامس | U150: نصف العام | V150: آخر العام | W150: ص | X150: 8
J151: 147 | K151: 647 | L151: 147 | M151: 480287494 | N151: س147 | O151: أنثى | P151: مسلمة | Q151: ناجح ومنقول | R151: (3 / 5) | S151: لا يوجد | T151: الخامس | U151: نصف العام | V151: آخر العام | W151: ص | X151: 8
J152: 148 | K152: 648 | L152: 148 | M152: 480313042 | N152: س148 | O152: أنثى | P152: مسلمة | Q152: ناجح ومنقول | R152: (2 / 5) | S152: لا يوجد | T152: الخامس | U152: نصف العام | V152: آخر العام | W152: ص | X152: 8
J153: 149 | K153: 649 | L153: 149 | M153: 480330451 | N153: س149 | O153: أنثى | P153: مسلمة | Q153: ناجح ومنقول | R153: (3 / 5) | S153: لا يوجد | T153: الخامس | U153: نصف العام | V153: آخر العام | W153: ص | X153: 8
J154: 150 | K154: 650 | L154: 150 | M154: 480329780 | N154: س150 | O154: أنثى | P154: مسلمة | Q154: ناجح ومنقول | R154: (3 / 5) | S154: لا يوجد | T154: الخامس | U154: نصف العام | V154: آخر العام | W154: ص | X154: 8
J155: 151 | K155: 651 | L155: 151 | M155: 480312830 | N155: س151 | O155: أنثى | P155: مسلمة | Q155: ناجح ومنقول | R155: (4 / 5) | S155: لا يوجد | T155: الخامس | U155: نصف العام | V155: آخر العام | W155: ص | X155: 8
J156: 152 | K156: 652 | L156: 152 | M156: 480329870 | N156: س152 | O156: أنثى | P156: مسلمة | Q156: ناجح ومنقول | R156: (3 / 5) | S156: لا يوجد | T156: الخامس | U156: نصف العام | V156: آخر العام | W156: ص | X156: 8
J157: 153 | K157: 653 | L157: 153 | M157: 480287752 | N157: س153 | O157: أنثى | P157: مسلمة | Q157: ناجح ومنقول | R157: (1 / 5) | S157: لا يوجد | T157: الخامس | U157: نصف العام | V157: آخر العام | W157: ص | X157: 8
J158: 154 | K158: 654 | L158: 154 | M158: 480309998 | N158: س154 | O158: أنثى | P158: مسلمة | Q158: ناجح ومنقول | R158: (4 / 5) | S158: لا يوجد | T158: الخامس | U158: نصف العام | V158: آخر العام | W158: ص | X158: 8
J159: 155 | K159: 655 | L159: 155 | M159: 481190624 | N159: س155 | O159: أنثى | P159: مسلمة | Q159: ناجح ومنقول | R159: (1 / 5) | S159: لا يوجد | T159: الخامس | U159: نصف العام | V159: آخر العام | W159: ص | X159: 8
J160: 156 | K160: 656 | L160: 156 | M160: 480330105 | N160: س156 | O160: أنثى | P160: مسلمة | Q160: ناجح ومنقول | R160: (3 / 5) | S160: لا يوجد | T160: الخامس | U160: نصف العام | V160: آخر العام | W160: ص | X160: 8
J161: 157 | K161: 657 | L161: 157 | M161: 480308045 | N161: س157 | O161: أنثى | P161: مسلمة | Q161: ناجح ومنقول | R161: (4 / 5) | S161: لا يوجد | T161: الخامس | U161: نصف العام | V161: آخر العام | W161: ص | X161: 8
J162: 158 | K162: 658 | L162: 158 | M162: 473728128 | N162: س158 | O162: أنثى | P162: مسلمة | Q162: ناجح ومنقول | R162: (2 / 5) | S162: لا يوجد | T162: الخامس | U162: نصف العام | V162: آخر العام | W162: ص | X162: 8
J163: 159 | K163: 659 | L163: 159 | M163: 480330779 | N163: س159 | O163: أنثى | P163: مسلمة | Q163: ناجح ومنقول | R163: (4 / 5) | S163: لا يوجد | T163: الخامس | U163: نصف العام | V163: آخر العام | W163: ص | X163: 8
J164: 160 | K164: 660 | L164: 160 | M164: 479817461 | N164: س160 | O164: أنثى | P164: مسلمة | Q164: ناجح ومنقول | R164: (4 / 5) | S164: لا يوجد | T164: الخامس | U164: نصف العام | V164: آخر العام | W164: ص | X164: 8 | Y164: نهاية اللجنة
J165: 161 | K165: 661 | L165: 161 | M165: 480289452 | N165: س161 | O165: أنثى | P165: مسلمة | Q165: ناجح ومنقول | R165: (4 / 5) | S165: لا يوجد | T165: الخامس | U165: نصف العام | V165: آخر العام | W165: ص | X165: 9
J166: 162 | K166: 662 | L166: 162 | M166: 480305654 | N166: س162 | O166: أنثى | P166: مسلمة | Q166: ناجح ومنقول | R166: (4 / 5) | S166: لا يوجد | T166: الخامس | U166: نصف العام | V166: آخر العام | W166: ص | X166: 9
J167: 163 | K167: 663 | L167: 163 | M167: 480288253 | N167: س163 | O167: أنثى | P167: مسلمة | Q167: ناجح ومنقول | R167: (1 / 5) | S167: لا يوجد | T167: الخامس | U167: نصف العام | V167: آخر العام | W167: ص | X167: 9
J168: 164 | K168: 664 | L168: 164 | M168: 480310148 | N168: س164 | O168: أنثى | P168: مسلمة | Q168: ناجح ومنقول | R168: (4 / 5) | S168: لا يوجد | T168: الخامس | U168: نصف العام | V168: آخر العام | W168: ص | X168: 9
J169: 165 | K169: 665 | L169: 165 | M169: 480266338 | N169: س165 | O169: أنثى | P169: مسلمة | Q169: ناجح ومنقول | R169: (2 / 5) | S169: لا يوجد | T169: الخامس | U169: نصف العام | V169: آخر العام | W169: ص | X169: 9
J170: 166 | K170: 666 | L170: 166 | N170: س166 | O170: أنثى | P170: مسلمة | Q170: ناجح ومنقول | R170: (2 / 5) | S170: لا يوجد | T170: الخامس | U170: نصف العام | V170: آخر العام | W170: ص | X170: 9
J171: 167 | K171: 667 | L171: 167 | M171: 480268451 | N171: س167 | O171: أنثى | P171: مسلمة | Q171: ناجح ومنقول | R171: (2 / 5) | S171: لا يوجد | T171: الخامس | U171: نصف العام | V171: آخر العام | W171: ص | X171: 9
J172: 168 | K172: 668 | L172: 168 | M172: 480269135 | N172: س168 | O172: أنثى | P172: مسلمة | Q172: ناجح ومنقول | R172: (2 / 5) | S172: لا يوجد | T172: الخامس | U172: نصف العام | V172: آخر العام | W172: ص | X172: 9
J173: 169 | K173: 669 | L173: 169 | M173: 480306377 | N173: س169 | O173: أنثى | P173: مسلمة | Q173: ناجح ومنقول | R173: (4 / 5) | S173: لا يوجد | T173: الخامس | U173: نصف العام | V173: آخر العام | W173: ص | X173: 9
J174: 170 | K174: 670 | L174: 170 | M174: 480267846 | N174: س170 | O174: أنثى | P174: مسلمة | Q174: ناجح ومنقول | R174: (4 / 5) | S174: لا يوجد | T174: الخامس | U174: نصف العام | V174: آخر العام | W174: ص | X174: 9
J175: 171 | K175: 671 | L175: 171 | M175: 480268027 | N175: س171 | O175: أنثى | P175: مسلمة | Q175: ناجح ومنقول | R175: (4 / 5) | S175: لا يوجد | T175: الخامس | U175: نصف العام | V175: آخر العام | W175: ص | X175: 9
J176: 172 | K176: 672 | L176: 172 | M176: 472375791 | N176: س172 | O176: أنثى | P176: مسلمة | Q176: ناجح ومنقول | R176: (3 / 5) | S176: لا يوجد | T176: الخامس | U176: نصف العام | V176: آخر العام | W176: ص | X176: 9
J177: 173 | K177: 673 | L177: 173 | M177: 480268398 | N177: س173 | O177: أنثى | P177: مسلمة | Q177: ناجح ومنقول | R177: (1 / 5) | S177: لا يوجد | T177: الخامس | U177: نصف العام | V177: آخر العام | W177: ص | X177: 9
J178: 174 | K178: 674 | L178: 174 | M178: 482085519 | N178: س174 | O178: أنثى | P178: مسلمة | Q178: ناجح ومنقول | R178: (4 / 5) | S178: لا يوجد | T178: الخامس | U178: نصف العام | V178: آخر العام | W178: ص | X178: 9
J179: 175 | K179: 675 | L179: 175 | M179: 480312669 | N179: س175 | O179: أنثى | P179: مسلمة | Q179: ناجح ومنقول | R179: (1 / 5) | S179: لا يوجد | T179: الخامس | U179: نصف العام | V179: آخر العام | W179: ص | X179: 9
J180: 176 | K180: 676 | L180: 176 | M180: 480266702 | N180: س176 | O180: أنثى | P180: مسلمة | Q180: ناجح ومنقول | R180: (4 / 5) | S180: لا يوجد | T180: الخامس | U180: نصف العام | V180: آخر العام | W180: ص | X180: 9
J181: 177 | K181: 677 | L181: 177 | M181: 486353580 | N181: س177 | O181: أنثى | P181: مسلمة | Q181: ناجح ومنقول | R181: (2 / 5) | S181: لا يوجد | T181: الخامس | U181: نصف العام | V181: آخر العام | W181: ص | X181: 9
J182: 178 | K182: 678 | L182: 178 | M182: 480302645 | N182: س178 | O182: أنثى | P182: مسلمة | Q182: ناجح ومنقول | R182: (4 / 5) | S182: لا يوجد | T182: الخامس | U182: نصف العام | V182: آخر العام | W182: ص | X182: 9
J183: 179 | K183: 679 | L183: 179 | M183: 476295525 | N183: س179 | O183: أنثى | P183: مسلمة | Q183: ناجح ومنقول | R183: (2 / 5) | S183: لا يوجد | T183: الخامس | U183: نصف العام | V183: آخر العام | W183: ص | X183: 9
J184: 180 | K184: 680 | L184: 180 | M184: 480268516 | N184: س180 | O184: أنثى | P184: مسلمة | Q184: ناجح ومنقول | R184: (2 / 5) | S184: لا يوجد | T184: الخامس | U184: نصف العام | V184: آخر العام | W184: ص | X184: 9 | Y184: نهاية اللجنة
J185: 181 | K185: 681 | L185: 181 | M185: 472944720 | N185: س181 | O185: أنثى | P185: مسلمة | Q185: ناجح ومنقول | R185: (1 / 5) | S185: لا يوجد | T185: الخامس | U185: نصف العام | V185: آخر العام | W185: ص | X185: 10
J186: 182 | K186: 682 | L186: 182 | M186: 480309211 | N186: س182 | O186: أنثى | P186: مسلمة | Q186: ناجح ومنقول | R186: (4 / 5) | S186: لا يوجد | T186: الخامس | U186: نصف العام | V186: آخر العام | W186: ص | X186: 10
J187: 183 | K187: 683 | L187: 183 | M187: 480327616 | N187: س183 | O187: أنثى | P187: مسلمة | Q187: ناجح ومنقول | R187: (4 / 5) | S187: لا يوجد | T187: الخامس | U187: نصف العام | V187: آخر العام | W187: ص | X187: 10
J188: 184 | K188: 684 | L188: 184 | M188: 480302233 | N188: س184 | O188: أنثى | P188: مسلمة | Q188: ناجح ومنقول | R188: (3 / 5) | S188: لا يوجد | T188: الخامس | U188: نصف العام | V188: آخر العام | W188: ص | X188: 10
J189: 185 | K189: 685 | L189: 185 | M189: 480330262 | N189: س185 | O189: أنثى | P189: مسلمة | Q189: ناجح ومنقول | R189: (4 / 5) | S189: لا يوجد | T189: الخامس | U189: نصف العام | V189: آخر العام | W189: ص | X189: 10
J190: 186 | K190: 686 | L190: 186 | M190: 481704844 | N190: س186 | O190: أنثى | P190: مسلمة | Q190: ناجح ومنقول | R190: (4 / 5) | S190: لا يوجد | T190: الخامس | U190: نصف العام | V190: آخر العام | W190: ص | X190: 10
J191: 187 | K191: 687 | L191: 187 | M191: 480287892 | N191: س187 | O191: أنثى | P191: مسلمة | Q191: ناجح ومنقول | R191: (1 / 5) | S191: لا يوجد | T191: الخامس | U191: نصف العام | V191: آخر العام | W191: ص | X191: 10
J192: 188 | K192: 688 | L192: 188 | M192: 480268744 | N192: س188 | O192: أنثى | P192: مسلمة | Q192: ناجح ومنقول | R192: (3 / 5) | S192: لا يوجد | T192: الخامس | U192: نصف العام | V192: آخر العام | W192: ص | X192: 10
J193: 189 | K193: 689 | L193: 189 | M193: 480287942 | N193: س189 | O193: أنثى | P193: مسلمة | Q193: ناجح ومنقول | R193: (4 / 5) | S193: لا يوجد | T193: الخامس | U193: نصف العام | V193: آخر العام | W193: ص | X193: 10
J194: 190 | K194: 690 | L194: 190 | M194: 479675469 | N194: س190 | O194: أنثى | P194: مسلمة | Q194: ناجح ومنقول | R194: (3 / 5) | S194: لا يوجد | T194: الخامس | U194: نصف العام | V194: آخر العام | W194: ص | X194: 10
J195: 191 | K195: 691 | L195: 191 | M195: 480313270 | N195: س191 | O195: أنثى | P195: مسلمة | Q195: ناجح ومنقول | R195: (3 / 5) | S195: لا يوجد | T195: الخامس | U195: نصف العام | V195: آخر العام | W195: ص | X195: 10
J196: 192 | K196: 692 | L196: 192 | N196: س192 | O196: أنثى | P196: مسلمة | Q196: ناجح ومنقول | R196: (3 / 5) | S196: لا يوجد | T196: الخامس | U196: نصف العام | V196: آخر العام | W196: ص | X196: 10
J197: 193 | K197: 693 | L197: 193 | M197: 480267503 | N197: س193 | O197: أنثى | P197: مسلمة | Q197: ناجح ومنقول | R197: (4 / 5) | S197: لا يوجد | T197: الخامس | U197: نصف العام | V197: آخر العام | W197: ص | X197: =IF(K197="","",VLOOKUP(K197,جلوس,4)) -> 10
J198: =IF(J197="","",IF(J197+1>$K$2,"",J197+1)) -> 194 | K198: 694 | L198: 194 | M198: 480328198 | N198: س194 | O198: أنثى | P198: مسلمة | Q198: ناجح ومنقول | R198: (3 / 5) | S198: لا يوجد | T198: الخامس | U198: نصف العام | V198: آخر العام | W198: ص | X198: 10 | Y198: =IF(X198=X199,"","نهاية اللجنة") -> 
J199: 195 | K199: =IF(K198="","",IF(K198+1>$K$3,"",K198+1)) -> 695 | L199: 195 | M199: 472375968 | N199: س195 | O199: أنثى | P199: مسلمة | Q199: ناجح ومنقول | R199: (1 / 5) | S199: لا يوجد | T199: الخامس | U199: نصف العام | V199: آخر العام | W199: ص | X199: 10
J200: 196 | K200: 696 | L200: 196 | M200: 480329229 | N200: س196 | O200: أنثى | P200: مسلمة | Q200: ناجح ومنقول | R200: (2 / 5) | S200: لا يوجد | T200: الخامس | U200: نصف العام | V200: آخر العام | W200: ص | X200: 10
... 31 more rows

Sheet Sheet2
D1: الصف الرابع الابتدائي | N1: اكتب فى الخلايا ذات اللون الابيض فقط
J2: العدد | K2: =SUM(G5:G44) -> 215
D3: م | E3: اكتب اول رقم جلوس | G3: =SUM(G5:G44) -> 215 | H3: =COUNT(H5:H44) -> 11 | J3: أعلى رقم | K3: =MAX(E5:F44) -> 615 | X3: =COUNT(K5:K297) -> 215 | Y3: =COUNTA(N5:N297) -> 215
E4: من | F4: إلى | G4: عدد اللجنة | H4: اللجنة | J4: م | K4: رقم الجلوس | L4: م | M4: كود | N4: الاسم | O4: النوع | P4: الديانة | Q4: حالة القيد | R4: الفصل | S4: الدمج | T4: الصف | U4: الترم الأول | V4: الترم الثاني | W4: الصورة | X4: اللجنة | Y4: نهاية اللجنة
B5: مقيد | C5: =COUNTA(N5:N297) -> 215 | D5: =IF(E5="","",COUNT($E$5:E5)) -> 1 | E5: 401 | F5: =IF(G5="","",E5+G5-1) -> 420 | G5: 20 | H5: =IF(E5="","",COUNT($E$5:E5)) -> 1 | J5: 1 | K5: =$E$5 -> 401 | L5: 1 | M5: 476196843 | N5: ص1 | O5: ذكر | P5: مسلم | Q5: ناجح ومنقول | R5: (2 / 4) | S5: لا يوجد | T5: الرابع | U5: نصف العام | V5: آخر العام | W5: م | X5: =IF(K5="","",VLOOKUP(K5,جلوس,4)) -> 1 | Y5: =IF(X5=X6,"","نهاية اللجنة") -> 
B6: موزع | C6: =SUM(G5:G44) -> 215 | D6: =IF(E6="","",COUNT($E$5:E6)) -> 2 | E6: =IF(G6="","",F5+1) -> 421 | F6: =IF(G6="","",E6+G6-1) -> 440 | G6: 20 | H6: =IF(E6="","",COUNT($E$5:E6)) -> 2 | J6: =IF(J5="","",IF(J5+1>$K$2,"",J5+1)) -> 2 | K6: =IF(K5="","",IF(K5+1>$K$3,"",K5+1)) -> 402 | L6: 2 | M6: 480678994 | N6: ص2 | O6: ذكر | P6: مسلم | Q6: ناجح ومنقول | R6: (3 / 4) | S6: لا يوجد | T6: الرابع | U6: نصف العام | V6: آخر العام | W6: م | X6: 1 | Y6: =IF(X6=X7,"","نهاية اللجنة") -> 
B7: متبقى | C7: =C5-C6 -> 0 | D7: =IF(E7="","",COUNT($E$5:E7)) -> 3 | E7: =IF(G7="","",F6+1) -> 441 | F7: 460 | G7: 20 | H7: =IF(E7="","",COUNT($E$5:E7)) -> 3 | J7: 3 | K7: =IF(K6="","",IF(K6+1>$K$3,"",K6+1)) -> 403 | L7: 3 | M7: 480674486 | N7: ص3 | O7: ذكر | P7: مسلم | Q7: ناجح ومنقول | R7: (4 / 4) | S7: لا يوجد | T7: الرابع | U7: نصف العام | V7: آخر العام | W7: م | X7: 1
D8: =IF(E8="","",COUNT($E$5:E8)) -> 4 | E8: 461 | F8: 480 | G8: 20 | H8: =IF(E8="","",COUNT($E$5:E8)) -> 4 | J8: 4 | K8: 404 | L8: 4 | M8: 480676112 | N8: ص4 | O8: ذكر | P8: مسلم | Q8: ناجح ومنقول | R8: (3 / 4) | S8: لا يوجد | T8: الرابع | U8: نصف العام | V8: آخر العام | W8: م | X8: 1
C9: ذكر | D9: =IF(E9="","",COUNT($E$5:E9)) -> 5 | E9: 481 | F9: 500 | G9: 20 | H9: =IF(E9="","",COUNT($E$5:E9)) -> 5 | J9: 5 | K9: 405 | L9: 5 | M9: 483952849 | N9: ص5 | O9: ذكر | P9: مسلم | Q9: ناجح ومنقول | R9: (1 / 4) | S9: لا يوجد | T9: الرابع | U9: نصف العام | V9: آخر العام | W9: م | X9: 1
C10: انثى | D10: =IF(E10="","",COUNT($E$5:E10)) -> 6 | E10: 501 | F10: 520 | G10: 20 | H10: =IF(E10="","",COUNT($E$5:E10)) -> 6 | J10: 6 | K10: 406 | L10: 6 | M10: 483475815 | N10: ص6 | O10: ذكر | P10: مسلم | Q10: ناجح ومنقول | R10: (4 / 4) | S10: لا يوجد | T10: الرابع | U10: نصف العام | V10: آخر العام | W10: م | X10: 1
D11: =IF(E11="","",COUNT($E$5:E11)) -> 7 | E11: 521 | F11: 540 | G11: 20 | H11: =IF(E11="","",COUNT($E$5:E11)) -> 7 | J11: 7 | K11: 407 | L11: 7 | M11: 481435291 | N11: ص7 | O11: ذكر | P11: مسلم | Q11: ناجح ومنقول | R11: (3 / 4) | S11: لا يوجد | T11: الرابع | U11: نصف العام | V11: آخر العام | W11: م | X11: 1
D12: =IF(E12="","",COUNT($E$5:E12)) -> 8 | E12: 541 | F12: 560 | G12: 20 | H12: =IF(E12="","",COUNT($E$5:E12)) -> 8 | J12: 8 | K12: 408 | L12: 8 | M12: 476196703 | N12: ص8 | O12: ذكر | P12: مسلم | Q12: ناجح ومنقول | R12: (3 / 4) | S12: لا يوجد | T12: الرابع | U12: نصف العام | V12: آخر العام | W12: م | X12: 1
D13: =IF(E13="","",COUNT($E$5:E13)) -> 9 | E13: 561 | F13: 580 | G13: 20 | H13: =IF(E13="","",COUNT($E$5:E13)) -> 9 | J13: 9 | K13: 409 | L13: 9 | M13: 477875902 | N13: ص9 | O13: ذكر | P13: مسلم | Q13: ناجح ومنقول | R13: (3 / 4) | S13: لا يوجد | T13: الرابع | U13: نصف العام | V13: آخر العام | W13: م | X13: 1
D14: =IF(E14="","",COUNT($E$5:E14)) -> 10 | E14: 581 | F14: 600 | G14: 20 | H14: =IF(E14="","",COUNT($E$5:E14)) -> 10 | J14: 10 | K14: 410 | L14: 10 | M14: 497449467 | N14: ص10 | O14: ذكر | P14: مسلم | Q14: ناجح ومنقول | R14: (3 / 4) | S14: لا يوجد | T14: الرابع | U14: نصف العام | V14: آخر العام | W14: م | X14: 1
D15: =IF(E15="","",COUNT($E$5:E15)) -> 11 | E15: 601 | F15: 615 | G15: 15 | H15: =IF(E15="","",COUNT($E$5:E15)) -> 11 | J15: 11 | K15: 411 | L15: 11 | M15: 482597667 | N15: ص11 | O15: ذكر | P15: مسلم | Q15: ناجح ومنقول | R15: (2 / 4) | S15: لا يوجد | T15: الرابع | U15: نصف العام | V15: آخر العام | W15: م | X15: 1
D16: =IF(E16="","",COUNT($E$5:E16)) ->  | H16: =IF(E16="","",COUNT($E$5:E16)) ->  | J16: 12 | K16: 412 | L16: 12 | M16: 483253353 | N16: ص12 | O16: ذكر | P16: مسلم | Q16: ناجح ومنقول | R16: (1 / 4) | S16: لا يوجد | T16: الرابع | U16: نصف العام | V16: آخر العام | W16: م | X16: 1
D17: =IF(E17="","",COUNT($E$5:E17)) ->  | H17: =IF(E17="","",COUNT($E$5:E17)) ->  | J17: 13 | K17: 413 | L17: 13 | M17: 476196877 | N17: ص13 | O17: ذكر | P17: مسلم | Q17: ناجح ومنقول | R17: (2 / 4) | S17: لا يوجد | T17: الرابع | U17: نصف العام | V17: آخر العام | W17: م | X17: 1
D18: =IF(E18="","",COUNT($E$5:E18)) ->  | H18: =IF(E18="","",COUNT($E$5:E18)) ->  | J18: 14 | K18: 414 | L18: 14 | M18: 480915540 | N18: ص14 | O18: ذكر | P18: مسلم | Q18: ناجح ومنقول | R18: (4 / 4) | S18: لا يوجد | T18: الرابع | U18: نصف العام | V18: آخر العام | W18: م | X18: 1
D19: =IF(E19="","",COUNT($E$5:E19)) ->  | H19: =IF(E19="","",COUNT($E$5:E19)) ->  | J19: 15 | K19: 415 | L19: 15 | M19: 483563953 | N19: ص15 | O19: ذكر | P19: مسلم | Q19: ناجح ومنقول | R19: (3 / 4) | S19: لا يوجد | T19: الرابع | U19: نصف العام | V19: آخر العام | W19: م | X19: 1
D20: =IF(E20="","",COUNT($E$5:E20)) ->  | H20: =IF(E20="","",COUNT($E$5:E20)) ->  | J20: 16 | K20: 416 | L20: 16 | M20: 477174890 | N20: ص16 | O20: ذكر | P20: مسلم | Q20: ناجح ومنقول | R20: (3 / 4) | S20: لا يوجد | T20: الرابع | U20: نصف العام | V20: آخر العام | W20: م | X20: 1
D21: =IF(E21="","",COUNT($E$5:E21)) ->  | H21: =IF(E21="","",COUNT($E$5:E21)) ->  | J21: 17 | K21: 417 | L21: 17 | M21: 480678477 | N21: ص17 | O21: ذكر | P21: مسلم | Q21: ناجح ومنقول | R21: (3 / 4) | S21: لا يوجد | T21: الرابع | U21: نصف العام | V21: آخر العام | W21: م | X21: 1
D22: =IF(E22="","",COUNT($E$5:E22)) ->  | H22: =IF(E22="","",COUNT($E$5:E22)) ->  | J22: 18 | K22: 418 | L22: 18 | M22: 481145452 | N22: ص18 | O22: ذكر | P22: مسلم | Q22: ناجح ومنقول | R22: (1 / 4) | S22: لا يوجد | T22: الرابع | U22: نصف العام | V22: آخر العام | W22: م | X22: 1
D23: =IF(E23="","",COUNT($E$5:E23)) ->  | H23: =IF(E23="","",COUNT($E$5:E23)) ->  | J23: 19 | K23: 419 | L23: 19 | M23: 475883203 | N23: ص19 | O23: ذكر | P23: مسلم | Q23: ناجح ومنقول | R23: (1 / 4) | S23: لا يوجد | T23: الرابع | U23: نصف العام | V23: آخر العام | W23: م | X23: 1
D24: =IF(E24="","",COUNT($E$5:E24)) ->  | H24: =IF(E24="","",COUNT($E$5:E24)) ->  | J24: 20 | K24: 420 | L24: 20 | M24: 483662193 | N24: ص20 | O24: ذكر | P24: مسلم | Q24: ناجح ومنقول | R24: (2 / 4) | S24: لا يوجد | T24: الرابع | U24: نصف العام | V24: آخر العام | W24: م | X24: 1 | Y24: نهاية اللجنة
D25: =IF(E25="","",COUNT($E$5:E25)) ->  | H25: =IF(E25="","",COUNT($E$5:E25)) ->  | J25: 21 | K25: 421 | L25: 21 | M25: 476270009 | N25: ص21 | O25: ذكر | P25: مسلم | Q25: ناجح ومنقول | R25: (1 / 4) | S25: لا يوجد | T25: الرابع | U25: نصف العام | V25: آخر العام | W25: م | X25: 2
D26: =IF(E26="","",COUNT($E$5:E26)) ->  | H26: =IF(E26="","",COUNT($E$5:E26)) ->  | J26: 22 | K26: 422 | L26: 22 | M26: 476269799 | N26: ص22 | O26: ذكر | P26: مسلم | Q26: ناجح ومنقول | R26: (3 / 4) | S26: لا يوجد | T26: الرابع | U26: نصف العام | V26: آخر العام | W26: م | X26: 2
D27: =IF(E27="","",COUNT($E$5:E27)) ->  | H27: =IF(E27="","",COUNT($E$5:E27)) ->  | J27: 23 | K27: 423 | L27: 23 | M27: 497449513 | N27: ص23 | O27: ذكر | P27: مسلم | Q27: ناجح ومنقول | R27: (3 / 4) | S27: لا يوجد | T27: الرابع | U27: نصف العام | V27: آخر العام | W27: م | X27: 2
D28: =IF(E28="","",COUNT($E$5:E28)) ->  | H28: =IF(E28="","",COUNT($E$5:E28)) ->  | J28: 24 | K28: 424 | L28: 24 | M28: 480674765 | N28: ص24 | O28: ذكر | P28: مسلم | Q28: ناجح ومنقول | R28: (2 / 4) | S28: لا يوجد | T28: الرابع | U28: نصف العام | V28: آخر العام | W28: م | X28: 2
D29: =IF(E29="","",COUNT($E$5:E29)) ->  | H29: =IF(E29="","",COUNT($E$5:E29)) ->  | J29: 25 | K29: 425 | L29: 25 | M29: 477725039 | N29: ص25 | O29: ذكر | P29: مسلم | Q29: ناجح ومنقول | R29: (2 / 4) | S29: لا يوجد | T29: الرابع | U29: نصف العام | V29: آخر العام | W29: م | X29: 2
D30: =IF(E30="","",COUNT($E$5:E30)) ->  | H30: =IF(E30="","",COUNT($E$5:E30)) ->  | J30: 26 | K30: 426 | L30: 26 | M30: 484246347 | N30: ص26 | O30: ذكر | P30: مسلم | Q30: ناجح ومنقول | R30: (1 / 4) | S30: لا يوجد | T30: الرابع | U30: نصف العام | V30: آخر العام | W30: م | X30: 2
D31: =IF(E31="","",COUNT($E$5:E31)) ->  | H31: =IF(E31="","",COUNT($E$5:E31)) ->  | J31: 27 | K31: 427 | L31: 27 | M31: 476196990 | N31: ص27 | O31: ذكر | P31: مسلم | Q31: ناجح ومنقول | R31: (4 / 4) | S31: لا يوجد | T31: الرابع | U31: نصف العام | V31: آخر العام | W31: م | X31: 2
D32: =IF(E32="","",COUNT($E$5:E32)) ->  | H32: =IF(E32="","",COUNT($E$5:E32)) ->  | J32: 28 | K32: 428 | L32: 28 | M32: 480677052 | N32: ص28 | O32: ذكر | P32: مسلم | Q32: ناجح ومنقول | R32: (4 / 4) | S32: لا يوجد | T32: الرابع | U32: نصف العام | V32: آخر العام | W32: م | X32: 2
D33: =IF(E33="","",COUNT($E$5:E33)) ->  | H33: =IF(E33="","",COUNT($E$5:E33)) ->  | J33: 29 | K33: 429 | L33: 29 | M33: 476196902 | N33: ص29 | O33: ذكر | P33: مسلم | Q33: ناجح ومنقول | R33: (4 / 4) | S33: لا يوجد | T33: الرابع | U33: نصف العام | V33: آخر العام | W33: م | X33: 2
D34: =IF(E34="","",COUNT($E$5:E34)) ->  | H34: =IF(E34="","",COUNT($E$5:E34)) ->  | J34: 30 | K34: 430 | L34: 30 | M34: 483455817 | N34: ص30 | O34: ذكر | P34: مسلم | Q34: ناجح ومنقول | R34: (3 / 4) | S34: لا يوجد | T34: الرابع | U34: نصف العام | V34: آخر العام | W34: م | X34: 2
D35: =IF(E35="","",COUNT($E$5:E35)) ->  | H35: =IF(E35="","",COUNT($E$5:E35)) ->  | J35: 31 | K35: 431 | L35: 31 | M35: 476270138 | N35: ص31 | O35: ذكر | P35: مسلم | Q35: ناجح ومنقول | R35: (2 / 4) | S35: لا يوجد | T35: الرابع | U35: نصف العام | V35: آخر العام | W35: م | X35: 2
D36: =IF(E36="","",COUNT($E$5:E36)) ->  | H36: =IF(E36="","",COUNT($E$5:E36)) ->  | J36: 32 | K36: 432 | L36: 32 | M36: 476271350 | N36: ص32 | O36: ذكر | P36: مسلم | Q36: ناجح ومنقول | R36: (2 / 4) | S36: لا يوجد | T36: الرابع | U36: نصف العام | V36: آخر العام | W36: م | X36: 2
D37: =IF(E37="","",COUNT($E$5:E37)) ->  | H37: =IF(E37="","",COUNT($E$5:E37)) ->  | J37: 33 | K37: 433 | L37: 33 | M37: 476197024 | N37: ص33 | O37: ذكر | P37: مسلم | Q37: ناجح ومنقول | R37: (2 / 4) | S37: لا يوجد | T37: الرابع | U37: نصف العام | V37: آخر العام | W37: م | X37: 2
D38: =IF(E38="","",COUNT($E$5:E38)) ->  | H38: =IF(E38="","",COUNT($E$5:E38)) ->  | J38: 34 | K38: 434 | L38: 34 | M38: 483852147 | N38: ص34 | O38: ذكر | P38: مسلم | Q38: ناجح ومنقول | R38: (2 / 4) | S38: لا يوجد | T38: الرابع | U38: نصف العام | V38: آخر العام | W38: م | X38: 2
D39: =IF(E39="","",COUNT($E$5:E39)) ->  | H39: =IF(E39="","",COUNT($E$5:E39)) ->  | J39: 35 | K39: 435 | L39: 35 | M39: 476373496 | N39: ص35 | O39: ذكر | P39: مسلم | Q39: ناجح ومنقول | R39: (3 / 4) | S39: لا يوجد | T39: الرابع | U39: نصف العام | V39: آخر العام | W39: م | X39: 2
D40: =IF(E40="","",COUNT($E$5:E40)) ->  | H40: =IF(E40="","",COUNT($E$5:E40)) ->  | J40: 36 | K40: 436 | L40: 36 | M40: 480324298 | N40: ص36 | O40: ذكر | P40: مسلم | Q40: راسب وباق للاعادة | R40: (4 / 4) | S40: لا يوجد | T40: الرابع | U40: نصف العام | V40: آخر العام | W40: م | X40: 2
D41: =IF(E41="","",COUNT($E$5:E41)) ->  | H41: =IF(E41="","",COUNT($E$5:E41)) ->  | J41: 37 | K41: 437 | L41: 37 | M41: 484411729 | N41: ص37 | O41: ذكر | P41: مسلم | Q41: ناجح ومنقول | R41: (3 / 4) | S41: لا يوجد | T41: الرابع | U41: نصف العام | V41: آخر العام | W41: م | X41: 2
D42: =IF(E42="","",COUNT($E$5:E42)) ->  | H42: =IF(E42="","",COUNT($E$5:E42)) ->  | J42: 38 | K42: 438 | L42: 38 | M42: 484139183 | N42: ص38 | O42: ذكر | P42: مسلم | Q42: ناجح ومنقول | R42: (1 / 4) | S42: لا يوجد | T42: الرابع | U42: نصف العام | V42: آخر العام | W42: م | X42: 2
D43: =IF(E43="","",COUNT($E$5:E43)) ->  | H43: =IF(E43="","",COUNT($E$5:E43)) ->  | J43: 39 | K43: 439 | L43: 39 | M43: 485179388 | N43: ص39 | O43: ذكر | P43: مسلم | Q43: ناجح ومنقول | R43: (2 / 4) | S43: لا يوجد | T43: الرابع | U43: نصف العام | V43: آخر العام | W43: م | X43: 2
D44: =IF(E44="","",COUNT($E$5:E44)) ->  | H44: =IF(E44="","",COUNT($E$5:E44)) ->  | J44: 40 | K44: 440 | L44: 40 | M44: 483553460 | N44: ص40 | O44: ذكر | P44: مسلم | Q44: ناجح ومنقول | R44: (4 / 1) | S44: لا يوجد | T44: الرابع | U44: نصف العام | V44: آخر العام | W44: م | X44: 2 | Y44: نهاية اللجنة
J45: 41 | K45: 441 | L45: 41 | M45: 480912317 | N45: ص41 | O45: ذكر | P45: مسلم | Q45: ناجح ومنقول | R45: (2 / 4) | S45: لا يوجد | T45: الرابع | U45: نصف العام | V45: آخر العام | W45: م | X45: 3
J46: 42 | K46: 442 | L46: 42 | M46: 476197070 | N46: ص42 | O46: ذكر | P46: مسلم | Q46: ناجح ومنقول | R46: (2 / 4) | S46: لا يوجد | T46: الرابع | U46: نصف العام | V46: آخر العام | W46: م | X46: 3
J47: 43 | K47: 443 | L47: 43 | M47: 483912988 | N47: ص43 | O47: ذكر | P47: مسلم | Q47: ناجح ومنقول | R47: (3 / 4) | S47: لا يوجد | T47: الرابع | U47: نصف العام | V47: آخر العام | W47: م | X47: 3
J48: 44 | K48: 444 | L48: 44 | M48: 483260162 | N48: ص44 | O48: ذكر | P48: مسلم | Q48: ناجح ومنقول | R48: (4 / 4) | S48: لا يوجد | T48: الرابع | U48: نصف العام | V48: آخر العام | W48: م | X48: 3
J49: 45 | K49: 445 | L49: 45 | M49: 480282967 | N49: ص45 | O49: ذكر | P49: مسلم | Q49: راسب وباق للاعادة | R49: (3 / 4) | S49: لا يوجد | T49: الرابع | U49: نصف العام | V49: آخر العام | W49: م | X49: 3
J50: 46 | K50: 446 | L50: 46 | M50: 476197336 | N50: ص46 | O50: ذكر | P50: مسلم | Q50: ناجح ومنقول | R50: (4 / 4) | S50: لا يوجد | T50: الرابع | U50: نصف العام | V50: آخر العام | W50: م | X50: 3
J51: 47 | K51: 447 | L51: 47 | M51: 480674640 | N51: ص47 | O51: ذكر | P51: مسلم | Q51: ناجح ومنقول | R51: (4 / 4) | S51: لا يوجد | T51: الرابع | U51: نصف العام | V51: آخر العام | W51: م | X51: 3
J52: 48 | K52: 448 | L52: 48 | M52: 476270678 | N52: ص48 | O52: ذكر | P52: مسلم | Q52: ناجح ومنقول | R52: (4 / 4) | S52: لا يوجد | T52: الرابع | U52: نصف العام | V52: آخر العام | W52: م | X52: 3
J53: 49 | K53: 449 | L53: 49 | M53: 484773144 | N53: ص49 | O53: ذكر | P53: مسلم | Q53: ناجح ومنقول | R53: (1 / 4) | S53: لا يوجد | T53: الرابع | U53: نصف العام | V53: آخر العام | W53: م | X53: 3
J54: 50 | K54: 450 | L54: 50 | M54: 476197407 | N54: ص50 | O54: ذكر | P54: مسلم | Q54: ناجح ومنقول | R54: (3 / 4) | S54: لا يوجد | T54: الرابع | U54: نصف العام | V54: آخر العام | W54: م | X54: 3
J55: 51 | K55: 451 | L55: 51 | M55: 476196778 | N55: ص51 | O55: ذكر | P55: مسلم | Q55: ناجح ومنقول | R55: (4 / 4) | S55: لا يوجد | T55: الرابع | U55: نصف العام | V55: آخر العام | W55: م | X55: 3
J56: 52 | K56: 452 | L56: 52 | M56: 484022063 | N56: ص52 | O56: ذكر | P56: مسلم | Q56: ناجح ومنقول | R56: (2 / 4) | S56: لا يوجد | T56: الرابع | U56: نصف العام | V56: آخر العام | W56: م | X56: 3
J57: 53 | K57: 453 | L57: 53 | M57: 483120562 | N57: ص53 | O57: ذكر | P57: مسلم | Q57: ناجح ومنقول | R57: (3 / 4) | S57: لا يوجد | T57: الرابع | U57: نصف العام | V57: آخر العام | W57: م | X57: 3
J58: 54 | K58: 454 | L58: 54 | M58: 480674185 | N58: ص54 | O58: ذكر | P58: مسلم | Q58: ناجح ومنقول | R58: (3 / 4) | S58: لا يوجد | T58: الرابع | U58: نصف العام | V58: آخر العام | W58: م | X58: 3
J59: 55 | K59: 455 | L59: 55 | M59: 483737891 | N59: ص55 | O59: ذكر | P59: مسلم | Q59: ناجح ومنقول | R59: (4 / 4) | S59: لا يوجد | T59: الرابع | U59: نصف العام | V59: آخر العام | W59: م | X59: 3
J60: 56 | K60: 456 | L60: 56 | M60: 480912423 | N60: ص56 | O60: ذكر | P60: مسلم | Q60: ناجح ومنقول | R60: (1 / 4) | S60: لا يوجد | T60: الرابع | U60: نصف العام | V60: آخر العام | W60: م | X60: 3
J61: 57 | K61: 457 | L61: 57 | M61: 476196601 | N61: ص57 | O61: ذكر | P61: مسلم | Q61: ناجح ومنقول | R61: (1 / 4) | S61: لا يوجد | T61: الرابع | U61: نصف العام | V61: آخر العام | W61: م | X61: 3
J62: 58 | K62: 458 | L62: 58 | M62: 476202950 | N62: ص58 | O62: ذكر | P62: مسلم | Q62: ناجح ومنقول | R62: (2 / 4) | S62: لا يوجد | T62: الرابع | U62: نصف العام | V62: آخر العام | W62: م | X62: 3
J63: 59 | K63: 459 | L63: 59 | M63: 481985599 | N63: ص59 | O63: ذكر | P63: مسلم | Q63: ناجح ومنقول | R63: (4 / 4) | S63: لا يوجد | T63: الرابع | U63: نصف العام | V63: آخر العام | W63: م | X63: 3
J64: 60 | K64: 460 | L64: 60 | M64: 480674346 | N64: ص60 | O64: ذكر | P64: مسلم | Q64: ناجح ومنقول | R64: (1 / 4) | S64: لا يوجد | T64: الرابع | U64: نصف العام | V64: آخر العام | W64: م | X64: 3 | Y64: نهاية اللجنة
J65: 61 | K65: 461 | L65: 61 | M65: 484244195 | N65: ص61 | O65: ذكر | P65: مسلم | Q65: ناجح ومنقول | R65: (1 / 4) | S65: لا يوجد | T65: الرابع | U65: نصف العام | V65: آخر العام | W65: م | X65: 4
J66: 62 | K66: 462 | L66: 62 | M66: 484067305 | N66: ص62 | O66: ذكر | P66: مسلم | Q66: ناجح ومنقول | R66: (3 / 4) | S66: لا يوجد | T66: الرابع | U66: نصف العام | V66: آخر العام | W66: م | X66: 4
J67: 63 | K67: 463 | L67: 63 | M67: 480679255 | N67: ص63 | O67: ذكر | P67: مسلم | Q67: ناجح ومنقول | R67: (1 / 4) | S67: لا يوجد | T67: الرابع | U67: نصف العام | V67: آخر العام | W67: م | X67: 4
J68: 64 | K68: 464 | L68: 64 | M68: 485146013 | N68: ص64 | O68: ذكر | P68: مسلم | Q68: ناجح ومنقول | R68: (4 / 4) | S68: لا يوجد | T68: الرابع | U68: نصف العام | V68: آخر العام | W68: م | X68: 4
J69: 65 | K69: 465 | L69: 65 | M69: 476271126 | N69: ص65 | O69: ذكر | P69: مسلم | Q69: ناجح ومنقول | R69: (1 / 4) | S69: لا يوجد | T69: الرابع | U69: نصف العام | V69: آخر العام | W69: م | X69: =IF(K69="","",VLOOKUP(K69,جلوس,4)) -> 4
J70: =IF(J69="","",IF(J69+1>$K$2,"",J69+1)) -> 66 | K70: 466 | L70: 66 | M70: 476196812 | N70: ص66 | O70: ذكر | P70: مسلم | Q70: ناجح ومنقول | R70: (4 / 4) | S70: لا يوجد | T70: الرابع | U70: نصف العام | V70: آخر العام | W70: م | X70: 4 | Y70: =IF(X70=X71,"","نهاية اللجنة") -> 
J71: 67 | K71: =IF(K70="","",IF(K70+1>$K$3,"",K70+1)) -> 467 | L71: 67 | M71: 483649373 | N71: ص67 | O71: ذكر | P71: مسلم | Q71: ناجح ومنقول | R71: (1 / 4) | S71: لا يوجد | T71: الرابع | U71: نصف العام | V71: آخر العام | W71: م | X71: 4
J72: 68 | K72: 468 | L72: 68 | M72: 485383821 | N72: ص68 | O72: ذكر | P72: مسلم | Q72: ناجح ومنقول | R72: (3 / 4) | S72: لا يوجد | T72: الرابع | U72: نصف العام | V72: آخر العام | W72: م | X72: 4
J73: 69 | K73: 469 | L73: 69 | M73: 480911004 | N73: ص69 | O73: ذكر | P73: مسلم | Q73: ناجح ومنقول | R73: (3 / 4) | S73: لا يوجد | T73: الرابع | U73: نصف العام | V73: آخر العام | W73: م | X73: 4
J74: 70 | K74: 470 | L74: 70 | M74: 480909587 | N74: ص70 | O74: ذكر | P74: مسلم | Q74: ناجح ومنقول | R74: (1 / 4) | S74: لا يوجد | T74: الرابع | U74: نصف العام | V74: آخر العام | W74: م | X74: 4
J75: 71 | K75: 471 | L75: 71 | M75: 483251051 | N75: ص71 | O75: ذكر | P75: مسلم | Q75: ناجح ومنقول | R75: (4 / 4) | S75: لا يوجد | T75: الرابع | U75: نصف العام | V75: آخر العام | W75: م | X75: 4
J76: 72 | K76: 472 | L76: 72 | M76: 476271545 | N76: ص72 | O76: ذكر | P76: مسلم | Q76: ناجح ومنقول | R76: (2 / 4) | S76: لا يوجد | T76: الرابع | U76: نصف العام | V76: آخر العام | W76: م | X76: 4
J77: 73 | K77: 473 | L77: 73 | M77: 480915513 | N77: ص73 | O77: ذكر | P77: مسلم | Q77: ناجح ومنقول | R77: (1 / 4) | S77: لا يوجد | T77: الرابع | U77: نصف العام | V77: آخر العام | W77: م | X77: 4
J78: 74 | K78: 474 | L78: 74 | M78: 480911125 | N78: ص74 | O78: ذكر | P78: مسلم | Q78: ناجح ومنقول | R78: (2 / 4) | S78: لا يوجد | T78: الرابع | U78: نصف العام | V78: آخر العام | W78: م | X78: 4
J79: 75 | K79: 475 | L79: 75 | M79: 480724085 | N79: ص75 | O79: ذكر | P79: مسلم | Q79: ناجح ومنقول | R79: (2 / 4) | S79: لا يوجد | T79: الرابع | U79: نصف العام | V79: آخر العام | W79: م | X79: 4
J80: 76 | K80: 476 | L80: 76 | M80: 484234007 | N80: ص76 | O80: ذكر | P80: مسلم | Q80: ناجح ومنقول | R80: (4 / 4) | S80: لا يوجد | T80: الرابع | U80: نصف العام | V80: آخر العام | W80: م | X80: 4
J81: 77 | K81: 477 | L81: 77 | M81: 480911599 | N81: ص77 | O81: ذكر | P81: مسلم | Q81: ناجح ومنقول | R81: (3 / 4) | S81: لا يوجد | T81: الرابع | U81: نصف العام | V81: آخر العام | W81: م | X81: 4
J82: 78 | K82: 478 | L82: 78 | M82: 481434793 | N82: ص78 | O82: ذكر | P82: مسلم | Q82: ناجح ومنقول | R82: (3 / 4) | S82: لا يوجد | T82: الرابع | U82: نصف العام | V82: آخر العام | W82: م | X82: 4
J83: 79 | K83: 479 | L83: 79 | M83: 476196940 | N83: ص79 | O83: ذكر | P83: مسلم | Q83: ناجح ومنقول | R83: (3 / 4) | S83: لا يوجد | T83: الرابع | U83: نصف العام | V83: آخر العام | W83: م | X83: 4
J84: 80 | K84: 480 | L84: 80 | M84: 483831546 | N84: ص80 | O84: ذكر | P84: مسلم | Q84: ناجح ومنقول | R84: (3 / 4) | S84: لا يوجد | T84: الرابع | U84: نصف العام | V84: آخر العام | W84: م | X84: 4 | Y84: نهاية اللجنة
J85: 81 | K85: 481 | L85: 81 | M85: 476269631 | N85: ص81 | O85: ذكر | P85: مسلم | Q85: ناجح ومنقول | R85: (2 / 4) | S85: لا يوجد | T85: الرابع | U85: نصف العام | V85: آخر العام | W85: م | X85: 5
J86: 82 | K86: 482 | L86: 82 | M86: 484280661 | N86: ص82 | O86: ذكر | P86: مسلم | Q86: ناجح ومنقول | R86: (3 / 4) | S86: لا يوجد | T86: الرابع | U86: نصف العام | V86: آخر العام | W86: م | X86: 5
J87: 83 | K87: 483 | L87: 83 | M87: 480915554 | N87: ص83 | O87: ذكر | P87: مسلم | Q87: ناجح ومنقول | R87: (4 / 4) | S87: لا يوجد | T87: الرابع | U87: نصف العام | V87: آخر العام | W87: م | X87: 5
J88: 84 | K88: 484 | L88: 84 | M88: 475889330 | N88: ص84 | O88: ذكر | P88: مسلم | Q88: ناجح ومنقول | R88: (2 / 4) | S88: لا يوجد | T88: الرابع | U88: نصف العام | V88: آخر العام | W88: م | X88: 5
J89: 85 | K89: 485 | L89: 85 | M89: 480325582 | N89: ص85 | O89: ذكر | P89: مسلم | Q89: راسب وباق للاعادة | R89: (2 / 4) | S89: لا يوجد | T89: الرابع | U89: نصف العام | V89: آخر العام | W89: م | X89: 5
J90: 86 | K90: 486 | L90: 86 | M90: 476270911 | N90: ص86 | O90: ذكر | P90: مسلم | Q90: ناجح ومنقول | R90: (1 / 4) | S90: لا يوجد | T90: الرابع | U90: نصف العام | V90: آخر العام | W90: م | X90: 5
J91: 87 | K91: 487 | L91: 87 | M91: 476268628 | N91: ص87 | O91: ذكر | P91: مسلم | Q91: ناجح ومنقول | R91: (2 / 4) | S91: لا يوجد | T91: الرابع | U91: نصف العام | V91: آخر العام | W91: م | X91: 5
J92: 88 | K92: 488 | L92: 88 | M92: 480678848 | N92: ص88 | O92: ذكر | P92: مسلم | Q92: ناجح ومنقول | R92: (3 / 4) | S92: لا يوجد | T92: الرابع | U92: نصف العام | V92: آخر العام | W92: م | X92: 5
J93: 89 | K93: 489 | L93: 89 | M93: 480677425 | N93: ص89 | O93: ذكر | P93: مسلم | Q93: ناجح ومنقول | R93: (1 / 4) | S93: لا يوجد | T93: الرابع | U93: نصف العام | V93: آخر العام | W93: م | X93: 5
J94: 90 | K94: 490 | L94: 90 | M94: 480912567 | N94: ص90 | O94: ذكر | P94: مسلم | Q94: ناجح ومنقول | R94: (4 / 4) | S94: لا يوجد | T94: الرابع | U94: نصف العام | V94: آخر العام | W94: م | X94: 5
J95: 91 | K95: 491 | L95: 91 | M95: 476271498 | N95: ص91 | O95: ذكر | P95: مسلم | Q95: ناجح ومنقول | R95: (4 / 4) | S95: لا يوجد | T95: الرابع | U95: نصف العام | V95: آخر العام | W95: م | X95: 5
J96: 92 | K96: 492 | L96: 92 | M96: 480675900 | N96: ص92 | O96: ذكر | P96: مسلم | Q96: ناجح ومنقول | R96: (4 / 4) | S96: لا يوجد | T96: الرابع | U96: نصف العام | V96: آخر العام | W96: م | X96: 5
J97: 93 | K97: 493 | L97: 93 | M97: 476268429 | N97: ص93 | O97: ذكر | P97: مسلم | Q97: ناجح ومنقول | R97: (4 / 4) | S97: لا يوجد | T97: الرابع | U97: نصف العام | V97: آخر العام | W97: م | X97: 5
J98: 94 | K98: 494 | L98: 94 | M98: 476197454 | N98: ص94 | O98: ذكر | P98: مسلم | Q98: ناجح ومنقول | R98: (2 / 4) | S98: لا يوجد | T98: الرابع | U98: نصف العام | V98: آخر العام | W98: م | X98: 5
J99: 95 | K99: 495 | L99: 95 | M99: 484134866 | N99: ص95 | O99: ذكر | P99: مسلم | Q99: ناجح ومنقول | R99: (3 / 4) | S99: لا يوجد | T99: الرابع | U99: نصف العام | V99: آخر العام | W99: م | X99: 5
J100: 96 | K100: 496 | L100: 96 | M100: 476271263 | N100: ص96 | O100: ذكر | P100: مسلم | Q100: ناجح ومنقول | R100: (1 / 4) | S100: لا يوجد | T100: الرابع | U100: نصف العام | V100: آخر العام | W100: م | X100: 5
J101: 97 | K101: 497 | L101: 97 | M101: 480110758 | N101: ص97 | O101: ذكر | P101: مسلم | Q101: ناجح ومنقول | R101: (3 / 4) | S101: لا يوجد | T101: الرابع | U101: نصف العام | V101: آخر العام | W101: م | X101: 5
J102: 98 | K102: 498 | L102: 98 | M102: 484372722 | N102: ص98 | O102: ذكر | P102: مسلم | Q102: ناجح ومنقول | R102: (2 / 4) | S102: لا يوجد | T102: الرابع | U102: نصف العام | V102: آخر العام | W102: م | X102: 5
J103: 99 | K103: 499 | L103: 99 | M103: 480677286 | N103: ص99 | O103: ذكر | P103: مسلم | Q103: ناجح ومنقول | R103: (3 / 4) | S103: لا يوجد | T103: الرابع | U103: نصف العام | V103: آخر العام | W103: م | X103: 5
J104: 100 | K104: 500 | L104: 100 | M104: 480958251 | N104: ص100 | O104: ذكر | P104: مسلم | Q104: ناجح ومنقول | R104: (1 / 4) | S104: لا يوجد | T104: الرابع | U104: نصف العام | V104: آخر العام | W104: م | X104: 5 | Y104: نهاية اللجنة
J105: 101 | K105: 501 | L105: 101 | M105: 476270419 | N105: ص101 | O105: ذكر | P105: مسلم | Q105: ناجح ومنقول | R105: (2 / 4) | S105: لا يوجد | T105: الرابع | U105: نصف العام | V105: آخر العام | W105: م | X105: 6
J106: 102 | K106: 502 | L106: 102 | M106: 484178347 | N106: ص102 | O106: ذكر | P106: مسلم | Q106: ناجح ومنقول | R106: (3 / 4) | S106: لا يوجد | T106: الرابع | U106: نصف العام | V106: آخر العام | W106: م | X106: 6
J107: 103 | K107: 503 | L107: 103 | M107: 476274126 | N107: ص103 | O107: أنثى | P107: مسلمة | Q107: ناجح ومنقول | R107: (3 / 4) | S107: لا يوجد | T107: الرابع | U107: نصف العام | V107: آخر العام | W107: م | X107: 6
J108: 104 | K108: 504 | L108: 104 | M108: 476271614 | N108: ص104 | O108: أنثى | P108: مسلمة | Q108: ناجح ومنقول | R108: (4 / 4) | S108: لا يوجد | T108: الرابع | U108: نصف العام | V108: آخر العام | W108: م | X108: 6
J109: 105 | K109: 505 | L109: 105 | M109: 483897680 | N109: ص105 | O109: أنثى | P109: مسلمة | Q109: ناجح ومنقول | R109: (2 / 4) | S109: لا يوجد | T109: الرابع | U109: نصف العام | V109: آخر العام | W109: م | X109: 6
J110: 106 | K110: 506 | L110: 106 | M110: 476273370 | N110: ص106 | O110: أنثى | P110: مسلمة | Q110: ناجح ومنقول | R110: (2 / 4) | S110: لا يوجد | T110: الرابع | U110: نصف العام | V110: آخر العام | W110: م | X110: 6
J111: 107 | K111: 507 | L111: 107 | M111: 482578596 | N111: ص107 | O111: أنثى | P111: مسلمة | Q111: ناجح ومنقول | R111: (4 / 4) | S111: لا يوجد | T111: الرابع | U111: نصف العام | V111: آخر العام | W111: م | X111: 6
J112: 108 | K112: 508 | L112: 108 | M112: 484296612 | N112: ص108 | O112: أنثى | P112: مسلمة | Q112: ناجح ومنقول | R112: (2 / 4) | S112: لا يوجد | T112: الرابع | U112: نصف العام | V112: آخر العام | W112: م | X112: 6
J113: 109 | K113: 509 | L113: 109 | M113: 477875879 | N113: ص109 | O113: أنثى | P113: مسلمة | Q113: ناجح ومنقول | R113: (3 / 4) | S113: لا يوجد | T113: الرابع | U113: نصف العام | V113: آخر العام | W113: م | X113: 6
J114: 110 | K114: 510 | L114: 110 | M114: 483120532 | N114: ص110 | O114: أنثى | P114: مسلمة | Q114: ناجح ومنقول | R114: (4 / 4) | S114: لا يوجد | T114: الرابع | U114: نصف العام | V114: آخر العام | W114: م | X114: 6
J115: 111 | K115: 511 | L115: 111 | M115: 480112593 | N115: ص111 | O115: أنثى | P115: مسلمة | Q115: ناجح ومنقول | R115: (2 / 4) | S115: لا يوجد | T115: الرابع | U115: نصف العام | V115: آخر العام | W115: م | X115: 6
J116: 112 | K116: 512 | L116: 112 | M116: 478059900 | N116: ص112 | O116: أنثى | P116: مسلمة | Q116: ناجح ومنقول | R116: (4 / 4) | S116: لا يوجد | T116: الرابع | U116: نصف العام | V116: آخر العام | W116: م | X116: 6
J117: 113 | K117: 513 | L117: 113 | M117: 484395240 | N117: ص113 | O117: أنثى | P117: مسلمة | Q117: ناجح ومنقول | R117: (1 / 4) | S117: لا يوجد | T117: الرابع | U117: نصف العام | V117: آخر العام | W117: م | X117: 6
J118: 114 | K118: 514 | L118: 114 | M118: 480876119 | N118: ص114 | O118: أنثى | P118: مسلمة | Q118: ناجح ومنقول | R118: (4 / 4) | S118: لا يوجد | T118: الرابع | U118: نصف العام | V118: آخر العام | W118: م | X118: 6
J119: 115 | K119: 515 | L119: 115 | M119: 475889927 | N119: ص115 | O119: أنثى | P119: مسلمة | Q119: ناجح ومنقول | R119: (4 / 4) | S119: لا يوجد | T119: الرابع | U119: نصف العام | V119: آخر العام | W119: م | X119: 6
J120: 116 | K120: 516 | L120: 116 | M120: 483836785 | N120: ص116 | O120: أنثى | P120: مسلمة | Q120: ناجح ومنقول | R120: (4 / 4) | S120: لا يوجد | T120: الرابع | U120: نصف العام | V120: آخر العام | W120: م | X120: 6
J121: 117 | K121: 517 | L121: 117 | M121: 476273591 | N121: ص117 | O121: أنثى | P121: مسلمة | Q121: ناجح ومنقول | R121: (2 / 4) | S121: لا يوجد | T121: الرابع | U121: نصف العام | V121: آخر العام | W121: م | X121: 6
J122: 118 | K122: 518 | L122: 118 | M122: 485195908 | N122: ص118 | O122: أنثى | P122: مسلمة | Q122: ناجح ومنقول | R122: (4 / 4) | S122: لا يوجد | T122: الرابع | U122: نصف العام | V122: آخر العام | W122: م | X122: 6
J123: 119 | K123: 519 | L123: 119 | M123: 480871985 | N123: ص119 | O123: أنثى | P123: مسلمة | Q123: ناجح ومنقول | R123: (3 / 4) | S123: لا يوجد | T123: الرابع | U123: نصف العام | V123: آخر العام | W123: م | X123: 6
J124: 120 | K124: 520 | L124: 120 | M124: 482023747 | N124: ص120 | O124: أنثى | P124: مسلمة | Q124: ناجح ومنقول | R124: (2 / 4) | S124: لا يوجد | T124: الرابع | U124: نصف العام | V124: آخر العام | W124: م | X124: 6 | Y124: نهاية اللجنة
J125: 121 | K125: 521 | L125: 121 | M125: 483767121 | N125: ص121 | O125: أنثى | P125: مسلمة | Q125: ناجح ومنقول | R125: (3 / 4) | S125: لا يوجد | T125: الرابع | U125: نصف العام | V125: آخر العام | W125: م | X125: 7
J126: 122 | K126: 522 | L126: 122 | M126: 485040573 | N126: ص122 | O126: أنثى | P126: مسلمة | Q126: ناجح ومنقول | R126: (3 / 4) | S126: لا يوجد | T126: الرابع | U126: نصف العام | V126: آخر العام | W126: م | X126: 7
J127: 123 | K127: 523 | L127: 123 | M127: 476195480 | N127: ص123 | O127: أنثى | P127: مسلمة | Q127: ناجح ومنقول | R127: (3 / 4) | S127: لا يوجد | T127: الرابع | U127: نصف العام | V127: آخر العام | W127: م | X127: 7
J128: 124 | K128: 524 | L128: 124 | M128: 484124932 | N128: ص124 | O128: أنثى | P128: مسلمة | Q128: ناجح ومنقول | R128: (1 / 4) | S128: لا يوجد | T128: الرابع | U128: نصف العام | V128: آخر العام | W128: م | X128: 7
J129: 125 | K129: 525 | L129: 125 | M129: 483363731 | N129: ص125 | O129: أنثى | P129: مسلمة | Q129: ناجح ومنقول | R129: (4 / 4) | S129: لا يوجد | T129: الرابع | U129: نصف العام | V129: آخر العام | W129: م | X129: 7
J130: 126 | K130: 526 | L130: 126 | M130: 480680205 | N130: ص126 | O130: أنثى | P130: مسلمة | Q130: ناجح ومنقول | R130: (3 / 4) | S130: لا يوجد | T130: الرابع | U130: نصف العام | V130: آخر العام | W130: م | X130: 7
J131: 127 | K131: 527 | L131: 127 | M131: 480277128 | N131: ص127 | O131: أنثى | P131: مسلمة | Q131: راسب وباق للاعادة | R131: (3 / 4) | S131: لا يوجد | T131: الرابع | U131: نصف العام | V131: آخر العام | W131: م | X131: 7
J132: 128 | K132: 528 | L132: 128 | M132: 477822340 | N132: ص128 | O132: أنثى | P132: مسلمة | Q132: ناجح ومنقول | R132: (1 / 4) | S132: لا يوجد | T132: الرابع | U132: نصف العام | V132: آخر العام | W132: م | X132: 7
J133: 129 | K133: 529 | L133: 129 | M133: 476196536 | N133: ص129 | O133: أنثى | P133: مسلمة | Q133: ناجح ومنقول | R133: (2 / 4) | S133: لا يوجد | T133: الرابع | U133: نصف العام | V133: آخر العام | W133: م | X133: =IF(K133="","",VLOOKUP(K133,جلوس,4)) -> 7
J134: =IF(J133="","",IF(J133+1>$K$2,"",J133+1)) -> 130 | K134: 530 | L134: 130 | M134: 483381172 | N134: ص130 | O134: أنثى | P134: مسلمة | Q134: ناجح ومنقول | R134: (2 / 4) | S134: لا يوجد | T134: الرابع | U134: نصف العام | V134: آخر العام | W134: م | X134: 7 | Y134: =IF(X134=X135,"","نهاية اللجنة") -> 
J135: 131 | K135: =IF(K134="","",IF(K134+1>$K$3,"",K134+1)) -> 531 | L135: 131 | M135: 476196029 | N135: ص131 | O135: أنثى | P135: مسلمة | Q135: ناجح ومنقول | R135: (1 / 4) | S135: لا يوجد | T135: الرابع | U135: نصف العام | V135: آخر العام | W135: م | X135: 7
J136: 132 | K136: 532 | L136: 132 | M136: 483432251 | N136: ص132 | O136: أنثى | P136: مسلمة | Q136: ناجح ومنقول | R136: (4 / 4) | S136: لا يوجد | T136: الرابع | U136: نصف العام | V136: آخر العام | W136: م | X136: 7
J137: 133 | K137: 533 | L137: 133 | M137: 476273965 | N137: ص133 | O137: أنثى | P137: مسلمة | Q137: ناجح ومنقول | R137: (3 / 4) | S137: لا يوجد | T137: الرابع | U137: نصف العام | V137: آخر العام | W137: م | X137: 7
J138: 134 | K138: 534 | L138: 134 | M138: 476196178 | N138: ص134 | O138: أنثى | P138: مسلمة | Q138: ناجح ومنقول | R138: (4 / 4) | S138: لا يوجد | T138: الرابع | U138: نصف العام | V138: آخر العام | W138: م | X138: 7
J139: 135 | K139: 535 | L139: 135 | M139: 476274108 | N139: ص135 | O139: أنثى | P139: مسلمة | Q139: ناجح ومنقول | R139: (1 / 4) | S139: لا يوجد | T139: الرابع | U139: نصف العام | V139: آخر العام | W139: م | X139: 7
J140: 136 | K140: 536 | L140: 136 | M140: 483563552 | N140: ص136 | O140: أنثى | P140: مسلمة | Q140: ناجح ومنقول | R140: (2 / 4) | S140: لا يوجد | T140: الرابع | U140: نصف العام | V140: آخر العام | W140: م | X140: 7
J141: 137 | K141: 537 | L141: 137 | M141: 480620446 | N141: ص137 | O141: أنثى | P141: مسلمة | Q141: ناجح ومنقول | R141: (4 / 4) | S141: لا يوجد | T141: الرابع | U141: نصف العام | V141: آخر العام | W141: م | X141: 7
J142: 138 | K142: 538 | L142: 138 | M142: 483238667 | N142: ص138 | O142: أنثى | P142: مسلمة | Q142: ناجح ومنقول | R142: (4 / 4) | S142: لا يوجد | T142: الرابع | U142: نصف العام | V142: آخر العام | W142: م | X142: 7
J143: 139 | K143: 539 | L143: 139 | M143: 484124848 | N143: ص139 | O143: أنثى | P143: مسلمة | Q143: ناجح ومنقول | R143: (1 / 4) | S143: لا يوجد | T143: الرابع | U143: نصف العام | V143: آخر العام | W143: م | X143: 7
J144: 140 | K144: 540 | L144: 140 | M144: 482100535 | N144: ص140 | O144: أنثى | P144: مسلمة | Q144: ناجح ومنقول | R144: (2 / 4) | S144: لا يوجد | T144: الرابع | U144: نصف العام | V144: آخر العام | W144: م | X144: 7 | Y144: نهاية اللجنة
J145: 141 | K145: 541 | L145: 141 | M145: 483947975 | N145: ص141 | O145: أنثى | P145: مسلمة | Q145: ناجح ومنقول | R145: (2 / 4) | S145: لا يوجد | T145: الرابع | U145: نصف العام | V145: آخر العام | W145: م | X145: 8
J146: 142 | K146: 542 | L146: 142 | M146: 480872550 | N146: ص142 | O146: أنثى | P146: مسلمة | Q146: ناجح ومنقول | R146: (4 / 4) | S146: لا يوجد | T146: الرابع | U146: نصف العام | V146: آخر العام | W146: م | X146: 8
J147: 143 | K147: 543 | L147: 143 | M147: 483902336 | N147: ص143 | O147: أنثى | P147: مسلمة | Q147: ناجح ومنقول | R147: (1 / 4) | S147: لا يوجد | T147: الرابع | U147: نصف العام | V147: آخر العام | W147: م | X147: 8
J148: 144 | K148: 544 | L148: 144 | M148: 484206115 | N148: ص144 | O148: أنثى | P148: مسلمة | Q148: ناجح ومنقول | R148: (3 / 4) | S148: لا يوجد | T148: الرابع | U148: نصف العام | V148: آخر العام | W148: م | X148: 8
J149: 145 | K149: 545 | L149: 145 | M149: 480875945 | N149: ص145 | O149: أنثى | P149: مسلمة | Q149: ناجح ومنقول | R149: (3 / 4) | S149: لا يوجد | T149: الرابع | U149: نصف العام | V149: آخر العام | W149: م | X149: 8
J150: 146 | K150: 546 | L150: 146 | M150: 476195336 | N150: ص146 | O150: أنثى | P150: مسلمة | Q150: ناجح ومنقول | R150: (4 / 4) | S150: لا يوجد | T150: الرابع | U150: نصف العام | V150: آخر العام | W150: م | X150: 8
J151: 147 | K151: 547 | L151: 147 | M151: 484545071 | N151: ص147 | O151: أنثى | P151: مسلمة | Q151: ناجح ومنقول | R151: (1 / 4) | S151: لا يوجد | T151: الرابع | U151: نصف العام | V151: آخر العام | W151: م | X151: 8
J152: 148 | K152: 548 | L152: 148 | M152: 483185200 | N152: ص148 | O152: أنثى | P152: مسلمة | Q152: ناجح ومنقول | R152: (1 / 4) | S152: لا يوجد | T152: الرابع | U152: نصف العام | V152: آخر العام | W152: م | X152: 8
J153: 149 | K153: 549 | L153: 149 | M153: 480872800 | N153: ص149 | O153: أنثى | P153: مسلمة | Q153: ناجح ومنقول | R153: (4 / 4) | S153: لا يوجد | T153: الرابع | U153: نصف العام | V153: آخر العام | W153: م | X153: 8
J154: 150 | K154: 550 | L154: 150 | M154: 482006307 | N154: ص150 | O154: أنثى | P154: مسلمة | Q154: ناجح ومنقول | R154: (2 / 4) | S154: لا يوجد | T154: الرابع | U154: نصف العام | V154: آخر العام | W154: م | X154: 8
J155: 151 | K155: 551 | L155: 151 | M155: 480876187 | N155: ص151 | O155: أنثى | P155: مسلمة | Q155: ناجح ومنقول | R155: (4 / 4) | S155: لا يوجد | T155: الرابع | U155: نصف العام | V155: آخر العام | W155: م | X155: 8
J156: 152 | K156: 552 | L156: 152 | M156: 484527811 | N156: ص152 | O156: أنثى | P156: مسلمة | Q156: ناجح ومنقول | R156: (1 / 4) | S156: لا يوجد | T156: الرابع | U156: نصف العام | V156: آخر العام | W156: م | X156: 8
J157: 153 | K157: 553 | L157: 153 | M157: 484244044 | N157: ص153 | O157: أنثى | P157: مسلمة | Q157: ناجح ومنقول | R157: (3 / 4) | S157: لا يوجد | T157: الرابع | U157: نصف العام | V157: آخر العام | W157: م | X157: 8
J158: 154 | K158: 554 | L158: 154 | M158: 480873923 | N158: ص154 | O158: أنثى | P158: مسلمة | Q158: ناجح ومنقول | R158: (1 / 4) | S158: لا يوجد | T158: الرابع | U158: نصف العام | V158: آخر العام | W158: م | X158: 8
J159: 155 | K159: 555 | L159: 155 | M159: 485040840 | N159: ص155 | O159: أنثى | P159: مسلمة | Q159: ناجح ومنقول | R159: (4 / 4) | S159: لا يوجد | T159: الرابع | U159: نصف العام | V159: آخر العام | W159: م | X159: 8
J160: 156 | K160: 556 | L160: 156 | M160: 480875834 | N160: ص156 | O160: أنثى | P160: مسلمة | Q160: ناجح ومنقول | R160: (4 / 4) | S160: لا يوجد | T160: الرابع | U160: نصف العام | V160: آخر العام | W160: م | X160: 8
J161: 157 | K161: 557 | L161: 157 | M161: 485040780 | N161: ص157 | O161: أنثى | P161: مسلمة | Q161: ناجح ومنقول | R161: (2 / 4) | S161: لا يوجد | T161: الرابع | U161: نصف العام | V161: آخر العام | W161: م | X161: 8
J162: 158 | K162: 558 | L162: 158 | M162: 483833160 | N162: ص158 | O162: أنثى | P162: مسلمة | Q162: ناجح ومنقول | R162: (2 / 4) | S162: لا يوجد | T162: الرابع | U162: نصف العام | V162: آخر العام | W162: م | X162: 8
J163: 159 | K163: 559 | L163: 159 | M163: 484066609 | N163: ص159 | O163: أنثى | P163: مسلمة | Q163: ناجح ومنقول | R163: (3 / 4) | S163: لا يوجد | T163: الرابع | U163: نصف العام | V163: آخر العام | W163: م | X163: 8
J164: 160 | K164: 560 | L164: 160 | M164: 480682237 | N164: ص160 | O164: أنثى | P164: مسلمة | Q164: ناجح ومنقول | R164: (1 / 4) | S164: لا يوجد | T164: الرابع | U164: نصف العام | V164: آخر العام | W164: م | X164: 8 | Y164: نهاية اللجنة
J165: 161 | K165: 561 | L165: 161 | M165: 476196356 | N165: ص161 | O165: أنثى | P165: مسلمة | Q165: ناجح ومنقول | R165: (4 / 4) | S165: لا يوجد | T165: الرابع | U165: نصف العام | V165: آخر العام | W165: م | X165: 9
J166: 162 | K166: 562 | L166: 162 | M166: 484403422 | N166: ص162 | O166: أنثى | P166: مسلمة | Q166: ناجح ومنقول | R166: (1 / 4) | S166: لا يوجد | T166: الرابع | U166: نصف العام | V166: آخر العام | W166: م | X166: 9
J167: 163 | K167: 563 | L167: 163 | M167: 479868281 | N167: ص163 | O167: أنثى | P167: مسلمة | Q167: راسب وباق للاعادة | R167: (2 / 4) | S167: لا يوجد | T167: الرابع | U167: نصف العام | V167: آخر العام | W167: م | X167: 9
J168: 164 | K168: 564 | L168: 164 | M168: 484469957 | N168: ص164 | O168: أنثى | P168: مسلمة | Q168: ناجح ومنقول | R168: (2 / 4) | S168: لا يوجد | T168: الرابع | U168: نصف العام | V168: آخر العام | W168: م | X168: 9
J169: 165 | K169: 565 | L169: 165 | M169: 476273861 | N169: ص165 | O169: أنثى | P169: مسلمة | Q169: ناجح ومنقول | R169: (3 / 4) | S169: لا يوجد | T169: الرابع | U169: نصف العام | V169: آخر العام | W169: م | X169: 9
J170: 166 | K170: 566 | L170: 166 | M170: 480875907 | N170: ص166 | O170: أنثى | P170: مسلمة | Q170: ناجح ومنقول | R170: (1 / 4) | S170: لا يوجد | T170: الرابع | U170: نصف العام | V170: آخر العام | W170: م | X170: 9
J171: 167 | K171: 567 | L171: 167 | M171: 480681869 | N171: ص167 | O171: أنثى | P171: مسلمة | Q171: ناجح ومنقول | R171: (4 / 4) | S171: لا يوجد | T171: الرابع | U171: نصف العام | V171: آخر العام | W171: م | X171: 9
J172: 168 | K172: 568 | L172: 168 | M172: 484175287 | N172: ص168 | O172: أنثى | P172: مسلمة | Q172: ناجح ومنقول | R172: (3 / 4) | S172: لا يوجد | T172: الرابع | U172: نصف العام | V172: آخر العام | W172: م | X172: 9
J173: 169 | K173: 569 | L173: 169 | M173: 478000608 | N173: ص169 | O173: أنثى | P173: مسلمة | Q173: ناجح ومنقول | R173: (1 / 4) | S173: لا يوجد | T173: الرابع | U173: نصف العام | V173: آخر العام | W173: م | X173: 9
J174: 170 | K174: 570 | L174: 170 | M174: 484403521 | N174: ص170 | O174: أنثى | P174: مسلمة | Q174: ناجح ومنقول | R174: (4 / 4) | S174: لا يوجد | T174: الرابع | U174: نصف العام | V174: آخر العام | W174: م | X174: 9
J175: 171 | K175: 571 | L175: 171 | M175: 480682111 | N175: ص171 | O175: أنثى | P175: مسلمة | Q175: ناجح ومنقول | R175: (2 / 4) | S175: لا يوجد | T175: الرابع | U175: نصف العام | V175: آخر العام | W175: م | X175: 9
J176: 172 | K176: 572 | L176: 172 | M176: 480875139 | N176: ص172 | O176: أنثى | P176: مسلمة | Q176: ناجح ومنقول | R176: (2 / 4) | S176: لا يوجد | T176: الرابع | U176: نصف العام | V176: آخر العام | W176: م | X176: 9
J177: 173 | K177: 573 | L177: 173 | M177: 476652797 | N177: ص173 | O177: أنثى | P177: مسلمة | Q177: ناجح ومنقول | R177: (4 / 4) | S177: لا يوجد | T177: الرابع | U177: نصف العام | V177: آخر العام | W177: م | X177: 9
J178: 174 | K178: 574 | L178: 174 | M178: 476195532 | N178: ص174 | O178: أنثى | P178: مسلمة | Q178: ناجح ومنقول | R178: (3 / 4) | S178: لا يوجد | T178: الرابع | U178: نصف العام | V178: آخر العام | W178: م | X178: 9
J179: 175 | K179: 575 | L179: 175 | M179: 478059922 | N179: ص175 | O179: أنثى | P179: مسلمة | Q179: ناجح ومنقول | R179: (1 / 4) | S179: لا يوجد | T179: الرابع | U179: نصف العام | V179: آخر العام | W179: م | X179: 9
J180: 176 | K180: 576 | L180: 176 | M180: 480620325 | N180: ص176 | O180: أنثى | P180: مسلمة | Q180: ناجح ومنقول | R180: (1 / 4) | S180: لا يوجد | T180: الرابع | U180: نصف العام | V180: آخر العام | W180: م | X180: 9
J181: 177 | K181: 577 | L181: 177 | M181: 480775592 | N181: ص177 | O181: أنثى | P181: مسلمة | Q181: ناجح ومنقول | R181: (1 / 4) | S181: لا يوجد | T181: الرابع | U181: نصف العام | V181: آخر العام | W181: م | X181: 9
J182: 178 | K182: 578 | L182: 178 | M182: 480620175 | N182: ص178 | O182: أنثى | P182: مسلمة | Q182: ناجح ومنقول | R182: (2 / 4) | S182: لا يوجد | T182: الرابع | U182: نصف العام | V182: آخر العام | W182: م | X182: 9
J183: 179 | K183: 579 | L183: 179 | M183: 476273318 | N183: ص179 | O183: أنثى | P183: مسلمة | Q183: ناجح ومنقول | R183: (3 / 4) | S183: لا يوجد | T183: الرابع | U183: نصف العام | V183: آخر العام | W183: م | X183: 9
J184: 180 | K184: 580 | L184: 180 | M184: 476195598 | N184: ص180 | O184: أنثى | P184: مسيحية | Q184: ناجح ومنقول | R184: (4 / 4) | S184: لا يوجد | T184: الرابع | U184: نصف العام | V184: آخر العام | W184: م | X184: 9 | Y184: نهاية اللجنة
J185: 181 | K185: 581 | L185: 181 | M185: 481141237 | N185: ص181 | O185: أنثى | P185: مسلمة | Q185: ناجح ومنقول | R185: (1 / 4) | S185: لا يوجد | T185: الرابع | U185: نصف العام | V185: آخر العام | W185: م | X185: 10
J186: 182 | K186: 582 | L186: 182 | M186: 480819057 | N186: ص182 | O186: أنثى | P186: مسلمة | Q186: ناجح ومنقول | R186: (3 / 4) | S186: لا يوجد | T186: الرابع | U186: نصف العام | V186: آخر العام | W186: م | X186: 10
J187: 183 | K187: 583 | L187: 183 | M187: 484534794 | N187: ص183 | O187: أنثى | P187: مسلمة | Q187: ناجح ومنقول | R187: (3 / 4) | S187: لا يوجد | T187: الرابع | U187: نصف العام | V187: آخر العام | W187: م | X187: 10
J188: 184 | K188: 584 | L188: 184 | M188: 480873471 | N188: ص184 | O188: أنثى | P188: مسيحية | Q188: ناجح ومنقول | R188: (4 / 4) | S188: لا يوجد | T188: الرابع | U188: نصف العام | V188: آخر العام | W188: م | X188: 10
J189: 185 | K189: 585 | L189: 185 | M189: 483350996 | N189: ص185 | O189: أنثى | P189: مسلمة | Q189: ناجح ومنقول | R189: (2 / 4) | S189: لا يوجد | T189: الرابع | U189: نصف العام | V189: آخر العام | W189: م | X189: 10
J190: 186 | K190: 586 | L190: 186 | M190: 484284689 | N190: ص186 | O190: أنثى | P190: مسلمة | Q190: ناجح ومنقول | R190: (1 / 4) | S190: لا يوجد | T190: الرابع | U190: نصف العام | V190: آخر العام | W190: م | X190: 10
J191: 187 | K191: 587 | L191: 187 | M191: 484527659 | N191: ص187 | O191: أنثى | P191: مسلمة | Q191: ناجح ومنقول | R191: (2 / 4) | S191: لا يوجد | T191: الرابع | U191: نصف العام | V191: آخر العام | W191: م | X191: 10
J192: 188 | K192: 588 | L192: 188 | M192: 484969912 | N192: ص188 | O192: أنثى | P192: مسلمة | Q192: ناجح ومنقول | R192: (2 / 4) | S192: لا يوجد | T192: الرابع | U192: نصف العام | V192: آخر العام | W192: م | X192: 10
J193: 189 | K193: 589 | L193: 189 | M193: 490020100 | N193: ص189 | O193: أنثى | P193: مسلمة | Q193: ناجح ومنقول | R193: (2 / 4) | S193: لا يوجد | T193: الرابع | U193: نصف العام | V193: آخر العام | W193: م | X193: 10
J194: 190 | K194: 590 | L194: 190 | M194: 476195662 | N194: ص190 | O194: أنثى | P194: مسلمة | Q194: ناجح ومنقول | R194: (4 / 4) | S194: لا يوجد | T194: الرابع | U194: نصف العام | V194: آخر العام | W194: م | X194: 10
J195: 191 | K195: 591 | L195: 191 | M195: 483657552 | N195: ص191 | O195: أنثى | P195: مسلمة | Q195: ناجح ومنقول | R195: (4 / 4) | S195: لا يوجد | T195: الرابع | U195: نصف العام | V195: آخر العام | W195: م | X195: 10
J196: 192 | K196: 592 | L196: 192 | M196: 480875026 | N196: ص192 | O196: أنثى | P196: مسلمة | Q196: ناجح ومنقول | R196: (1 / 4) | S196: لا يوجد | T196: الرابع | U196: نصف العام | V196: آخر العام | W196: م | X196: 10
J197: 193 | K197: 593 | L197: 193 | M197: 476274142 | N197: ص193 | O197: أنثى | P197: مسلمة | Q197: ناجح ومنقول | R197: (4 / 4) | S197: لا يوجد | T197: الرابع | U197: نصف العام | V197: آخر العام | W197: م | X197: =IF(K197="","",VLOOKUP(K197,جلوس,4)) -> 10
J198: =IF(J197="","",IF(J197+1>$K$2,"",J197+1)) -> 194 | K198: 594 | L198: 194 | M198: 483356343 | N198: ص194 | O198: أنثى | P198: مسلمة | Q198: ناجح ومنقول | R198: (2 / 4) | S198: لا يوجد | T198: الرابع | U198: نصف العام | V198: آخر العام | W198: م | X198: 10 | Y198: =IF(X198=X199,"","نهاية اللجنة") -> 
J199: 195 | K199: =IF(K198="","",IF(K198+1>$K$3,"",K198+1)) -> 595 | L199: 195 | M199: 476195234 | N199: ص195 | O199: أنثى | P199: مسلمة | Q199: ناجح ومنقول | R199: (1 / 4) | S199: لا يوجد | T199: الرابع | U199: نصف العام | V199: آخر العام | W199: م | X199: 10
J200: 196 | K200: 596 | L200: 196 | M200: 483921631 | N200: ص196 | O200: أنثى | P200: مسلمة | Q200: ناجح ومنقول | R200: (4 / 4) | S200: لا يوجد | T200: الرابع | U200: نصف العام | V200: آخر العام | W200: م | X200: 10
... 31 more rows

Sheet Sheet3
D1: الصف السادس الابتدائي | N1: اكتب فى الخلايا ذات اللون الابيض فقط
J2: العدد | K2: =SUM(G5:G44) -> 208
D3: م | E3: اكتب اول رقم جلوس | G3: =SUM(G5:G44) -> 208 | H3: =COUNT(H5:H44) -> 11 | J3: أعلى رقم | K3: =MAX(E5:F44) -> 808 | X3: =COUNT(K5:K297) -> 208 | Y3: =COUNTA(N5:N297) -> 208
E4: من | F4: إلى | G4: عدد اللجنة | H4: اللجنة | J4: م | K4: رقم الجلوس | L4: م | M4: الكود | N4: الاسم | O4: النوع | P4: الديانة | Q4: حالة القيد | R4: الفصل | S4: الدمج | T4: الصف | U4: الترم الأول | V4: الترم الثاني | X4: اللجنة | Y4: نهاية اللجنة
B5: مقيد | C5: =COUNTA(N5:N297) -> 208 | D5: =IF(E5="","",COUNT($E$5:E5)) -> 1 | E5: 601 | F5: =IF(G5="","",E5+G5-1) -> 620 | G5: 20 | H5: =IF(E5="","",COUNT($E$5:E5)) -> 1 | J5: 1 | K5: =$E$5 -> 601 | L5: 1 | M5: 475493173 | N5: ع1 | O5: ذكر | P5: مسلم | Q5: ناجح ومنقول | R5: (4 / 6) | S5: لا يوجد | T5: السادس | U5: نصف العام | V5: آخر العام | W5: م | X5: =IF(K5="","",VLOOKUP(K5,جلوس,4)) -> 11 | Y5: =IF(X5=X6,"","نهاية اللجنة") -> 
B6: موزع | C6: =SUM(G5:G44) -> 208 | D6: =IF(E6="","",COUNT($E$5:E6)) -> 2 | E6: =IF(G6="","",F5+1) -> 621 | F6: =IF(G6="","",E6+G6-1) -> 640 | G6: 20 | H6: =IF(E6="","",COUNT($E$5:E6)) -> 2 | J6: =IF(J5="","",IF(J5+1>$K$2,"",J5+1)) -> 2 | K6: =IF(K5="","",IF(K5+1>$K$3,"",K5+1)) -> 602 | L6: 2 | M6: 474829354 | N6: ع2 | O6: ذكر | P6: مسلم | Q6: ناجح ومنقول | R6: (3 / 6) | S6: يوجد | T6: السادس | U6: نصف العام | V6: آخر العام | W6: م | X6: 11 | Y6: =IF(X6=X7,"","نهاية اللجنة") -> 
B7: متبقى | C7: =C5-C6 -> 0 | D7: =IF(E7="","",COUNT($E$5:E7)) -> 3 | E7: =IF(G7="","",F6+1) -> 641 | F7: 660 | G7: 20 | H7: =IF(E7="","",COUNT($E$5:E7)) -> 3 | J7: =IF(J6="","",IF(J6+1>$K$2,"",J6+1)) -> 3 | K7: =IF(K6="","",IF(K6+1>$K$3,"",K6+1)) -> 603 | L7: 3 | M7: 475393666 | N7: ع3 | O7: ذكر | P7: مسلم | Q7: ناجح ومنقول | R7: (2 / 6) | S7: لا يوجد | T7: السادس | U7: نصف العام | V7: آخر العام | W7: م | X7: 11
D8: =IF(E8="","",COUNT($E$5:E8)) -> 4 | E8: 661 | F8: 680 | G8: 20 | H8: =IF(E8="","",COUNT($E$5:E8)) -> 4 | J8: 4 | K8: 604 | L8: 4 | M8: 472912822 | N8: ع4 | O8: ذكر | P8: مسلم | Q8: ناجح ومنقول | R8: (4 / 6) | S8: لا يوجد | T8: السادس | U8: نصف العام | V8: آخر العام | W8: م | X8: 11
C9: ذكر | D9: =IF(E9="","",COUNT($E$5:E9)) -> 5 | E9: 681 | F9: 700 | G9: 20 | H9: =IF(E9="","",COUNT($E$5:E9)) -> 5 | J9: 5 | K9: 605 | L9: 5 | M9: 476197746 | N9: ع5 | O9: ذكر | P9: مسلم | Q9: ناجح ومنقول | R9: (3 / 6) | S9: لا يوجد | T9: السادس | U9: نصف العام | V9: آخر العام | W9: م | X9: 11
C10: انثى | D10: =IF(E10="","",COUNT($E$5:E10)) -> 6 | E10: 701 | F10: 720 | G10: 20 | H10: =IF(E10="","",COUNT($E$5:E10)) -> 6 | J10: 6 | K10: 606 | L10: 6 | M10: 472913380 | N10: ع6 | O10: ذكر | P10: مسلم | Q10: ناجح ومنقول | R10: (2 / 6) | S10: لا يوجد | T10: السادس | U10: نصف العام | V10: آخر العام | W10: م | X10: 11
D11: =IF(E11="","",COUNT($E$5:E11)) -> 7 | E11: 721 | F11: 740 | G11: 20 | H11: =IF(E11="","",COUNT($E$5:E11)) -> 7 | J11: 7 | K11: 607 | L11: 7 | M11: 474985006 | N11: ع7 | O11: ذكر | P11: مسلم | Q11: ناجح ومنقول | R11: (2 / 6) | S11: لا يوجد | T11: السادس | U11: نصف العام | V11: آخر العام | W11: م | X11: 11
D12: =IF(E12="","",COUNT($E$5:E12)) -> 8 | E12: 741 | F12: 760 | G12: 20 | H12: =IF(E12="","",COUNT($E$5:E12)) -> 8 | J12: 8 | K12: 608 | L12: 8 | M12: 474430404 | N12: ع8 | O12: ذكر | P12: مسلم | Q12: ناجح ومنقول | R12: (4 / 6) | S12: لا يوجد | T12: السادس | U12: نصف العام | V12: آخر العام | W12: م | X12: 11
D13: =IF(E13="","",COUNT($E$5:E13)) -> 9 | E13: 761 | F13: 780 | G13: 20 | H13: =IF(E13="","",COUNT($E$5:E13)) -> 9 | J13: 9 | K13: 609 | L13: 9 | M13: 474727551 | N13: ع9 | O13: ذكر | P13: مسلم | Q13: ناجح ومنقول | R13: (1 / 6) | S13: لا يوجد | T13: السادس | U13: نصف العام | V13: آخر العام | W13: م | X13: 11
D14: =IF(E14="","",COUNT($E$5:E14)) -> 10 | E14: 781 | F14: 800 | G14: 20 | H14: =IF(E14="","",COUNT($E$5:E14)) -> 10 | J14: 10 | K14: 610 | L14: 10 | M14: 475394335 | N14: ع10 | O14: ذكر | P14: مسلم | Q14: ناجح ومنقول | R14: (1 / 6) | S14: لا يوجد | T14: السادس | U14: نصف العام | V14: آخر العام | W14: م | X14: 11
D15: =IF(E15="","",COUNT($E$5:E15)) -> 11 | E15: 801 | F15: 808 | G15: 8 | H15: =IF(E15="","",COUNT($E$5:E15)) -> 11 | J15: 11 | K15: 611 | L15: 11 | M15: 472882721 | N15: ع11 | O15: ذكر | P15: مسلم | Q15: ناجح ومنقول | R15: (4 / 6) | S15: لا يوجد | T15: السادس | U15: نصف العام | V15: آخر العام | W15: م | X15: 11
D16: =IF(E16="","",COUNT($E$5:E16)) ->  | H16: =IF(E16="","",COUNT($E$5:E16)) ->  | J16: 12 | K16: 612 | L16: 12 | M16: 474772628 | N16: ع12 | O16: ذكر | P16: مسلم | Q16: ناجح ومنقول | R16: (2 / 6) | S16: لا يوجد | T16: السادس | U16: نصف العام | V16: آخر العام | W16: م | X16: 11
D17: =IF(E17="","",COUNT($E$5:E17)) ->  | H17: =IF(E17="","",COUNT($E$5:E17)) ->  | J17: 13 | K17: 613 | L17: 13 | M17: 474731544 | N17: ع13 | O17: ذكر | P17: مسلم | Q17: ناجح ومنقول | R17: (2 / 6) | S17: لا يوجد | T17: السادس | U17: نصف العام | V17: آخر العام | W17: م | X17: 11
D18: =IF(E18="","",COUNT($E$5:E18)) ->  | H18: =IF(E18="","",COUNT($E$5:E18)) ->  | J18: 14 | K18: 614 | L18: 14 | M18: 474624970 | N18: ع14 | O18: ذكر | P18: مسلم | Q18: ناجح ومنقول | R18: (4 / 6) | S18: لا يوجد | T18: السادس | U18: نصف العام | V18: آخر العام | W18: م | X18: 11
D19: =IF(E19="","",COUNT($E$5:E19)) ->  | H19: =IF(E19="","",COUNT($E$5:E19)) ->  | J19: 15 | K19: 615 | L19: 15 | M19: 468499222 | N19: ع15 | O19: ذكر | P19: مسلم | Q19: ناجح ومنقول | R19: (2 / 6) | S19: لا يوجد | T19: السادس | U19: نصف العام | V19: آخر العام | W19: م | X19: 11
D20: =IF(E20="","",COUNT($E$5:E20)) ->  | H20: =IF(E20="","",COUNT($E$5:E20)) ->  | J20: 16 | K20: 616 | L20: 16 | M20: 474768494 | N20: ع16 | O20: ذكر | P20: مسلم | Q20: ناجح ومنقول | R20: (4 / 6) | S20: لا يوجد | T20: السادس | U20: نصف العام | V20: آخر العام | W20: م | X20: 11
D21: =IF(E21="","",COUNT($E$5:E21)) ->  | H21: =IF(E21="","",COUNT($E$5:E21)) ->  | J21: 17 | K21: 617 | L21: 17 | M21: 475390317 | N21: ع17 | O21: ذكر | P21: مسلم | Q21: ناجح ومنقول | R21: (4 / 6) | S21: لا يوجد | T21: السادس | U21: نصف العام | V21: آخر العام | W21: م | X21: 11
D22: =IF(E22="","",COUNT($E$5:E22)) ->  | H22: =IF(E22="","",COUNT($E$5:E22)) ->  | J22: 18 | K22: 618 | L22: 18 | M22: 472914600 | N22: ع18 | O22: ذكر | P22: مسلم | Q22: ناجح ومنقول | R22: (2 / 6) | S22: لا يوجد | T22: السادس | U22: نصف العام | V22: آخر العام | W22: م | X22: 11
D23: =IF(E23="","",COUNT($E$5:E23)) ->  | H23: =IF(E23="","",COUNT($E$5:E23)) ->  | J23: 19 | K23: 619 | L23: 19 | M23: 474489523 | N23: ع19 | O23: ذكر | P23: مسلم | Q23: ناجح ومنقول | R23: (1 / 6) | S23: لا يوجد | T23: السادس | U23: نصف العام | V23: آخر العام | W23: م | X23: 11
D24: =IF(E24="","",COUNT($E$5:E24)) ->  | H24: =IF(E24="","",COUNT($E$5:E24)) ->  | J24: 20 | K24: 620 | L24: 20 | M24: 475492671 | N24: ع20 | O24: ذكر | P24: مسيحي | Q24: ناجح ومنقول | R24: (1 / 6) | S24: لا يوجد | T24: السادس | U24: نصف العام | V24: آخر العام | W24: م | X24: 11
D25: =IF(E25="","",COUNT($E$5:E25)) ->  | H25: =IF(E25="","",COUNT($E$5:E25)) ->  | J25: 21 | K25: 621 | L25: 21 | M25: 474859929 | N25: ع21 | O25: ذكر | P25: مسلم | Q25: ناجح ومنقول | R25: (2 / 6) | S25: لا يوجد | T25: السادس | U25: نصف العام | V25: آخر العام | W25: م | X25: 11
D26: =IF(E26="","",COUNT($E$5:E26)) ->  | H26: =IF(E26="","",COUNT($E$5:E26)) ->  | J26: 22 | K26: 622 | L26: 22 | M26: 475394760 | N26: ع22 | O26: ذكر | P26: مسيحي | Q26: ناجح ومنقول | R26: (1 / 6) | S26: لا يوجد | T26: السادس | U26: نصف العام | V26: آخر العام | W26: م | X26: 11
D27: =IF(E27="","",COUNT($E$5:E27)) ->  | H27: =IF(E27="","",COUNT($E$5:E27)) ->  | J27: 23 | K27: 623 | L27: 23 | M27: 475217237 | N27: ع23 | O27: ذكر | P27: مسلم | Q27: ناجح ومنقول | R27: (4 / 6) | S27: لا يوجد | T27: السادس | U27: نصف العام | V27: آخر العام | W27: م | X27: 11
D28: =IF(E28="","",COUNT($E$5:E28)) ->  | H28: =IF(E28="","",COUNT($E$5:E28)) ->  | J28: 24 | K28: 624 | L28: 24 | M28: 474832860 | N28: ع24 | O28: ذكر | P28: مسلم | Q28: ناجح ومنقول | R28: (3 / 6) | S28: لا يوجد | T28: السادس | U28: نصف العام | V28: آخر العام | W28: م | X28: 11
D29: =IF(E29="","",COUNT($E$5:E29)) ->  | H29: =IF(E29="","",COUNT($E$5:E29)) ->  | J29: 25 | K29: 625 | L29: 25 | M29: 470596251 | N29: ع25 | O29: ذكر | P29: مسلم | Q29: ناجح ومنقول | R29: (1 / 6) | S29: لا يوجد | T29: السادس | U29: نصف العام | V29: آخر العام | W29: م | X29: 11
D30: =IF(E30="","",COUNT($E$5:E30)) ->  | H30: =IF(E30="","",COUNT($E$5:E30)) ->  | J30: 26 | K30: 626 | L30: 26 | M30: 475390241 | N30: ع26 | O30: ذكر | P30: مسلم | Q30: ناجح ومنقول | R30: (1 / 6) | S30: لا يوجد | T30: السادس | U30: نصف العام | V30: آخر العام | W30: م | X30: 11
D31: =IF(E31="","",COUNT($E$5:E31)) ->  | H31: =IF(E31="","",COUNT($E$5:E31)) ->  | J31: 27 | K31: 627 | L31: 27 | M31: 475394193 | N31: ع27 | O31: ذكر | P31: مسلم | Q31: ناجح ومنقول | R31: (3 / 6) | S31: لا يوجد | T31: السادس | U31: نصف العام | V31: آخر العام | W31: م | X31: 11
D32: =IF(E32="","",COUNT($E$5:E32)) ->  | H32: =IF(E32="","",COUNT($E$5:E32)) ->  | J32: 28 | K32: 628 | L32: 28 | M32: 475394626 | N32: ع28 | O32: ذكر | P32: مسلم | Q32: ناجح ومنقول | R32: (4 / 6) | S32: لا يوجد | T32: السادس | U32: نصف العام | V32: آخر العام | W32: م | X32: 11
D33: =IF(E33="","",COUNT($E$5:E33)) ->  | H33: =IF(E33="","",COUNT($E$5:E33)) ->  | J33: 29 | K33: 629 | L33: 29 | M33: 469592681 | N33: ع29 | O33: ذكر | P33: مسلم | Q33: راسب وباق للاعادة | R33: (2 / 6) | S33: لا يوجد | T33: السادس | U33: نصف العام | V33: آخر العام | W33: م | X33: 11
D34: =IF(E34="","",COUNT($E$5:E34)) ->  | H34: =IF(E34="","",COUNT($E$5:E34)) ->  | J34: 30 | K34: 630 | L34: 30 | M34: 468156056 | N34: ع30 | O34: ذكر | P34: مسلم | Q34: ناجح ومنقول | R34: (4 / 6) | S34: لا يوجد | T34: السادس | U34: نصف العام | V34: آخر العام | W34: م | X34: 11
D35: =IF(E35="","",COUNT($E$5:E35)) ->  | H35: =IF(E35="","",COUNT($E$5:E35)) ->  | J35: 31 | K35: 631 | L35: 31 | M35: 474840929 | N35: ع31 | O35: ذكر | P35: مسلم | Q35: ناجح ومنقول | R35: (3 / 6) | S35: لا يوجد | T35: السادس | U35: نصف العام | V35: آخر العام | W35: م | X35: 11
D36: =IF(E36="","",COUNT($E$5:E36)) ->  | H36: =IF(E36="","",COUNT($E$5:E36)) ->  | J36: 32 | K36: 632 | L36: 32 | M36: 474618271 | N36: ع32 | O36: ذكر | P36: مسلم | Q36: ناجح ومنقول | R36: (1 / 6) | S36: لا يوجد | T36: السادس | U36: نصف العام | V36: آخر العام | W36: م | X36: 11
D37: =IF(E37="","",COUNT($E$5:E37)) ->  | H37: =IF(E37="","",COUNT($E$5:E37)) ->  | J37: 33 | K37: 633 | L37: 33 | M37: 474348285 | N37: ع33 | O37: ذكر | P37: مسلم | Q37: ناجح ومنقول | R37: (3 / 6) | S37: لا يوجد | T37: السادس | U37: نصف العام | V37: آخر العام | W37: م | X37: 11
D38: =IF(E38="","",COUNT($E$5:E38)) ->  | H38: =IF(E38="","",COUNT($E$5:E38)) ->  | J38: 34 | K38: 634 | L38: 34 | M38: 475393029 | N38: ع34 | O38: ذكر | P38: مسلم | Q38: ناجح ومنقول | R38: (1 / 6) | S38: لا يوجد | T38: السادس | U38: نصف العام | V38: آخر العام | W38: م | X38: 11
D39: =IF(E39="","",COUNT($E$5:E39)) ->  | H39: =IF(E39="","",COUNT($E$5:E39)) ->  | J39: 35 | K39: 635 | L39: 35 | M39: 472914749 | N39: ع35 | O39: ذكر | P39: مسلم | Q39: ناجح ومنقول | R39: (2 / 6) | S39: لا يوجد | T39: السادس | U39: نصف العام | V39: آخر العام | W39: م | X39: 11
D40: =IF(E40="","",COUNT($E$5:E40)) ->  | H40: =IF(E40="","",COUNT($E$5:E40)) ->  | J40: 36 | K40: 636 | L40: 36 | M40: 472915050 | N40: ع36 | O40: ذكر | P40: مسلم | Q40: ناجح ومنقول | R40: (1 / 6) | S40: لا يوجد | T40: السادس | U40: نصف العام | V40: آخر العام | W40: م | X40: 11
D41: =IF(E41="","",COUNT($E$5:E41)) ->  | H41: =IF(E41="","",COUNT($E$5:E41)) ->  | J41: 37 | K41: 637 | L41: 37 | M41: 475393644 | N41: ع37 | O41: ذكر | P41: مسلم | Q41: ناجح ومنقول | R41: (1 / 6) | S41: لا يوجد | T41: السادس | U41: نصف العام | V41: آخر العام | W41: م | X41: 11
D42: =IF(E42="","",COUNT($E$5:E42)) ->  | H42: =IF(E42="","",COUNT($E$5:E42)) ->  | J42: 38 | K42: 638 | L42: 38 | M42: 475394382 | N42: ع38 | O42: ذكر | P42: مسلم | Q42: ناجح ومنقول | R42: (1 / 6) | S42: لا يوجد | T42: السادس | U42: نصف العام | V42: آخر العام | W42: م | X42: 11
D43: =IF(E43="","",COUNT($E$5:E43)) ->  | H43: =IF(E43="","",COUNT($E$5:E43)) ->  | J43: 39 | K43: 639 | L43: 39 | M43: 474982497 | N43: ع39 | O43: ذكر | P43: مسلم | Q43: ناجح ومنقول | R43: (2 / 6) | S43: لا يوجد | T43: السادس | U43: نصف العام | V43: آخر العام | W43: م | X43: 11
D44: =IF(E44="","",COUNT($E$5:E44)) ->  | H44: =IF(E44="","",COUNT($E$5:E44)) ->  | J44: 40 | K44: 640 | L44: 40 | M44: 476726210 | N44: ع40 | O44: ذكر | P44: مسلم | Q44: ناجح ومنقول | R44: (2 / 6) | S44: لا يوجد | T44: السادس | U44: نصف العام | V44: آخر العام | W44: م | X44: 11
J45: 41 | K45: 641 | L45: 41 | M45: 473904466 | N45: ع41 | O45: ذكر | P45: مسلم | Q45: ناجح ومنقول | R45: (2 / 6) | S45: لا يوجد | T45: السادس | U45: نصف العام | V45: آخر العام | W45: م | X45: 11
J46: 42 | K46: 642 | L46: 42 | M46: 474743167 | N46: ع42 | O46: ذكر | P46: مسلم | Q46: ناجح ومنقول | R46: (3 / 6) | S46: لا يوجد | T46: السادس | U46: نصف العام | V46: آخر العام | W46: م | X46: 11
J47: 43 | K47: 643 | L47: 43 | M47: 472915557 | N47: ع43 | O47: ذكر | P47: مسلم | Q47: ناجح ومنقول | R47: (3 / 6) | S47: لا يوجد | T47: السادس | U47: نصف العام | V47: آخر العام | W47: م | X47: 11
J48: 44 | K48: 644 | L48: 44 | M48: 474929581 | N48: ع44 | O48: ذكر | P48: مسلم | Q48: ناجح ومنقول | R48: (1 / 6) | S48: لا يوجد | T48: السادس | U48: نصف العام | V48: آخر العام | W48: م | X48: 11
J49: 45 | K49: 645 | L49: 45 | M49: 481067088 | N49: ع45 | O49: ذكر | P49: مسلم | Q49: ناجح ومنقول | R49: (2 / 6) | S49: لا يوجد | T49: السادس | U49: نصف العام | V49: آخر العام | W49: م | X49: 11
J50: 46 | K50: 646 | L50: 46 | M50: 472915411 | N50: ع46 | O50: ذكر | P50: مسلم | Q50: ناجح ومنقول | R50: (2 / 6) | S50: لا يوجد | T50: السادس | U50: نصف العام | V50: آخر العام | W50: م | X50: 11
J51: 47 | K51: 647 | L51: 47 | M51: 475399646 | N51: ع47 | O51: ذكر | P51: مسلم | Q51: ناجح ومنقول | R51: (4 / 6) | S51: لا يوجد | T51: السادس | U51: نصف العام | V51: آخر العام | W51: م | X51: 11
J52: 48 | K52: 648 | L52: 48 | M52: 475330462 | N52: ع48 | O52: ذكر | P52: مسلم | Q52: ناجح ومنقول | R52: (2 / 6) | S52: لا يوجد | T52: السادس | U52: نصف العام | V52: آخر العام | W52: م | X52: 11
J53: 49 | K53: 649 | L53: 49 | M53: 474772409 | N53: ع49 | O53: ذكر | P53: مسلم | Q53: ناجح ومنقول | R53: (1 / 6) | S53: لا يوجد | T53: السادس | U53: نصف العام | V53: آخر العام | W53: م | X53: 11
J54: 50 | K54: 650 | L54: 50 | M54: 474778959 | N54: ع50 | O54: ذكر | P54: مسلم | Q54: ناجح ومنقول | R54: (4 / 6) | S54: لا يوجد | T54: السادس | U54: نصف العام | V54: آخر العام | W54: م | X54: 11
J55: 51 | K55: 651 | L55: 51 | M55: 463636264 | N55: ع51 | O55: ذكر | P55: مسلم | Q55: ناجح ومنقول | R55: (3 / 6) | S55: لا يوجد | T55: السادس | U55: نصف العام | V55: آخر العام | W55: م | X55: 11
J56: 52 | K56: 652 | L56: 52 | M56: 474717372 | N56: ع52 | O56: ذكر | P56: مسلم | Q56: ناجح ومنقول | R56: (3 / 6) | S56: لا يوجد | T56: السادس | U56: نصف العام | V56: آخر العام | W56: م | X56: 11
J57: 53 | K57: 653 | L57: 53 | M57: 475394121 | N57: ع53 | O57: ذكر | P57: مسلم | Q57: ناجح ومنقول | R57: (4 / 6) | S57: لا يوجد | T57: السادس | U57: نصف العام | V57: آخر العام | W57: م | X57: 11
J58: 54 | K58: 654 | L58: 54 | M58: 475393707 | N58: ع54 | O58: ذكر | P58: مسلم | Q58: ناجح ومنقول | R58: (4 / 6) | S58: لا يوجد | T58: السادس | U58: نصف العام | V58: آخر العام | W58: م | X58: 11
J59: 55 | K59: 655 | L59: 55 | M59: 472915688 | N59: ع55 | O59: ذكر | P59: مسلم | Q59: ناجح ومنقول | R59: (3 / 6) | S59: لا يوجد | T59: السادس | U59: نصف العام | V59: آخر العام | W59: م | X59: 11
J60: 56 | K60: 656 | L60: 56 | M60: 475676639 | N60: ع56 | O60: ذكر | P60: مسلم | Q60: ناجح ومنقول | R60: (1 / 6) | S60: لا يوجد | T60: السادس | U60: نصف العام | V60: آخر العام | W60: م | X60: 11
J61: 57 | K61: 657 | L61: 57 | M61: 480881720 | N61: ع57 | O61: ذكر | P61: مسلم | Q61: ناجح ومنقول | R61: (4 / 6) | S61: لا يوجد | T61: السادس | U61: نصف العام | V61: آخر العام | W61: م | X61: 11
J62: 58 | K62: 658 | L62: 58 | M62: 475308431 | N62: ع58 | O62: ذكر | P62: مسلم | Q62: ناجح ومنقول | R62: (2 / 6) | S62: لا يوجد | T62: السادس | U62: نصف العام | V62: آخر العام | W62: م | X62: 11
J63: 59 | K63: 659 | L63: 59 | M63: 475394689 | N63: ع59 | O63: ذكر | P63: مسلم | Q63: ناجح ومنقول | R63: (3 / 6) | S63: لا يوجد | T63: السادس | U63: نصف العام | V63: آخر العام | W63: م | X63: 11
J64: 60 | K64: 660 | L64: 60 | M64: 463590195 | N64: ع60 | O64: ذكر | P64: مسلم | Q64: ناجح ومنقول | R64: (4 / 6) | S64: لا يوجد | T64: السادس | U64: نصف العام | V64: آخر العام | W64: م | X64: 11
J65: 61 | K65: 661 | L65: 61 | M65: 474711823 | N65: ع61 | O65: ذكر | P65: مسلم | Q65: ناجح ومنقول | R65: (1 / 6) | S65: لا يوجد | T65: السادس | U65: نصف العام | V65: آخر العام | W65: م | X65: 11
J66: 62 | K66: 662 | L66: 62 | M66: 474444975 | N66: ع62 | O66: ذكر | P66: مسلم | Q66: ناجح ومنقول | R66: (1 / 6) | S66: لا يوجد | T66: السادس | U66: نصف العام | V66: آخر العام | W66: م | X66: 11
J67: 63 | K67: 663 | L67: 63 | M67: 475290935 | N67: ع63 | O67: ذكر | P67: مسلم | Q67: ناجح ومنقول | R67: (3 / 6) | S67: لا يوجد | T67: السادس | U67: نصف العام | V67: آخر العام | W67: م | X67: 11
J68: 64 | K68: 664 | L68: 64 | M68: 469925602 | N68: ع64 | O68: ذكر | P68: مسلم | Q68: ناجح ومنقول | R68: (1 / 6) | S68: لا يوجد | T68: السادس | U68: نصف العام | V68: آخر العام | W68: م | X68: 11
J69: 65 | K69: 665 | L69: 65 | M69: 475332817 | N69: ع65 | O69: ذكر | P69: مسلم | Q69: ناجح ومنقول | R69: (4 / 6) | S69: لا يوجد | T69: السادس | U69: نصف العام | V69: آخر العام | W69: م | X69: =IF(K69="","",VLOOKUP(K69,جلوس,4)) -> 11
J70: 66 | K70: 666 | L70: 66 | M70: 474503659 | N70: ع66 | O70: ذكر | P70: مسلم | Q70: ناجح ومنقول | R70: (3 / 6) | S70: لا يوجد | T70: السادس | U70: نصف العام | V70: آخر العام | W70: م | X70: 11 | Y70: =IF(X70=X71,"","نهاية اللجنة") -> 
J71: =IF(J70="","",IF(J70+1>$K$2,"",J70+1)) -> 67 | K71: =IF(K70="","",IF(K70+1>$K$3,"",K70+1)) -> 667 | L71: 67 | M71: 474940248 | N71: ع67 | O71: ذكر | P71: مسلم | Q71: ناجح ومنقول | R71: (2 / 6) | S71: لا يوجد | T71: السادس | U71: نصف العام | V71: آخر العام | W71: م | X71: 11
J72: 68 | K72: 668 | L72: 68 | M72: 474966265 | N72: ع68 | O72: ذكر | P72: مسلم | Q72: ناجح ومنقول | R72: (3 / 6) | S72: لا يوجد | T72: السادس | U72: نصف العام | V72: آخر العام | W72: م | X72: 11
J73: 69 | K73: 669 | L73: 69 | M73: 474815894 | N73: ع69 | O73: ذكر | P73: مسلم | Q73: ناجح ومنقول | R73: (3 / 6) | S73: لا يوجد | T73: السادس | U73: نصف العام | V73: آخر العام | W73: م | X73: 11
J74: 70 | K74: 670 | L74: 70 | M74: 475394242 | N74: ع70 | O74: ذكر | P74: مسلم | Q74: ناجح ومنقول | R74: (3 / 6) | S74: لا يوجد | T74: السادس | U74: نصف العام | V74: آخر العام | W74: م | X74: 11
J75: 71 | K75: 671 | L75: 71 | M75: 474945406 | N75: ع71 | O75: ذكر | P75: مسلم | Q75: ناجح ومنقول | R75: (1 / 6) | S75: لا يوجد | T75: السادس | U75: نصف العام | V75: آخر العام | W75: م | X75: 11
J76: 72 | K76: 672 | L76: 72 | M76: 474958246 | N76: ع72 | O76: ذكر | P76: مسلم | Q76: ناجح ومنقول | R76: (2 / 6) | S76: لا يوجد | T76: السادس | U76: نصف العام | V76: آخر العام | W76: م | X76: 11
J77: 73 | K77: 673 | L77: 73 | M77: 475400959 | N77: ع73 | O77: ذكر | P77: مسلم | Q77: ناجح ومنقول | R77: (2 / 6) | S77: لا يوجد | T77: السادس | U77: نصف العام | V77: آخر العام | W77: م | X77: 11
J78: 74 | K78: 674 | L78: 74 | M78: 475400826 | N78: ع74 | O78: ذكر | P78: مسلم | Q78: ناجح ومنقول | R78: (4 / 6) | S78: لا يوجد | T78: السادس | U78: نصف العام | V78: آخر العام | W78: م | X78: 11
J79: 75 | K79: 675 | L79: 75 | M79: 472911918 | N79: ع75 | O79: ذكر | P79: مسلم | Q79: ناجح ومنقول | R79: (4 / 6) | S79: لا يوجد | T79: السادس | U79: نصف العام | V79: آخر العام | W79: م | X79: 11
J80: 76 | K80: 676 | L80: 76 | M80: 475394139 | N80: ع76 | O80: ذكر | P80: مسلم | Q80: ناجح ومنقول | R80: (4 / 6) | S80: لا يوجد | T80: السادس | U80: نصف العام | V80: آخر العام | W80: م | X80: 11
J81: 77 | K81: 677 | L81: 77 | M81: 474919134 | N81: ع77 | O81: ذكر | P81: مسلم | Q81: ناجح ومنقول | R81: (3 / 6) | S81: لا يوجد | T81: السادس | U81: نصف العام | V81: آخر العام | W81: م | X81: 11
J82: 78 | K82: 678 | L82: 78 | M82: 481703750 | N82: ع78 | O82: ذكر | P82: مسلم | Q82: ناجح ومنقول | R82: (3 / 6) | S82: لا يوجد | T82: السادس | U82: نصف العام | V82: آخر العام | W82: م | X82: 11
J83: 79 | K83: 679 | L83: 79 | M83: 474735461 | N83: ع79 | O83: ذكر | P83: مسلم | Q83: ناجح ومنقول | R83: (4 / 6) | S83: لا يوجد | T83: السادس | U83: نصف العام | V83: آخر العام | W83: م | X83: 11
J84: 80 | K84: 680 | L84: 80 | M84: 472882931 | N84: ع80 | O84: ذكر | P84: مسلم | Q84: ناجح ومنقول | R84: (2 / 6) | S84: لا يوجد | T84: السادس | U84: نصف العام | V84: آخر العام | W84: م | X84: 11
J85: 81 | K85: 681 | L85: 81 | M85: 474790728 | N85: ع81 | O85: ذكر | P85: مسلم | Q85: ناجح ومنقول | R85: (1 / 6) | S85: لا يوجد | T85: السادس | U85: نصف العام | V85: آخر العام | W85: م | X85: 11
J86: 82 | K86: 682 | L86: 82 | M86: 486983657 | N86: ع82 | O86: ذكر | P86: مسلم | Q86: ناجح ومنقول | R86: (2 / 6) | S86: لا يوجد | T86: السادس | U86: نصف العام | V86: آخر العام | W86: م | X86: 11
J87: 83 | K87: 683 | L87: 83 | M87: 471584155 | N87: ع83 | O87: ذكر | P87: مسلم | Q87: ناجح ومنقول | R87: (1 / 6) | S87: لا يوجد | T87: السادس | U87: نصف العام | V87: آخر العام | W87: م | X87: 11
J88: 84 | K88: 684 | L88: 84 | M88: 474726155 | N88: ع84 | O88: ذكر | P88: مسلم | Q88: ناجح ومنقول | R88: (3 / 6) | S88: لا يوجد | T88: السادس | U88: نصف العام | V88: آخر العام | W88: م | X88: 11
J89: 85 | K89: 685 | L89: 85 | M89: 475644040 | N89: ع85 | O89: ذكر | P89: مسلم | Q89: ناجح ومنقول | R89: (1 / 6) | S89: لا يوجد | T89: السادس | U89: نصف العام | V89: آخر العام | W89: م | X89: 11
J90: 86 | K90: 686 | L90: 86 | M90: 475393736 | N90: ع86 | O90: ذكر | P90: مسلم | Q90: ناجح ومنقول | R90: (2 / 6) | S90: لا يوجد | T90: السادس | U90: نصف العام | V90: آخر العام | W90: م | X90: 11
J91: 87 | K91: 687 | L91: 87 | M91: 474860937 | N91: ع87 | O91: ذكر | P91: مسلم | Q91: ناجح ومنقول | R91: (2 / 6) | S91: لا يوجد | T91: السادس | U91: نصف العام | V91: آخر العام | W91: م | X91: 11
J92: 88 | K92: 688 | L92: 88 | M92: 476828322 | N92: ع88 | O92: ذكر | P92: مسلم | Q92: ناجح ومنقول | R92: (4 / 6) | S92: لا يوجد | T92: السادس | U92: نصف العام | V92: آخر العام | W92: م | X92: 11
J93: 89 | K93: 689 | L93: 89 | M93: 475212566 | N93: ع89 | O93: ذكر | P93: مسلم | Q93: ناجح ومنقول | R93: (3 / 6) | S93: لا يوجد | T93: السادس | U93: نصف العام | V93: آخر العام | W93: م | X93: 11
J94: 90 | K94: 690 | L94: 90 | M94: 472911765 | N94: ع90 | O94: ذكر | P94: مسلم | Q94: ناجح ومنقول | R94: (1 / 6) | S94: لا يوجد | T94: السادس | U94: نصف العام | V94: آخر العام | W94: م | X94: 11
J95: 91 | K95: 691 | L95: 91 | M95: 475394001 | N95: ع91 | O95: ذكر | P95: مسلم | Q95: ناجح ومنقول | R95: (4 / 6) | S95: لا يوجد | T95: السادس | U95: نصف العام | V95: آخر العام | W95: م | X95: 11
J96: 92 | K96: 692 | L96: 92 | M96: 475134394 | N96: ع92 | O96: ذكر | P96: مسلم | Q96: ناجح ومنقول | R96: (3 / 6) | S96: لا يوجد | T96: السادس | U96: نصف العام | V96: آخر العام | W96: م | X96: 11
J97: 93 | K97: 693 | L97: 93 | M97: 476640197 | N97: ع93 | O97: ذكر | P97: مسلم | Q97: ناجح ومنقول | R97: (2 / 6) | S97: لا يوجد | T97: السادس | U97: نصف العام | V97: آخر العام | W97: م | X97: 11
J98: 94 | K98: 694 | L98: 94 | M98: 475274193 | N98: ع94 | O98: ذكر | P98: مسلم | Q98: ناجح ومنقول | R98: (3 / 6) | S98: لا يوجد | T98: السادس | U98: نصف العام | V98: آخر العام | W98: م | X98: 11
J99: 95 | K99: 695 | L99: 95 | M99: 475310035 | N99: ع95 | O99: ذكر | P99: مسلم | Q99: ناجح ومنقول | R99: (1 / 6) | S99: لا يوجد | T99: السادس | U99: نصف العام | V99: آخر العام | W99: م | X99: 11
J100: 96 | K100: 696 | L100: 96 | M100: 475394644 | N100: ع96 | O100: ذكر | P100: مسلم | Q100: ناجح ومنقول | R100: (3 / 6) | S100: لا يوجد | T100: السادس | U100: نصف العام | V100: آخر العام | W100: م | X100: 11
J101: 97 | K101: 697 | L101: 97 | M101: 475245118 | N101: ع97 | O101: ذكر | P101: مسلم | Q101: ناجح ومنقول | R101: (1 / 6) | S101: لا يوجد | T101: السادس | U101: نصف العام | V101: آخر العام | W101: م | X101: 11
J102: 98 | K102: 698 | L102: 98 | M102: 475194699 | N102: ع98 | O102: ذكر | P102: مسلم | Q102: ناجح ومنقول | R102: (2 / 6) | S102: لا يوجد | T102: السادس | U102: نصف العام | V102: آخر العام | W102: م | X102: 11
J103: 99 | K103: 699 | L103: 99 | M103: 475134419 | N103: ع99 | O103: ذكر | P103: مسلم | Q103: ناجح ومنقول | R103: (3 / 6) | S103: لا يوجد | T103: السادس | U103: نصف العام | V103: آخر العام | W103: م | X103: 11
J104: 100 | K104: 700 | L104: 100 | M104: 477297656 | N104: ع100 | O104: ذكر | P104: مسلم | Q104: ناجح ومنقول | R104: (4 / 6) | S104: لا يوجد | T104: السادس | U104: نصف العام | V104: آخر العام | W104: م | X104: 11
J105: 101 | K105: 701 | L105: 101 | M105: 472883431 | N105: ع101 | O105: ذكر | P105: مسلم | Q105: ناجح ومنقول | R105: (1 / 6) | S105: لا يوجد | T105: السادس | U105: نصف العام | V105: آخر العام | W105: م | X105: 11
J106: 102 | K106: 702 | L106: 102 | M106: 475390322 | N106: ع102 | O106: ذكر | P106: مسلم | Q106: ناجح ومنقول | R106: (4 / 6) | S106: لا يوجد | T106: السادس | U106: نصف العام | V106: آخر العام | W106: م | X106: 11
J107: 103 | K107: 703 | L107: 103 | M107: 474951322 | N107: ع103 | O107: ذكر | P107: مسلم | Q107: ناجح ومنقول | R107: (2 / 6) | S107: لا يوجد | T107: السادس | U107: نصف العام | V107: آخر العام | W107: م | X107: 11
J108: 104 | K108: 704 | L108: 104 | M108: 475399707 | N108: ع104 | O108: ذكر | P108: مسلم | Q108: ناجح ومنقول | R108: (3 / 6) | S108: لا يوجد | T108: السادس | U108: نصف العام | V108: آخر العام | W108: م | X108: 11
J109: 105 | K109: 705 | L109: 105 | M109: 474958119 | N109: ع105 | O109: ذكر | P109: مسلم | Q109: ناجح ومنقول | R109: (2 / 6) | S109: لا يوجد | T109: السادس | U109: نصف العام | V109: آخر العام | W109: م | X109: 11
J110: 106 | K110: 706 | L110: 106 | M110: 486227034 | N110: ع106 | O110: أنثى | P110: مسلمة | Q110: ناجح ومنقول | R110: (2 / 6) | S110: لا يوجد | T110: السادس | U110: نصف العام | V110: آخر العام | W110: م | X110: 11
J111: 107 | K111: 707 | L111: 107 | M111: 476261261 | N111: ع107 | O111: أنثى | P111: مسلمة | Q111: ناجح ومنقول | R111: (4 / 6) | S111: لا يوجد | T111: السادس | U111: نصف العام | V111: آخر العام | W111: م | X111: 11
J112: 108 | K112: 708 | L112: 108 | M112: 474875873 | N112: ع108 | O112: أنثى | P112: مسلمة | Q112: ناجح ومنقول | R112: (4 / 6) | S112: لا يوجد | T112: السادس | U112: نصف العام | V112: آخر العام | W112: م | X112: 11
J113: 109 | K113: 709 | L113: 109 | M113: 473670293 | N113: ع109 | O113: أنثى | P113: مسلمة | Q113: ناجح ومنقول | R113: (4 / 6) | S113: يوجد | T113: السادس | U113: نصف العام | V113: آخر العام | W113: م | X113: 11
J114: 110 | K114: 710 | L114: 110 | M114: 475165101 | N114: ع110 | O114: أنثى | P114: مسلمة | Q114: ناجح ومنقول | R114: (3 / 6) | S114: لا يوجد | T114: السادس | U114: نصف العام | V114: آخر العام | W114: م | X114: 11
J115: 111 | K115: 711 | L115: 111 | M115: 475385765 | N115: ع111 | O115: أنثى | P115: مسلمة | Q115: ناجح ومنقول | R115: (3 / 6) | S115: لا يوجد | T115: السادس | U115: نصف العام | V115: آخر العام | W115: م | X115: 11
J116: 112 | K116: 712 | L116: 112 | M116: 481066440 | N116: ع112 | O116: أنثى | P116: مسلمة | Q116: ناجح ومنقول | R116: (2 / 6) | S116: لا يوجد | T116: السادس | U116: نصف العام | V116: آخر العام | W116: م | X116: 11
J117: 113 | K117: 713 | L117: 113 | M117: 475399345 | N117: ع113 | O117: أنثى | P117: مسلمة | Q117: ناجح ومنقول | R117: (2 / 6) | S117: لا يوجد | T117: السادس | U117: نصف العام | V117: آخر العام | W117: م | X117: 11
J118: 114 | K118: 714 | L118: 114 | M118: 475299933 | N118: ع114 | O118: أنثى | P118: مسلمة | Q118: ناجح ومنقول | R118: (3 / 6) | S118: لا يوجد | T118: السادس | U118: نصف العام | V118: آخر العام | W118: م | X118: 11
J119: 115 | K119: 715 | L119: 115 | M119: 474483843 | N119: ع115 | O119: أنثى | P119: مسلمة | Q119: ناجح ومنقول | R119: (2 / 6) | S119: لا يوجد | T119: السادس | U119: نصف العام | V119: آخر العام | W119: م | X119: 11
J120: 116 | K120: 716 | L120: 116 | M120: 474752320 | N120: ع116 | O120: أنثى | P120: مسلمة | Q120: ناجح ومنقول | R120: (3 / 6) | S120: لا يوجد | T120: السادس | U120: نصف العام | V120: آخر العام | W120: م | X120: 11
J121: 117 | K121: 717 | L121: 117 | M121: 474570382 | N121: ع117 | O121: أنثى | P121: مسلمة | Q121: ناجح ومنقول | R121: (3 / 6) | S121: لا يوجد | T121: السادس | U121: نصف العام | V121: آخر العام | W121: م | X121: 11
J122: 118 | K122: 718 | L122: 118 | M122: 472882001 | N122: ع118 | O122: أنثى | P122: مسلمة | Q122: ناجح ومنقول | R122: (3 / 6) | S122: لا يوجد | T122: السادس | U122: نصف العام | V122: آخر العام | W122: م | X122: 11
J123: 119 | K123: 719 | L123: 119 | M123: 475401604 | N123: ع119 | O123: أنثى | P123: مسلمة | Q123: ناجح ومنقول | R123: (3 / 6) | S123: لا يوجد | T123: السادس | U123: نصف العام | V123: آخر العام | W123: م | X123: 11
J124: 120 | K124: 720 | L124: 120 | M124: 480084648 | N124: ع120 | O124: أنثى | P124: مسلمة | Q124: ناجح ومنقول | R124: (2 / 6) | S124: يوجد | T124: السادس | U124: نصف العام | V124: آخر العام | W124: م | X124: 11
J125: 121 | K125: 721 | L125: 121 | M125: 475401554 | N125: ع121 | O125: أنثى | P125: مسلمة | Q125: ناجح ومنقول | R125: (1 / 6) | S125: لا يوجد | T125: السادس | U125: نصف العام | V125: آخر العام | W125: م | X125: 11
J126: 122 | K126: 722 | L126: 122 | M126: 474982276 | N126: ع122 | O126: أنثى | P126: مسلمة | Q126: ناجح ومنقول | R126: (4 / 6) | S126: لا يوجد | T126: السادس | U126: نصف العام | V126: آخر العام | W126: م | X126: 11
J127: 123 | K127: 723 | L127: 123 | M127: 474998944 | N127: ع123 | O127: أنثى | P127: مسلمة | Q127: ناجح ومنقول | R127: (1 / 6) | S127: لا يوجد | T127: السادس | U127: نصف العام | V127: آخر العام | W127: م | X127: 11
J128: 124 | K128: 724 | L128: 124 | M128: 475306305 | N128: ع124 | O128: أنثى | P128: مسلمة | Q128: ناجح ومنقول | R128: (2 / 6) | S128: لا يوجد | T128: السادس | U128: نصف العام | V128: آخر العام | W128: م | X128: 11
J129: 125 | K129: 725 | L129: 125 | M129: 475401592 | N129: ع125 | O129: أنثى | P129: مسلمة | Q129: ناجح ومنقول | R129: (2 / 6) | S129: لا يوجد | T129: السادس | U129: نصف العام | V129: آخر العام | W129: م | X129: 11
J130: 126 | K130: 726 | L130: 126 | M130: 472881678 | N130: ع126 | O130: أنثى | P130: مسلمة | Q130: ناجح ومنقول | R130: (2 / 6) | S130: لا يوجد | T130: السادس | U130: نصف العام | V130: آخر العام | W130: م | X130: 11
J131: 127 | K131: 727 | L131: 127 | M131: 475400741 | N131: ع127 | O131: أنثى | P131: مسلمة | Q131: ناجح ومنقول | R131: (3 / 3) | S131: لا يوجد | T131: السادس | U131: نصف العام | V131: آخر العام | W131: م | X131: 11
J132: 128 | K132: 728 | L132: 128 | M132: 474721506 | N132: ع128 | O132: أنثى | P132: مسلمة | Q132: ناجح ومنقول | R132: (4 / 6) | S132: لا يوجد | T132: السادس | U132: نصف العام | V132: آخر العام | W132: م | X132: 11
J133: 129 | K133: 729 | L133: 129 | M133: 472813828 | N133: ع129 | O133: أنثى | P133: مسلمة | Q133: ناجح ومنقول | R133: (1 / 6) | S133: لا يوجد | T133: السادس | U133: نصف العام | V133: آخر العام | W133: م | X133: =IF(K133="","",VLOOKUP(K133,جلوس,4)) -> 11
J134: 130 | K134: 730 | L134: 130 | M134: 476197808 | N134: ع130 | O134: أنثى | P134: مسلمة | Q134: ناجح ومنقول | R134: (3 / 6) | S134: لا يوجد | T134: السادس | U134: نصف العام | V134: آخر العام | W134: م | X134: 11 | Y134: =IF(X134=X135,"","نهاية اللجنة") -> 
J135: =IF(J134="","",IF(J134+1>$K$2,"",J134+1)) -> 131 | K135: =IF(K134="","",IF(K134+1>$K$3,"",K134+1)) -> 731 | L135: 131 | M135: 474982122 | N135: ع131 | O135: أنثى | P135: مسلمة | Q135: ناجح ومنقول | R135: (4 / 6) | S135: لا يوجد | T135: السادس | U135: نصف العام | V135: آخر العام | W135: م | X135: 11
J136: 132 | K136: 732 | L136: 132 | M136: 474834318 | N136: ع132 | O136: أنثى | P136: مسلمة | Q136: ناجح ومنقول | R136: (2 / 6) | S136: لا يوجد | T136: السادس | U136: نصف العام | V136: آخر العام | W136: م | X136: 11
J137: 133 | K137: 733 | L137: 133 | M137: 474827196 | N137: ع133 | O137: أنثى | P137: مسلمة | Q137: ناجح ومنقول | R137: (3 / 6) | S137: لا يوجد | T137: السادس | U137: نصف العام | V137: آخر العام | W137: م | X137: 11
J138: 134 | K138: 734 | L138: 134 | M138: 472422093 | N138: ع134 | O138: أنثى | P138: مسلمة | Q138: ناجح ومنقول | R138: (4 / 6) | S138: لا يوجد | T138: السادس | U138: نصف العام | V138: آخر العام | W138: م | X138: 11
J139: 135 | K139: 735 | L139: 135 | M139: 474819761 | N139: ع135 | O139: أنثى | P139: مسلمة | Q139: ناجح ومنقول | R139: (4 / 6) | S139: لا يوجد | T139: السادس | U139: نصف العام | V139: آخر العام | W139: م | X139: 11
J140: 136 | K140: 736 | L140: 136 | M140: 475402030 | N140: ع136 | O140: أنثى | P140: مسلمة | Q140: ناجح ومنقول | R140: (2 / 6) | S140: لا يوجد | T140: السادس | U140: نصف العام | V140: آخر العام | W140: م | X140: 11
J141: 137 | K141: 737 | L141: 137 | M141: 473375251 | N141: ع137 | O141: أنثى | P141: مسلمة | Q141: ناجح ومنقول | R141: (4 / 6) | S141: لا يوجد | T141: السادس | U141: نصف العام | V141: آخر العام | W141: م | X141: 11
J142: 138 | K142: 738 | L142: 138 | M142: 475392794 | N142: ع138 | O142: أنثى | P142: مسلمة | Q142: ناجح ومنقول | R142: (1 / 6) | S142: لا يوجد | T142: السادس | U142: نصف العام | V142: آخر العام | W142: م | X142: 11
J143: 139 | K143: 739 | L143: 139 | M143: 475509758 | N143: ع139 | O143: أنثى | P143: مسلمة | Q143: ناجح ومنقول | R143: (4 / 6) | S143: لا يوجد | T143: السادس | U143: نصف العام | V143: آخر العام | W143: م | X143: 11
J144: 140 | K144: 740 | L144: 140 | M144: 474399556 | N144: ع140 | O144: أنثى | P144: مسلمة | Q144: ناجح ومنقول | R144: (2 / 6) | S144: لا يوجد | T144: السادس | U144: نصف العام | V144: آخر العام | W144: م | X144: 11
J145: 141 | K145: 741 | L145: 141 | M145: 475401835 | N145: ع141 | O145: أنثى | P145: مسلمة | Q145: ناجح ومنقول | R145: (3 / 6) | S145: لا يوجد | T145: السادس | U145: نصف العام | V145: آخر العام | W145: م | X145: 11
J146: 142 | K146: 742 | L146: 142 | M146: 475401279 | N146: ع142 | O146: أنثى | P146: مسلمة | Q146: ناجح ومنقول | R146: (4 / 6) | S146: لا يوجد | T146: السادس | U146: نصف العام | V146: آخر العام | W146: م | X146: 11
J147: 143 | K147: 743 | L147: 143 | M147: 475399881 | N147: ع143 | O147: أنثى | P147: مسلمة | Q147: ناجح ومنقول | R147: (3 / 6) | S147: لا يوجد | T147: السادس | U147: نصف العام | V147: آخر العام | W147: م | X147: 11
J148: 144 | K148: 744 | L148: 144 | M148: 475880406 | N148: ع144 | O148: أنثى | P148: مسلمة | Q148: ناجح ومنقول | R148: (2 / 6) | S148: لا يوجد | T148: السادس | U148: نصف العام | V148: آخر العام | W148: م | X148: 11
J149: 145 | K149: 745 | L149: 145 | M149: 476634459 | N149: ع145 | O149: أنثى | P149: مسلمة | Q149: ناجح ومنقول | R149: (3 / 6) | S149: لا يوجد | T149: السادس | U149: نصف العام | V149: آخر العام | W149: م | X149: 11
J150: 146 | K150: 746 | L150: 146 | M150: 480469710 | N150: ع146 | O150: أنثى | P150: مسلمة | Q150: ناجح ومنقول | R150: (1 / 6) | S150: لا يوجد | T150: السادس | U150: نصف العام | V150: آخر العام | W150: م | X150: 11
J151: 147 | K151: 747 | L151: 147 | M151: 475401349 | N151: ع147 | O151: أنثى | P151: مسلمة | Q151: ناجح ومنقول | R151: (3 / 6) | S151: لا يوجد | T151: السادس | U151: نصف العام | V151: آخر العام | W151: م | X151: 11
J152: 148 | K152: 748 | L152: 148 | M152: 471971568 | N152: ع148 | O152: أنثى | P152: مسلمة | Q152: ناجح ومنقول | R152: (3 / 6) | S152: لا يوجد | T152: السادس | U152: نصف العام | V152: آخر العام | W152: م | X152: 11
J153: 149 | K153: 749 | L153: 149 | M153: 475449747 | N153: ع149 | O153: أنثى | P153: مسلمة | Q153: ناجح ومنقول | R153: (4 / 6) | S153: لا يوجد | T153: السادس | U153: نصف العام | V153: آخر العام | W153: م | X153: 11
J154: 150 | K154: 750 | L154: 150 | M154: 475391142 | N154: ع150 | O154: أنثى | P154: مسلمة | Q154: ناجح ومنقول | R154: (1 / 6) | S154: لا يوجد | T154: السادس | U154: نصف العام | V154: آخر العام | W154: م | X154: 11
J155: 151 | K155: 751 | L155: 151 | M155: 475007627 | N155: ع151 | O155: أنثى | P155: مسلمة | Q155: ناجح ومنقول | R155: (2 / 6) | S155: لا يوجد | T155: السادس | U155: نصف العام | V155: آخر العام | W155: م | X155: 11
J156: 152 | K156: 752 | L156: 152 | M156: 472882307 | N156: ع152 | O156: أنثى | P156: مسلمة | Q156: ناجح ومنقول | R156: (2 / 6) | S156: لا يوجد | T156: السادس | U156: نصف العام | V156: آخر العام | W156: م | X156: 11
J157: 153 | K157: 753 | L157: 153 | M157: 474975178 | N157: ع153 | O157: أنثى | P157: مسلمة | Q157: ناجح ومنقول | R157: (2 / 6) | S157: لا يوجد | T157: السادس | U157: نصف العام | V157: آخر العام | W157: م | X157: 11
J158: 154 | K158: 754 | L158: 154 | M158: 475401382 | N158: ع154 | O158: أنثى | P158: مسلمة | Q158: ناجح ومنقول | R158: (4 / 6) | S158: لا يوجد | T158: السادس | U158: نصف العام | V158: آخر العام | W158: م | X158: 11
J159: 155 | K159: 755 | L159: 155 | M159: 475185296 | N159: ع155 | O159: أنثى | P159: مسلمة | Q159: ناجح ومنقول | R159: (4 / 6) | S159: لا يوجد | T159: السادس | U159: نصف العام | V159: آخر العام | W159: م | X159: 11
J160: 156 | K160: 756 | L160: 156 | M160: 475140211 | N160: ع156 | O160: أنثى | P160: مسلمة | Q160: ناجح ومنقول | R160: (2 / 6) | S160: لا يوجد | T160: السادس | U160: نصف العام | V160: آخر العام | W160: م | X160: 11
J161: 157 | K161: 757 | L161: 157 | M161: 474737566 | N161: ع157 | O161: أنثى | P161: مسلمة | Q161: ناجح ومنقول | R161: (1 / 6) | S161: لا يوجد | T161: السادس | U161: نصف العام | V161: آخر العام | W161: م | X161: 11
J162: 158 | K162: 758 | L162: 158 | M162: 475393967 | N162: ع158 | O162: أنثى | P162: مسلمة | Q162: ناجح ومنقول | R162: (1 / 6) | S162: لا يوجد | T162: السادس | U162: نصف العام | V162: آخر العام | W162: م | X162: 11
J163: 159 | K163: 759 | L163: 159 | M163: 474395607 | N163: ع159 | O163: أنثى | P163: مسلمة | Q163: ناجح ومنقول | R163: (2 / 6) | S163: لا يوجد | T163: السادس | U163: نصف العام | V163: آخر العام | W163: م | X163: 11
J164: 160 | K164: 760 | L164: 160 | M164: 474393321 | N164: ع160 | O164: أنثى | P164: مسلمة | Q164: ناجح ومنقول | R164: (1 / 6) | S164: لا يوجد | T164: السادس | U164: نصف العام | V164: آخر العام | W164: م | X164: 11
J165: 161 | K165: 761 | L165: 161 | M165: 472882439 | N165: ع161 | O165: أنثى | P165: مسلمة | Q165: ناجح ومنقول | R165: (2 / 6) | S165: لا يوجد | T165: السادس | U165: نصف العام | V165: آخر العام | W165: م | X165: 11
J166: 162 | K166: 762 | L166: 162 | M166: 474748330 | N166: ع162 | O166: أنثى | P166: مسلمة | Q166: ناجح ومنقول | R166: (4 / 6) | S166: لا يوجد | T166: السادس | U166: نصف العام | V166: آخر العام | W166: م | X166: 11
J167: 163 | K167: 763 | L167: 163 | M167: 468305856 | N167: ع163 | O167: أنثى | P167: مسلمة | Q167: ناجح ومنقول | R167: (1 / 6) | S167: لا يوجد | T167: السادس | U167: نصف العام | V167: آخر العام | W167: م | X167: 11
J168: 164 | K168: 764 | L168: 164 | M168: 477890127 | N168: ع164 | O168: أنثى | P168: مسلمة | Q168: ناجح ومنقول | R168: (1 / 6) | S168: لا يوجد | T168: السادس | U168: نصف العام | V168: آخر العام | W168: م | X168: 11
J169: 165 | K169: 765 | L169: 165 | M169: 477814952 | N169: ع165 | O169: أنثى | P169: مسلمة | Q169: ناجح ومنقول | R169: (4 / 6) | S169: لا يوجد | T169: السادس | U169: نصف العام | V169: آخر العام | W169: م | X169: 11
J170: 166 | K170: 766 | L170: 166 | M170: 476219440 | N170: ع166 | O170: أنثى | P170: مسلمة | Q170: ناجح ومنقول | R170: (4 / 6) | S170: لا يوجد | T170: السادس | U170: نصف العام | V170: آخر العام | W170: م | X170: 11
J171: 167 | K171: 767 | L171: 167 | M171: 474934190 | N171: ع167 | O171: أنثى | P171: مسلمة | Q171: ناجح ومنقول | R171: (4 / 6) | S171: لا يوجد | T171: السادس | U171: نصف العام | V171: آخر العام | W171: م | X171: 11
J172: 168 | K172: 768 | L172: 168 | M172: 472881542 | N172: ع168 | O172: أنثى | P172: مسلمة | Q172: ناجح ومنقول | R172: (3 / 6) | S172: لا يوجد | T172: السادس | U172: نصف العام | V172: آخر العام | W172: م | X172: 11
J173: 169 | K173: 769 | L173: 169 | M173: 475401995 | N173: ع169 | O173: أنثى | P173: مسلمة | Q173: ناجح ومنقول | R173: (1 / 6) | S173: لا يوجد | T173: السادس | U173: نصف العام | V173: آخر العام | W173: م | X173: 11
J174: 170 | K174: 770 | L174: 170 | M174: 475493379 | N174: ع170 | O174: أنثى | P174: مسلمة | Q174: ناجح ومنقول | R174: (3 / 6) | S174: لا يوجد | T174: السادس | U174: نصف العام | V174: آخر العام | W174: م | X174: 11
J175: 171 | K175: 771 | L175: 171 | M175: 472881431 | N175: ع171 | O175: أنثى | P175: مسلمة | Q175: ناجح ومنقول | R175: (2 / 6) | S175: لا يوجد | T175: السادس | U175: نصف العام | V175: آخر العام | W175: م | X175: 11
J176: 172 | K176: 772 | L176: 172 | M176: 472881277 | N176: ع172 | O176: أنثى | P176: مسلمة | Q176: ناجح ومنقول | R176: (4 / 6) | S176: لا يوجد | T176: السادس | U176: نصف العام | V176: آخر العام | W176: م | X176: 11
J177: 173 | K177: 773 | L177: 173 | M177: 475217314 | N177: ع173 | O177: أنثى | P177: مسلمة | Q177: ناجح ومنقول | R177: (3 / 6) | S177: لا يوجد | T177: السادس | U177: نصف العام | V177: آخر العام | W177: م | X177: 11
J178: 174 | K178: 774 | L178: 174 | M178: 474671565 | N178: ع174 | O178: أنثى | P178: مسلمة | Q178: ناجح ومنقول | R178: (1 / 6) | S178: لا يوجد | T178: السادس | U178: نصف العام | V178: آخر العام | W178: م | X178: 11
J179: 175 | K179: 775 | L179: 175 | M179: 475352487 | N179: ع175 | O179: أنثى | P179: مسلمة | Q179: ناجح ومنقول | R179: (2 / 6) | S179: لا يوجد | T179: السادس | U179: نصف العام | V179: آخر العام | W179: م | X179: 11
J180: 176 | K180: 776 | L180: 176 | M180: 474721246 | N180: ع176 | O180: أنثى | P180: مسلمة | Q180: ناجح ومنقول | R180: (3 / 6) | S180: لا يوجد | T180: السادس | U180: نصف العام | V180: آخر العام | W180: م | X180: 11
J181: 177 | K181: 777 | L181: 177 | M181: 474754782 | N181: ع177 | O181: أنثى | P181: مسلمة | Q181: ناجح ومنقول | R181: (1 / 6) | S181: لا يوجد | T181: السادس | U181: نصف العام | V181: آخر العام | W181: م | X181: 11
J182: 178 | K182: 778 | L182: 178 | M182: 472880814 | N182: ع178 | O182: أنثى | P182: مسلمة | Q182: ناجح ومنقول | R182: (3 / 6) | S182: لا يوجد | T182: السادس | U182: نصف العام | V182: آخر العام | W182: م | X182: 11
J183: 179 | K183: 779 | L183: 179 | M183: 472880592 | N183: ع179 | O183: أنثى | P183: مسلمة | Q183: ناجح ومنقول | R183: (4 / 6) | S183: لا يوجد | T183: السادس | U183: نصف العام | V183: آخر العام | W183: م | X183: 11
J184: 180 | K184: 780 | L184: 180 | M184: 472880324 | N184: ع180 | O184: أنثى | P184: مسلمة | Q184: ناجح ومنقول | R184: (3 / 6) | S184: لا يوجد | T184: السادس | U184: نصف العام | V184: آخر العام | W184: م | X184: 11
J185: 181 | K185: 781 | L185: 181 | M185: 475401467 | N185: ع181 | O185: أنثى | P185: مسلمة | Q185: ناجح ومنقول | R185: (3 / 6) | S185: لا يوجد | T185: السادس | U185: نصف العام | V185: آخر العام | W185: م | X185: 11
J186: 182 | K186: 782 | L186: 182 | M186: 477749481 | N186: ع182 | O186: أنثى | P186: مسلمة | Q186: ناجح ومنقول | R186: (1 / 6) | S186: لا يوجد | T186: السادس | U186: نصف العام | V186: آخر العام | W186: م | X186: 11
J187: 183 | K187: 783 | L187: 183 | M187: 474581020 | N187: ع183 | O187: أنثى | P187: مسلمة | Q187: ناجح ومنقول | R187: (2 / 6) | S187: لا يوجد | T187: السادس | U187: نصف العام | V187: آخر العام | W187: م | X187: 11
J188: 184 | K188: 784 | L188: 184 | M188: 485438673 | N188: ع184 | O188: أنثى | P188: مسلمة | Q188: ناجح ومنقول | R188: (1 / 6) | S188: لا يوجد | T188: السادس | U188: نصف العام | V188: آخر العام | W188: م | X188: 11
J189: 185 | K189: 785 | L189: 185 | M189: 474491645 | N189: ع185 | O189: أنثى | P189: مسلمة | Q189: ناجح ومنقول | R189: (3 / 6) | S189: لا يوجد | T189: السادس | U189: نصف العام | V189: آخر العام | W189: م | X189: 11
J190: 186 | K190: 786 | L190: 186 | M190: 475004055 | N190: ع186 | O190: أنثى | P190: مسلمة | Q190: ناجح ومنقول | R190: (1 / 6) | S190: لا يوجد | T190: السادس | U190: نصف العام | V190: آخر العام | W190: م | X190: 11
J191: 187 | K191: 787 | L191: 187 | M191: 475401432 | N191: ع187 | O191: أنثى | P191: مسلمة | Q191: ناجح ومنقول | R191: (2 / 6) | S191: لا يوجد | T191: السادس | U191: نصف العام | V191: آخر العام | W191: م | X191: 11
J192: 188 | K192: 788 | L192: 188 | M192: 472880113 | N192: ع188 | O192: أنثى | P192: مسلمة | Q192: ناجح ومنقول | R192: (3 / 6) | S192: لا يوجد | T192: السادس | U192: نصف العام | V192: آخر العام | W192: م | X192: 11
J193: 189 | K193: 789 | L193: 189 | M193: 475179149 | N193: ع189 | O193: أنثى | P193: مسلمة | Q193: ناجح ومنقول | R193: (2 / 6) | S193: لا يوجد | T193: السادس | U193: نصف العام | V193: آخر العام | W193: م | X193: 11
J194: 190 | K194: 790 | L194: 190 | M194: 475366865 | N194: ع190 | O194: أنثى | P194: مسلمة | Q194: ناجح ومنقول | R194: (4 / 6) | S194: لا يوجد | T194: السادس | U194: نصف العام | V194: آخر العام | W194: م | X194: 11
J195: 191 | K195: 791 | L195: 191 | M195: 474971725 | N195: ع191 | O195: أنثى | P195: مسلمة | Q195: ناجح ومنقول | R195: (3 / 6) | S195: لا يوجد | T195: السادس | U195: نصف العام | V195: آخر العام | W195: م | X195: 11
J196: 192 | K196: 792 | L196: 192 | M196: 472877185 | N196: ع192 | O196: أنثى | P196: مسلمة | Q196: ناجح ومنقول | R196: (1 / 6) | S196: لا يوجد | T196: السادس | U196: نصف العام | V196: آخر العام | W196: م | X196: 11
J197: 193 | K197: 793 | L197: 193 | M197: 472816775 | N197: ع193 | O197: أنثى | P197: مسلمة | Q197: ناجح ومنقول | R197: (1 / 6) | S197: لا يوجد | T197: السادس | U197: نصف العام | V197: آخر العام | W197: م | X197: =IF(K197="","",VLOOKUP(K197,جلوس,4)) -> 11
J198: 194 | K198: 794 | L198: 194 | M198: 475398918 | N198: ع194 | O198: أنثى | P198: مسلمة | Q198: ناجح ومنقول | R198: (2 / 6) | S198: لا يوجد | T198: السادس | U198: نصف العام | V198: آخر العام | W198: م | X198: 11 | Y198: =IF(X198=X199,"","نهاية اللجنة") -> 
J199: =IF(J198="","",IF(J198+1>$K$2,"",J198+1)) -> 195 | K199: =IF(K198="","",IF(K198+1>$K$3,"",K198+1)) -> 795 | L199: 195 | M199: 474796295 | N199: ع195 | O199: أنثى | P199: مسلمة | Q199: ناجح ومنقول | R199: (2 / 6) | S199: لا يوجد | T199: السادس | U199: نصف العام | V199: آخر العام | W199: م | X199: 11
J200: 196 | K200: 796 | L200: 196 | M200: 475771343 | N200: ع196 | O200: أنثى | P200: مسلمة | Q200: ناجح ومنقول | R200: (1 / 6) | S200: لا يوجد | T200: السادس | U200: نصف العام | V200: آخر العام | W200: م | X200: 11
... 32 more rows

Sheet Sheet6

Sheet Sheet7

Sheet saad
